Inv Transaction,Supplier Name,Headserv Name,Stratdir Name,Account Desription,Redact Name,Paid Date,Sum of Inv Amount,Proclass,Merchant cat
460380,LITTLE MEADOWS,Adult Social Care,Adults,Nursing Home Long Stay Fees,,08/10/2019,"7,040.79",321000,Social Community Care Supplies & Services - Adult
460382,Seaford Homes Ltd t/a Nova House,Adult Social Care,Adults,Nursing Home Long Stay Fees,,29/10/2019,"7,504.20",321000,Social Community Care Supplies & Services - Adult
32000043,Redacted,Individual Schools Budget,Children's Services,Section 251 Budget,,09/10/2019,"21,092.06",170000,Education
3250729,Quantum Production Ltd T/A Quantum Cryogenics,Operations and Neighbourhoods,Operations and Neighbourhoods,General Equipment Repair & Maintenance,,10/10/2019,"3,260.15",100000,Building Construction Materials
470826,ROSEHILL POLYMERS LTD,(blank),(blank),Traffic Signs,,25/11/2019,"2,291.80",908001,Public Bodies
470826,JONES OF OSWESTRY,Operations and Neighbourhoods,Operations and Neighbourhoods,General Materials,,29/11/2019,"1,593.00",100000,Building Construction Materials
460383,LITTLE MEADOWS,Adult Social Care,Adults,Nursing Home Long Stay Fees,,08/10/2019,"4,825.71",321000,Social Community Care Supplies & Services - Adult
29000085,BOOTS UK LTD,Population Health,Population Health,Local Enhanced Services,,15/10/2019,"1,800.00",319999,Healthcare
29000085,Millgate Healthcare Partnership,Population Health,Population Health,Local Enhanced Services,,15/10/2019,"1,712.50",150000,Consultancy
5357006,ELECTORAL REFORM SERVICES,Governance,Governance,Miscellaneous Expenses,,01/10/2019,"5,838.28",-999999,Unclassifiable
5357008,AUTUMN (UK) 2017 LIMITED,Housing,Director of Place,Improvement Grants - Final Mandatory,,01/10/2019,"3,859.00",321000,Social Community Care Supplies & Services - Adult
5353939,XMA LIMITED,(blank),(blank),Computer Hardware,,01/10/2019,"150,770.70",270000,Information Communication Technology
5357027,VODAFONE,Digital Tameside,Finance & IT,Security Services,,01/10/2019,"2,527.24",270000,Information Communication Technology
5357028,VODAFONE,Digital Tameside,Finance & IT,Security Services,,01/10/2019,"2,598.59",270000,Information Communication Technology
5357026,VODAFONE,Digital Tameside,Finance & IT,Security Services,,01/10/2019,"2,598.59",270000,Information Communication Technology
5357024,VODAFONE,Digital Tameside,Finance & IT,Security Services,,01/10/2019,"2,598.59",270000,Information Communication Technology
5357023,VODAFONE,Digital Tameside,Finance & IT,Security Services,,01/10/2019,"2,598.59",270000,Information Communication Technology
5356642,Redacted,Education,Children's Services,Other Local Authorities Fees,,01/10/2019,"7,773.00",908001,Public Bodies
5355734,INSPIREDSPACES TAMESIDE LTD,Tameside Investment Partnership,Director of Place,External  Consultants,,01/10/2019,"3,945.00",390000,"Works - Construction, Repair & Maintenance"
5356876,Redacted,Adult Social Care,Adults,Day Care Fees,,01/10/2019,678.78,-999999,Unclassifiable
5354580,CRJ TRUSTEES LIMITED,Place,Growth,Non-Authority Accommodation Rental,,01/10/2019,"20,562.50",200000,Financial Services
5353135,Intraquest Limited,Childrens Services,Children's Services,Professional Services,,01/10/2019,"2,795.00",310000,Healthcare
5357014,AUTUMN (UK) 2017 LIMITED,Housing,Director of Place,Improvement Grants - Final Mandatory,,01/10/2019,"3,780.00",321000,Social Community Care Supplies & Services - Adult
5354255,ANIMAL WARDENS LTD,Operations and Neighbourhoods,Operations and Neighbourhoods,Professional Consultancy Services,,01/10/2019,836,180000,Environmental Services
5357020,Redacted,Multiple Heads of Service,Multiple Strategic Directorates,Salaries & Wages Advances(Hold),,01/10/2019,"3,374.53",400000,Non 3rd Party spend  
5357019,Redacted,Hosted Services,Hosted Services,#N/A,,01/10/2019,"2,818.18",150000,Consultancy
5355757,INSPIREDSPACES TAMESIDE LTD,Tameside Investment Partnership,Director of Place,External  Consultants,,01/10/2019,535.5,390000,"Works - Construction, Repair & Maintenance"
5356780,ISW CSC Limited,Childrens Services,Children's Services,Living With Formal Support,,01/10/2019,"1,055.00",260000,Human Resources
5356779,ISW CSC Limited,Childrens Services,Children's Services,Living With Formal Support,,01/10/2019,"1,055.00",260000,Human Resources
5356777,ISW CSC Limited,Childrens Services,Children's Services,Living With Formal Support,,01/10/2019,750,260000,Human Resources
5356776,ISW CSC Limited,Childrens Services,Children's Services,Living With Formal Support,,01/10/2019,800,260000,Human Resources
5356244,Redacted,Adult Social Care,Adults,Residential Home Short Stay Fees,,01/10/2019,840.6,321100,Social Community Care Supplies & Services - Children
5356778,ISW CSC Limited,Childrens Services,Children's Services,Living With Formal Support,,01/10/2019,890,260000,Human Resources
5356689,SEFTON COUNCIL,Childrens Services,Children's Services,Adoption Agency Fees,,01/10/2019,"27,000.00",UNCLASS,Unclassifiable
5356877,MEDACS HEALTHCARE,Adult Social Care,Adults,Homecare Fees,,01/10/2019,"20,952.80",150000,Consultancy
5354177,FOSTER CARE ASSOCIATES LTD (FCA),Childrens Services,Children's Services,Foster Carer Agency Fees,,02/10/2019,"4,029.69",321000,Social Community Care Supplies & Services - Adult
5354065,MOSSCARE HOUSING LTD,Adult Social Care,Adults,Non-Authority Accommodation Rental,,02/10/2019,"29,609.24",321000,Social Community Care Supplies & Services - Adult
5354152,NATIONAL FOSTERING AGENCY LTD,Childrens Services,Children's Services,Foster Carer Agency Fees,,02/10/2019,"3,218.42",321100,Social Community Care Supplies & Services - Children
5354067,Olive Branch Fostering LTD,Childrens Services,Children's Services,Foster Carer Agency Fees,,02/10/2019,"3,502.96",321100,Social Community Care Supplies & Services - Children
5354066,Olive Branch Fostering LTD,Childrens Services,Children's Services,Foster Carer Agency Fees,,02/10/2019,"3,308.01",321100,Social Community Care Supplies & Services - Children
5354013,INSPIRE COMMUNITY SERVICES LIMITED,Childrens Services,Children's Services,Living With Formal Support,,02/10/2019,"2,144.00",170000,Education
5354011,INSPIRE COMMUNITY SERVICES LIMITED,Childrens Services,Children's Services,Living With Formal Support,,02/10/2019,"1,337.12",170000,Education
5354014,INSPIRE COMMUNITY SERVICES LIMITED,Childrens Services,Children's Services,Living With Formal Support,,02/10/2019,"1,325.60",170000,Education
5354009,INSPIRE COMMUNITY SERVICES LIMITED,Childrens Services,Children's Services,Living With Formal Support,,02/10/2019,"1,325.60",170000,Education
5354008,INSPIRE COMMUNITY SERVICES LIMITED,Childrens Services,Children's Services,Living With Formal Support,,02/10/2019,642.78,170000,Education
5354021,INSPIRE COMMUNITY SERVICES LIMITED,Childrens Services,Children's Services,Living With Formal Support,,02/10/2019,"1,253.55",170000,Education
5354022,INSPIRE COMMUNITY SERVICES LIMITED,Childrens Services,Children's Services,Living With Formal Support,,02/10/2019,"1,242.75",170000,Education
5354018,INSPIRE COMMUNITY SERVICES LIMITED,Childrens Services,Children's Services,Living With Formal Support,,02/10/2019,"1,242.75",170000,Education
5354154,NATIONAL FOSTERING AGENCY LTD,Childrens Services,Children's Services,Foster Carer Agency Fees,,02/10/2019,"3,116.74",321100,Social Community Care Supplies & Services - Children
5354153,NATIONAL FOSTERING AGENCY LTD,Childrens Services,Children's Services,Foster Carer Agency Fees,,02/10/2019,"3,116.74",321100,Social Community Care Supplies & Services - Children
5353331,TUDOR (UK) LTD T/A TUDOR ENVIRONMENTAL,Operations and Neighbourhoods,Operations and Neighbourhoods,General Materials,,02/10/2019,"4,867.50",240000,Horticultural
5354078,CARE 4 CHILDREN RESIDENTIAL SERVICES LTD,Childrens Services,Children's Services,Foster Carer Agency Fees,,02/10/2019,"4,049.56",321100,Social Community Care Supplies & Services - Children
5354077,CARE 4 CHILDREN RESIDENTIAL SERVICES LTD,Childrens Services,Children's Services,Foster Carer Agency Fees,,02/10/2019,"2,707.50",321100,Social Community Care Supplies & Services - Children
5354075,CARE 4 CHILDREN RESIDENTIAL SERVICES LTD,Childrens Services,Children's Services,Foster Carer Agency Fees,,02/10/2019,"3,004.75",321100,Social Community Care Supplies & Services - Children
5354076,CARE 4 CHILDREN RESIDENTIAL SERVICES LTD,Childrens Services,Children's Services,Foster Carer Agency Fees,,02/10/2019,"2,788.72",321100,Social Community Care Supplies & Services - Children
5354079,CARE 4 CHILDREN RESIDENTIAL SERVICES LTD,Childrens Services,Children's Services,Foster Carer Agency Fees,,02/10/2019,"3,385.80",321100,Social Community Care Supplies & Services - Children
5354101,Redacted,Adult Social Care,Adults,Homecare Fees,,02/10/2019,"1,213.72",170000,Education
5356617,GETRONICS SERVICES UK LIMITED,Digital Tameside,Finance & IT,Telephone Landline Costs,,02/10/2019,"10,360.89",270000,Information Communication Technology
5354178,FOSTER CARE ASSOCIATES LTD (FCA),Childrens Services,Children's Services,Foster Carer Agency Fees,,02/10/2019,"4,029.69",321000,Social Community Care Supplies & Services - Adult
5356616,GETRONICS SERVICES UK LIMITED,Digital Tameside,Finance & IT,Telephone Landline Costs,,02/10/2019,"12,270.45",270000,Information Communication Technology
5354165,FOSTER CARE ASSOCIATES LTD (FCA),Childrens Services,Children's Services,Foster Carer Agency Fees,,02/10/2019,"4,248.89",321000,Social Community Care Supplies & Services - Adult
5354164,FOSTER CARE ASSOCIATES LTD (FCA),Childrens Services,Children's Services,Foster Carer Agency Fees,,02/10/2019,"4,411.30",321000,Social Community Care Supplies & Services - Adult
5354168,FOSTER CARE ASSOCIATES LTD (FCA),Childrens Services,Children's Services,Foster Carer Agency Fees,,02/10/2019,"4,411.30",321000,Social Community Care Supplies & Services - Adult
5354169,FOSTER CARE ASSOCIATES LTD (FCA),Childrens Services,Children's Services,Foster Carer Agency Fees,,02/10/2019,"4,411.30",321000,Social Community Care Supplies & Services - Adult
5354173,FOSTER CARE ASSOCIATES LTD (FCA),Childrens Services,Children's Services,Foster Carer Agency Fees,,02/10/2019,"4,411.30",321000,Social Community Care Supplies & Services - Adult
5354174,FOSTER CARE ASSOCIATES LTD (FCA),Childrens Services,Children's Services,Foster Carer Agency Fees,,02/10/2019,"3,565.93",321000,Social Community Care Supplies & Services - Adult
5354179,FOSTER CARE ASSOCIATES LTD (FCA),Childrens Services,Children's Services,Foster Carer Agency Fees,,02/10/2019,"3,565.93",321000,Social Community Care Supplies & Services - Adult
5354166,FOSTER CARE ASSOCIATES LTD (FCA),Childrens Services,Children's Services,Foster Carer Agency Fees,,02/10/2019,"3,412.94",321000,Social Community Care Supplies & Services - Adult
5354170,FOSTER CARE ASSOCIATES LTD (FCA),Childrens Services,Children's Services,Foster Carer Agency Fees,,02/10/2019,"3,412.94",321000,Social Community Care Supplies & Services - Adult
5354175,FOSTER CARE ASSOCIATES LTD (FCA),Childrens Services,Children's Services,Foster Carer Agency Fees,,02/10/2019,"3,412.94",321000,Social Community Care Supplies & Services - Adult
5354176,FOSTER CARE ASSOCIATES LTD (FCA),Childrens Services,Children's Services,Foster Carer Agency Fees,,02/10/2019,"3,237.02",321000,Social Community Care Supplies & Services - Adult
5354171,FOSTER CARE ASSOCIATES LTD (FCA),Childrens Services,Children's Services,Foster Carer Agency Fees,,02/10/2019,"3,299.33",321000,Social Community Care Supplies & Services - Adult
5354172,FOSTER CARE ASSOCIATES LTD (FCA),Childrens Services,Children's Services,Foster Carer Agency Fees,,02/10/2019,"3,299.33",321000,Social Community Care Supplies & Services - Adult
5354103,PROGRESS CARE HOUSING ASSOCIATION LIMITED,Adult Social Care,Adults,Non-Authority Accommodation Rental,,02/10/2019,"5,661.49",250000,Housing Management
5354104,NO EYED THEATRE,Operations and Neighbourhoods,Operations and Neighbourhoods,Professional Entertainment Services,,02/10/2019,880,290000,Arts & Leisure Services
5355276,CREATIVE SUPPORT LTD,Adult Social Care,Adults,Independent Sector Care Fees,,02/10/2019,"76,819.84",321000,Social Community Care Supplies & Services - Adult
5354064,BERTRAM LIBRARY SERVICES,Operations and Neighbourhoods,Operations and Neighbourhoods,Purchase Books,,02/10/2019,"8,662.04",170000,Education
5354068,ENVIRONMENTAL WATER SERVICES LTD,Adult Social Care,Adults,Firefighting Equipment,,02/10/2019,"2,730.00",181900,Environmental Services
5357021,J HOPKINS CONTRACTORS  LTD,(blank),(blank),Highway Construction,,02/10/2019,"173,225.10",391411,"Works - Construction, Repair & Maintenance"
5354056,TAMESIDE CITIZENS ADVICE BUREAU LTD,Operations and Neighbourhoods,Operations and Neighbourhoods,Grants to Citizens' Advice Bureau,,02/10/2019,"9,666.67",321000,Social Community Care Supplies & Services - Adult
5354119,LEEDS CITY COUNCIL,Hosted Services,Hosted Services,Conference/Seminar Expenses For Staff,,02/10/2019,551,-999999,Unclassifiable
5355563,ELECTRICITY NORTH WEST LTD,Engineers Client,Director of Place,Engineers -External,,02/10/2019,"74,192.54",370000,Utilities
5354100,COMMUNITY INTEGRATED CARE,Adult Social Care,Adults,Homecare Fees,,02/10/2019,"19,081.07",321000,Social Community Care Supplies & Services - Adult
5354569,K P DODD CONSTRUCTION LTD,Housing,Director of Place,Improvement Grants - Final Mandatory,,02/10/2019,"3,400.00",390000,"Works - Construction, Repair & Maintenance"
5354509,TRANSPORT FOR GREATER MANCHESTER,(blank),(blank),Engineers -External,,02/10/2019,"2,760.00",360000,Public Transport
5354084,Inspire Social Care Services LTD,Adult Social Care,Adults,Homecare Fees,,02/10/2019,"5,746.16",321100,Social Community Care Supplies & Services - Children
5354085,Shield Support Hub Limited,Childrens Services,Children's Services,Living With Formal Support,,02/10/2019,"5,357.14",321000,Social Community Care Supplies & Services - Adult
5354086,Shield Support Hub Limited,Childrens Services,Children's Services,Living With Formal Support,,02/10/2019,"5,357.14",321000,Social Community Care Supplies & Services - Adult
5354024,HC Assessment Ltd,Adult Social Care,Adults,Professional Services,,02/10/2019,"1,275.40",260000,Human Resources
5354035,Interserve Healthcare Limited,Childrens Services,Children's Services,Day Care Fees,,02/10/2019,745.2,321100,Social Community Care Supplies & Services - Children
5354093,FSN Facilities Management Ltd,Operations and Neighbourhoods,Operations and Neighbourhoods,Security Services,,02/10/2019,600,190000,Facilities & Management Services
5354053,THE ETHEROW CENTRE CHARITABLE TRUST LTD,Place,Growth,Other Accomodation Related Costs,,02/10/2019,"1,398.00",200000,Financial Services
5354091,FSN Facilities Management Ltd,Operations and Neighbourhoods,Operations and Neighbourhoods,General Materials,,02/10/2019,"27,555.00",190000,Facilities & Management Services
5353776,Bloom Procurement Services Limited,Tameside Investment Partnership,Director of Place,Consultancies,,02/10/2019,"28,956.63",150000,Consultancy
5354109,YOUNG PEOPLE FIRST LIMITED,Childrens Services,Children's Services,Living With Formal Support,,02/10/2019,"6,818.00",321100,Social Community Care Supplies & Services - Children
5353934,Therapeutic Fostering LTD,Childrens Services,Children's Services,Foster Carer Agency Fees,,02/10/2019,"3,392.10",-999999,Unclassifiable
5353932,Therapeutic Fostering LTD,Childrens Services,Children's Services,Foster Carer Agency Fees,,02/10/2019,"3,400.80",-999999,Unclassifiable
5355919,CHILTERN HILLS LIMITED,Childrens Services,Children's Services,#N/A,,02/10/2019,542,250000,Housing Management
5354155,NATIONAL FOSTERING AGENCY LTD,Childrens Services,Children's Services,Foster Carer Agency Fees,,02/10/2019,"3,092.25",321100,Social Community Care Supplies & Services - Children
5354039,OCTAGON CARE LTD,Childrens Services,Children's Services,Childrens Homes Outside Local Authority Fees,,02/10/2019,"15,000.00",321100,Social Community Care Supplies & Services - Children
5354041,KEYS CHILDCARE LTD,Childrens Services,Children's Services,Childrens Homes Outside Local Authority Fees,,02/10/2019,"15,214.29",321100,Social Community Care Supplies & Services - Children
5354040,KEYS CHILDCARE LTD,Childrens Services,Children's Services,Childrens Homes Outside Local Authority Fees,,02/10/2019,"16,928.57",321100,Social Community Care Supplies & Services - Children
5354044,HALLIWELL HOMES,Childrens Services,Children's Services,Childrens Homes Outside Local Authority Fees,,02/10/2019,"21,235.00",321100,Social Community Care Supplies & Services - Children
5354045,HALLIWELL HOMES,Childrens Services,Children's Services,Childrens Homes Outside Local Authority Fees,,02/10/2019,"21,235.00",321100,Social Community Care Supplies & Services - Children
5354046,HALLIWELL HOMES,Childrens Services,Children's Services,Childrens Homes Outside Local Authority Fees,,02/10/2019,"20,550.00",321100,Social Community Care Supplies & Services - Children
5354508,TRANSPORT FOR GREATER MANCHESTER,(blank),(blank),Engineers -External,,02/10/2019,"2,460.00",360000,Public Transport
5354507,TRANSPORT FOR GREATER MANCHESTER,(blank),(blank),Engineers -External,,02/10/2019,"2,760.00",360000,Public Transport
5354092,FSN Facilities Management Ltd,Operations and Neighbourhoods,Operations and Neighbourhoods,General Materials,,02/10/2019,"4,576.00",190000,Facilities & Management Services
5355196,COMFORT CALL LIMITED,Adult Social Care,Adults,Homecare Fees,,02/10/2019,"11,910.62",310000,Healthcare
5354167,FOSTER CARE ASSOCIATES LTD (FCA),Childrens Services,Children's Services,Foster Carer Agency Fees,,02/10/2019,"3,412.94",321000,Social Community Care Supplies & Services - Adult
5354148,BY THE BRIDGE NORTH WEST LTD,Childrens Services,Children's Services,Foster Carer Agency Fees,,02/10/2019,"4,179.00",908001,Public Bodies
5354142,BY THE BRIDGE NORTH WEST LTD,Childrens Services,Children's Services,Foster Carer Agency Fees,,02/10/2019,"4,074.56",908001,Public Bodies
5354145,BY THE BRIDGE NORTH WEST LTD,Childrens Services,Children's Services,Foster Carer Agency Fees,,02/10/2019,"4,050.00",908001,Public Bodies
5354151,BY THE BRIDGE NORTH WEST LTD,Childrens Services,Children's Services,Foster Carer Agency Fees,,02/10/2019,"4,039.89",908001,Public Bodies
5354147,BY THE BRIDGE NORTH WEST LTD,Childrens Services,Children's Services,Foster Carer Agency Fees,,02/10/2019,"4,477.50",908001,Public Bodies
5354143,BY THE BRIDGE NORTH WEST LTD,Childrens Services,Children's Services,Foster Carer Agency Fees,,02/10/2019,"4,477.50",908001,Public Bodies
5354149,BY THE BRIDGE NORTH WEST LTD,Childrens Services,Children's Services,Foster Carer Agency Fees,,02/10/2019,"3,167.14",908001,Public Bodies
5354146,BY THE BRIDGE NORTH WEST LTD,Childrens Services,Children's Services,Foster Carer Agency Fees,,02/10/2019,"3,165.00",908001,Public Bodies
5354144,BY THE BRIDGE NORTH WEST LTD,Childrens Services,Children's Services,Foster Carer Agency Fees,,02/10/2019,"3,165.00",908001,Public Bodies
5354054,THE ETHEROW CENTRE CHARITABLE TRUST LTD,Place,Growth,Other Accomodation Related Costs,,02/10/2019,"3,679.36",200000,Financial Services
5354140,PATHWAY TO PROSPECTS,Childrens Services,Children's Services,Living With Formal Support,,02/10/2019,"4,625.00",321000,Social Community Care Supplies & Services - Adult
5354099,POSTURITE (UK) LIMITED,Education,Children's Services,Printing And Stationery,,02/10/2019,764.9,220000,Health & Safety
5354115,INTACT PROJECTS LIMITED,Childrens Services,Children's Services,Living With Formal Support,,02/10/2019,"1,590.00",321000,Social Community Care Supplies & Services - Adult
5354114,INTACT PROJECTS LIMITED,Childrens Services,Children's Services,Living With Formal Support,,02/10/2019,"1,590.00",321000,Social Community Care Supplies & Services - Adult
5354097,SOFTCAT LIMITED,Digital Tameside,Finance & IT,It Equipment,,02/10/2019,929.82,270000,Information Communication Technology
5354096,COURTYARD CARE GROUP,Childrens Services,Children's Services,Childrens Homes Outside Local Authority Fees,Redacted Supplier,02/10/2019,"14,142.90",321000,Social Community Care Supplies & Services - Adult
5355539,MATTHEWS ENVIRONMENTAL SOLUTIONS LTD,Operations and Neighbourhoods,Operations and Neighbourhoods,Building Works,,02/10/2019,"1,090.25",390000,"Works - Construction, Repair & Maintenance"
5354113,INTACT PROJECTS LIMITED,Childrens Services,Children's Services,Living With Formal Support,,02/10/2019,"1,590.00",321000,Social Community Care Supplies & Services - Adult
5353991,Thirsty Horse Mobile Bar,Operations and Neighbourhoods,Operations and Neighbourhoods,Professional Entertainment Services,,02/10/2019,750,290000,Arts & Leisure Services
5354150,BY THE BRIDGE NORTH WEST LTD,Childrens Services,Children's Services,Foster Carer Agency Fees,,02/10/2019,"3,869.79",908001,Public Bodies
5354017,INSPIRE COMMUNITY SERVICES LIMITED,Childrens Services,Children's Services,Living With Formal Support,,02/10/2019,"2,010.00",170000,Education
5354293,CARETECH COMMUNITY SERVICES LIMITED,Adult Social Care,Adults,Residential Home Long Stay Fees,,03/10/2019,"4,890.72",321000,Social Community Care Supplies & Services - Adult
5354211,PROGRESSIVE CARE LTD,Childrens Services,Children's Services,Childrens Homes Outside Local Authority Fees,,03/10/2019,"15,321.43",321000,Social Community Care Supplies & Services - Adult
5354219,TAMESIDE SPORTS TRUST,Adult Social Care,Adults,Day Centre Fees,,03/10/2019,"1,229.00",290000,Arts & Leisure Services
5357299,GREATER MANCHESTER COMBINED AUTHORITY,Corporate Costs,Corporate Costs,Contributions,,03/10/2019,"726,701.62",-999999,Unclassifiable
3250731,DENNIS EAGLE LTD,Transport,Director of Place,Debits Goods Received,,03/10/2019,"1,211.45",380000,Vehicle Management
3250731,DENNIS EAGLE LTD,Operations and Neighbourhoods,Operations and Neighbourhoods,General Materials,,03/10/2019,"2,553.16",380000,Vehicle Management
3250731,G B OILS TA CARLTON FUELS,Transport,Director of Place,Debits Goods Received,,03/10/2019,"15,765.00",380000,Vehicle Management
3250731,DITCHBURN TRUCK SERVICES LLP,Operations and Neighbourhoods,Operations and Neighbourhoods,General Materials,,03/10/2019,"1,046.90",380000,Vehicle Management
3250731,STOCKPORT TRUCK CENTRE LTD,Operations and Neighbourhoods,Operations and Neighbourhoods,Sub-contractor Services,,03/10/2019,670.74,260000,Human Resources
3250731,FUCHS LUBRICANTS UK PLC,Transport,Director of Place,Debits Goods Received,,03/10/2019,686.75,390000,"Works - Construction, Repair & Maintenance"
3250731,MOTUS COMMERCIALS (OLDHAM),Operations and Neighbourhoods,Operations and Neighbourhoods,General Materials,,03/10/2019,620.36,380000,Vehicle Management
5354189,Reflexion Care Group - New Reflexions,Childrens Services,Children's Services,Childrens Homes Outside Local Authority Fees,,03/10/2019,"1,947.75",321100,Social Community Care Supplies & Services - Children
5354295,CARETECH COMMUNITY SERVICES LIMITED,Adult Social Care,Adults,Residential Home Long Stay Fees,,03/10/2019,"1,983.64",321000,Social Community Care Supplies & Services - Adult
5354298,CARETECH COMMUNITY SERVICES LIMITED,Adult Social Care,Adults,Homecare Fees,,03/10/2019,"4,817.88",321000,Social Community Care Supplies & Services - Adult
5354290,CARETECH COMMUNITY SERVICES LIMITED,Adult Social Care,Adults,Residential Home Long Stay Fees,,03/10/2019,"3,866.40",321000,Social Community Care Supplies & Services - Adult
5354292,CARETECH COMMUNITY SERVICES LIMITED,Adult Social Care,Adults,Residential Home Long Stay Fees,,03/10/2019,"6,440.56",321000,Social Community Care Supplies & Services - Adult
5354287,CARETECH COMMUNITY SERVICES LIMITED,Adult Social Care,Adults,Residential Home Long Stay Fees,,03/10/2019,"6,440.56",321000,Social Community Care Supplies & Services - Adult
5354296,CARETECH COMMUNITY SERVICES LIMITED,Adult Social Care,Adults,Residential Home Long Stay Fees,,03/10/2019,"4,059.72",321000,Social Community Care Supplies & Services - Adult
5354288,CARETECH COMMUNITY SERVICES LIMITED,Adult Social Care,Adults,Residential Home Long Stay Fees,,03/10/2019,"4,059.72",321000,Social Community Care Supplies & Services - Adult
5354294,CARETECH COMMUNITY SERVICES LIMITED,Adult Social Care,Adults,Residential Home Long Stay Fees,,03/10/2019,"3,680.72",321000,Social Community Care Supplies & Services - Adult
5354297,CARETECH COMMUNITY SERVICES LIMITED,Adult Social Care,Adults,Residential Home Long Stay Fees,,03/10/2019,"2,706.48",321000,Social Community Care Supplies & Services - Adult
5354281,CARETECH COMMUNITY SERVICES LIMITED,Adult Social Care,Adults,Residential Home Long Stay Fees,,03/10/2019,"2,706.48",321000,Social Community Care Supplies & Services - Adult
5354291,CARETECH COMMUNITY SERVICES LIMITED,Adult Social Care,Adults,Residential Home Long Stay Fees,,03/10/2019,"3,157.56",321000,Social Community Care Supplies & Services - Adult
5354289,CARETECH COMMUNITY SERVICES LIMITED,Adult Social Care,Adults,Residential Home Long Stay Fees,,03/10/2019,"8,499.36",321000,Social Community Care Supplies & Services - Adult
5354237,BRANAS ISAF LTD,Childrens Services,Children's Services,Childrens Homes Outside Local Authority Fees,,03/10/2019,"20,287.29",321100,Social Community Care Supplies & Services - Children
5356995,Redacted,Education,Children's Services,#N/A,,03/10/2019,"2,635.00",-999999,Unclassifiable
5356384,PYRAMID SCHOOLS (TAMESIDE) LTD,Place,Growth,PFI Benchmarking,,03/10/2019,"3,745.91",390000,"Works - Construction, Repair & Maintenance"
5356384,PYRAMID SCHOOLS (TAMESIDE) LTD,Place,Growth,Unitary Charge Payments,,03/10/2019,"278,642.33",390000,"Works - Construction, Repair & Maintenance"
5356996,Redacted,Education,Children's Services,#N/A,,03/10/2019,"1,317.00",171011,Education
5356999,Redacted,Education,Children's Services,#N/A,,03/10/2019,"1,317.00",171011,Education
5357394,ENVIRONMENTAL WATER SERVICES LTD,Multiple Heads of Service,Multiple Strategic Directorates,Tax Retained Sub Contractors,,03/10/2019,546,181900,Environmental Services
5356263,MANLEC ELECTRICAL(MANCHESTER) LTD,Housing,Director of Place,Adaptations - Small Jobs,,03/10/2019,792,390000,"Works - Construction, Repair & Maintenance"
5353683,LEXISNEXIS UK,Governance,Governance,Subscriptions,,03/10/2019,"2,484.00",270000,Information Communication Technology
5356253,A & E FURNITURE LTD T.A THE PAVILION,Adult Social Care,Adults,Fixtures & Fittings Purchase,,03/10/2019,650,210000,Furniture & Soft Furnishings
5356206,NPOWER LIMITED,Operations and Neighbourhoods,Operations and Neighbourhoods,Fuel Oil,,03/10/2019,"4,993.21",370000,Utilities
5356207,NPOWER LIMITED,Operations and Neighbourhoods,Operations and Neighbourhoods,Electricity,,03/10/2019,"73,151.26",370000,Utilities
5356208,NPOWER LIMITED,Operations and Neighbourhoods,Operations and Neighbourhoods,Electricity,,03/10/2019,"73,151.26",370000,Utilities
5356198,Redacted,Childrens Services,Children's Services,Professional Services,,03/10/2019,619.53,250000,Housing Management
5357390,AD HOC CHAPS PAYMENT,Multiple Heads of Service,Multiple Strategic Directorates,Debits Superann Local Govt,,03/10/2019,"474,028.12",400002,Chaps Payments
5357390,AD HOC CHAPS PAYMENT,(blank),(blank),Debits Superann Local Govt,,03/10/2019,"1,109.89",400002,Chaps Payments
5354285,Complete Care & Enablement Services LTD,Adult Social Care,Adults,Residential Home Long Stay Fees,,03/10/2019,"3,157.56",321000,Social Community Care Supplies & Services - Adult
5354286,Complete Care & Enablement Services LTD,Adult Social Care,Adults,Residential Home Long Stay Fees,,03/10/2019,"4,315.40",321000,Social Community Care Supplies & Services - Adult
5354278,iCare Solutions,Adult Social Care,Adults,Homecare Fees,,03/10/2019,"6,332.13",310000,Healthcare
5354277,YOUNG PEOPLE FIRST LIMITED,Childrens Services,Children's Services,Living With Formal Support,,03/10/2019,"3,584.00",321100,Social Community Care Supplies & Services - Children
5354276,ROC Northwest Limited,Childrens Services,Children's Services,Childrens Homes Outside Local Authority Fees,,03/10/2019,"13,580.00",321100,Social Community Care Supplies & Services - Children
5354275,Zeno Ltd,Adult Social Care,Adults,Nursing Home Long Stay Fees,,03/10/2019,"8,833.34",310000,Healthcare
5354273,BetaSigns LTD,Population Health,Population Health,Signs,,03/10/2019,750,180000,Environmental Services
5354261,KEYS CHILDCARE LTD,Education,Children's Services,#N/A,,03/10/2019,"14,250.00",321100,Social Community Care Supplies & Services - Children
5354262,KEYS CHILDCARE LTD,Education,Children's Services,#N/A,,03/10/2019,"14,250.00",321100,Social Community Care Supplies & Services - Children
5356346,HOME-START OLDHAM STOCKPORT & TAMESIDE LTD,Population Health,Population Health,Professional Services,,03/10/2019,"20,833.34",321000,Social Community Care Supplies & Services - Adult
5356339,HOME-START OLDHAM STOCKPORT & TAMESIDE LTD,Population Health,Population Health,Professional Services,,03/10/2019,"6,250.00",321000,Social Community Care Supplies & Services - Adult
5357038,TAMESIDE AND GLOSSOP INTEGRATED CARE NHS FOUNDATION TRUST,Childrens Services,Children's Services,Day Care Fees,,03/10/2019,930,310000,Healthcare
5354263,KEYS CHILDCARE LTD,Education,Children's Services,#N/A,,03/10/2019,"11,250.00",321100,Social Community Care Supplies & Services - Children
5354753,MEADOWS CARE LIMITED,Childrens Services,Children's Services,Childrens Homes Outside Local Authority Fees,Redacted Supplier,03/10/2019,"19,714.29",321000,Social Community Care Supplies & Services - Adult
5354312,ORACLE CARE LTD,Childrens Services,Children's Services,Childrens Homes Outside Local Authority Fees,,03/10/2019,"19,500.00",321100,Social Community Care Supplies & Services - Children
5356997,Redacted,Education,Children's Services,#N/A,,03/10/2019,"1,317.00",-999999,Unclassifiable
5354241,SAFFER COOPER CONSULTANCY,Tameside Investment Partnership,Director of Place,Fees,,03/10/2019,"1,074.15",150000,Consultancy
5357239,Redacted,Childrens Services,Children's Services,Nursery Services,,03/10/2019,581,-999999,Unclassifiable
5354543,CITY LIFT SERVICES (NW) LTD,Adult Social Care,Adults,General Equipment Repair & Maintenance,,03/10/2019,"1,260.00",390000,"Works - Construction, Repair & Maintenance"
5354545,CITY LIFT SERVICES (NW) LTD,Adult Social Care,Adults,General Equipment Repair & Maintenance,,03/10/2019,"8,500.00",390000,"Works - Construction, Repair & Maintenance"
5354243,CORE INTEGRATED SOLUTIONS LTD,(blank),(blank),Cabling/Diversion Works,,03/10/2019,"5,967.26",390000,"Works - Construction, Repair & Maintenance"
5354244,SYMOLOGY LIMITED,Operations and Neighbourhoods,Operations and Neighbourhoods,Computer Software,,03/10/2019,"40,709.93",270000,Information Communication Technology
5354754,MEADOWS CARE LIMITED,Childrens Services,Children's Services,Childrens Homes Outside Local Authority Fees,Redacted Supplier,03/10/2019,"13,471.43",321000,Social Community Care Supplies & Services - Adult
5357371,PRD PROPERTY SERVICES LTD,Governance,Governance,Legal Fees,,03/10/2019,"4,896.00",190000,Facilities & Management Services
5354323,KALEIDOSCOPE CARE (NORTHERN) LIMITED,Childrens Services,Children's Services,Childrens Homes Outside Local Authority Fees,,03/10/2019,600,321000,Social Community Care Supplies & Services - Adult
5355917,FUSION CARE,Adult Social Care,Adults,Homecare Fees,,03/10/2019,"2,780.00",321100,Social Community Care Supplies & Services - Children
5354325,KALEIDOSCOPE CARE (NORTHERN) LIMITED,Childrens Services,Children's Services,Childrens Homes Outside Local Authority Fees,,03/10/2019,"2,700.00",321000,Social Community Care Supplies & Services - Adult
5354324,KALEIDOSCOPE CARE (NORTHERN) LIMITED,Childrens Services,Children's Services,Childrens Homes Outside Local Authority Fees,,03/10/2019,"8,485.71",321000,Social Community Care Supplies & Services - Adult
5354322,KALEIDOSCOPE CARE (NORTHERN) LIMITED,Childrens Services,Children's Services,Childrens Homes Outside Local Authority Fees,,03/10/2019,600,321000,Social Community Care Supplies & Services - Adult
5354264,KEYS CHILDCARE LTD,Education,Children's Services,#N/A,,03/10/2019,"14,250.00",321100,Social Community Care Supplies & Services - Children
5354315,PROFILE SECURITY SERVICES LIMITED,Operations and Neighbourhoods,Operations and Neighbourhoods,Security Services,,03/10/2019,"3,300.96",190000,Facilities & Management Services
5354752,MEADOWS CARE LIMITED,Childrens Services,Children's Services,Childrens Homes Outside Local Authority Fees,Redacted Supplier,03/10/2019,"15,000.00",321000,Social Community Care Supplies & Services - Adult
5356314,ASHTON CHURCH OF THE NAZARENE,Childrens Services,Children's Services,Room Hire,,03/10/2019,975,400000,Non 3rd Party spend  
5354313,ORACLE CARE LTD,Childrens Services,Children's Services,Childrens Homes Outside Local Authority Fees,,03/10/2019,"19,500.00",321100,Social Community Care Supplies & Services - Children
5354756,Sanctuary Personnel Trading as Skylakes,Childrens Services,Children's Services,Professional Services,,04/10/2019,"17,723.72",321100,Social Community Care Supplies & Services - Children
5354766,Just One Recruitment and Training,Childrens Services,Children's Services,Living With Formal Support,,04/10/2019,507.24,321000,Social Community Care Supplies & Services - Adult
5354556,Excel Fostering Limited,Childrens Services,Children's Services,Foster Carer Agency Fees,,04/10/2019,"2,921.40",-999999,Unclassifiable
5354575,HORIZON SEMI-INDEPENDENT SUPPORT,Childrens Services,Children's Services,Living With Formal Support,,04/10/2019,"4,400.00",321000,Social Community Care Supplies & Services - Adult
5354764,Just One Recruitment and Training,Childrens Services,Children's Services,Living With Formal Support,,04/10/2019,507.24,321000,Social Community Care Supplies & Services - Adult
5354381,Pertemps Professional Recruitment Limited,Childrens Services,Children's Services,Agency Staff,,04/10/2019,"1,427.76",321100,Social Community Care Supplies & Services - Children
5354382,Pertemps Professional Recruitment Limited,Childrens Services,Children's Services,Agency Staff,,04/10/2019,"1,427.76",321100,Social Community Care Supplies & Services - Children
5354819,S & M Builders,Place,Growth,Engineers Works,,04/10/2019,"1,749.00",390000,"Works - Construction, Repair & Maintenance"
5354516,DHL Parcel UK Ltd (UK Mail),Exchequer,Governance,Printing And Stationery,,04/10/2019,"1,288.92",300000,Mail Services
5354796,SMS Coaching LTD,Education,Children's Services,Non-Maintained School Fees,,04/10/2019,"7,600.00",-999999,Unclassifiable
5354805,Northern Community Pathways Limited,Childrens Services,Children's Services,Living With Formal Support,,04/10/2019,"1,158.75",321100,Social Community Care Supplies & Services - Children
5354829,Northern Community Pathways Limited,Childrens Services,Children's Services,Living With Formal Support,,04/10/2019,"1,905.00",321100,Social Community Care Supplies & Services - Children
5355594,Oasis Adolescent Services,Childrens Services,Children's Services,Childrens Homes Outside Local Authority Fees,,04/10/2019,"21,428.70",-999999,Unclassifiable
5354572,Excel Fostering Limited,Childrens Services,Children's Services,Foster Carer Agency Fees,,04/10/2019,"3,167.49",-999999,Unclassifiable
5354571,Excel Fostering Limited,Childrens Services,Children's Services,Foster Carer Agency Fees,,04/10/2019,"3,145.50",-999999,Unclassifiable
5354570,Excel Fostering Limited,Childrens Services,Children's Services,Foster Carer Agency Fees,,04/10/2019,"2,921.40",-999999,Unclassifiable
5354830,Exclusive Secure Care Services,Childrens Services,Children's Services,Childrens Homes Outside Local Authority Fees,,04/10/2019,"4,313.20",321100,Social Community Care Supplies & Services - Children
5354450,Exclusive Secure Care Services,Childrens Services,Children's Services,Childrens Homes Outside Local Authority Fees,,04/10/2019,"4,800.00",321100,Social Community Care Supplies & Services - Children
5354463,PARALLEL PARENTS,Childrens Services,Children's Services,Foster Carer Agency Fees,,04/10/2019,"3,310.18",321100,Social Community Care Supplies & Services - Children
5354474,PARALLEL PARENTS,Childrens Services,Children's Services,Foster Carer Agency Fees,,04/10/2019,"3,211.60",321100,Social Community Care Supplies & Services - Children
5354459,PARALLEL PARENTS,Childrens Services,Children's Services,Foster Carer Agency Fees,,04/10/2019,"3,211.60",321100,Social Community Care Supplies & Services - Children
5354472,PARALLEL PARENTS,Childrens Services,Children's Services,Foster Carer Agency Fees,,04/10/2019,"3,212.53",321100,Social Community Care Supplies & Services - Children
5354480,PARALLEL PARENTS,Childrens Services,Children's Services,Foster Carer Agency Fees,,04/10/2019,"3,348.00",321100,Social Community Care Supplies & Services - Children
5354454,PARALLEL PARENTS,Childrens Services,Children's Services,Foster Carer Agency Fees,,04/10/2019,"3,348.00",321100,Social Community Care Supplies & Services - Children
5354446,PARALLEL PARENTS,Childrens Services,Children's Services,Foster Carer Agency Fees,,04/10/2019,"2,864.40",321100,Social Community Care Supplies & Services - Children
5354437,PARALLEL PARENTS,Childrens Services,Children's Services,Foster Carer Agency Fees,,04/10/2019,"3,527.18",321100,Social Community Care Supplies & Services - Children
5354451,PARALLEL PARENTS,Childrens Services,Children's Services,Foster Carer Agency Fees,,04/10/2019,"3,527.18",321100,Social Community Care Supplies & Services - Children
5354471,PARALLEL PARENTS,Childrens Services,Children's Services,Foster Carer Agency Fees,,04/10/2019,"3,527.18",321100,Social Community Care Supplies & Services - Children
5354457,PARALLEL PARENTS,Childrens Services,Children's Services,Foster Carer Agency Fees,,04/10/2019,"2,269.50",321100,Social Community Care Supplies & Services - Children
5354453,PARALLEL PARENTS,Childrens Services,Children's Services,Foster Carer Agency Fees,,04/10/2019,"3,180.60",321100,Social Community Care Supplies & Services - Children
5354577,HORIZON SEMI-INDEPENDENT SUPPORT,Childrens Services,Children's Services,Living With Formal Support,,04/10/2019,"3,600.00",321000,Social Community Care Supplies & Services - Adult
5354478,PARALLEL PARENTS,Childrens Services,Children's Services,Foster Carer Agency Fees,,04/10/2019,"5,314.33",321100,Social Community Care Supplies & Services - Children
5354449,PARALLEL PARENTS,Childrens Services,Children's Services,Foster Carer Agency Fees,,04/10/2019,"2,982.20",321100,Social Community Care Supplies & Services - Children
5354670,INDUSTRIAL WATER TRAINING SERVICES LTD,Operations and Neighbourhoods,Operations and Neighbourhoods,Training Course Costs,,04/10/2019,800,260000,Human Resources
5354415,DALEPEAK LTD,Childrens Services,Children's Services,Childrens Homes Outside Local Authority Fees,Redacted Supplier,04/10/2019,"12,621.00",329999,Social Community Care Supplies & Services
5354476,PARALLEL PARENTS,Childrens Services,Children's Services,Foster Carer Agency Fees,,04/10/2019,"3,622.35",321100,Social Community Care Supplies & Services - Children
5355615,DALEPEAK LTD,Childrens Services,Children's Services,Childrens Homes Outside Local Authority Fees,Redacted Supplier,04/10/2019,"12,621.00",329999,Social Community Care Supplies & Services
5354430,Redacted,Childrens Services,Children's Services,Nursery Services,,04/10/2019,539.5,-999999,Unclassifiable
5354772,PLATINUM STAIRLIFTS LIMITED,Housing,Director of Place,Improvement Grants - Final Mandatory,,04/10/2019,"3,956.25",321000,Social Community Care Supplies & Services - Adult
5354773,PLATINUM STAIRLIFTS LIMITED,Housing,Director of Place,Improvement Grants - Final Mandatory,,04/10/2019,"2,548.75",UNCLASS,Unclassifiable
5354853,WEIGHTMANS LLP,Childrens Services,Children's Services,Legal Fees,,04/10/2019,610,-999999,Unclassifiable
5354861,WEIGHTMANS LLP,Childrens Services,Children's Services,Legal Fees,,04/10/2019,975,-999999,Unclassifiable
5354854,WEIGHTMANS LLP,Childrens Services,Children's Services,Legal Fees,,04/10/2019,"2,713.00",-999999,Unclassifiable
5354852,WEIGHTMANS LLP,Childrens Services,Children's Services,Legal Fees,,04/10/2019,550,-999999,Unclassifiable
5354862,WEIGHTMANS LLP,Childrens Services,Children's Services,Legal Fees,,04/10/2019,667,-999999,Unclassifiable
5354902,TUDOR (UK) LTD T/A TUDOR ENVIRONMENTAL,Operations and Neighbourhoods,Operations and Neighbourhoods,General Equipment Purchase,,04/10/2019,567.5,240000,Horticultural
5354563,LIGHTBULB PSYCHOLOGY LTD,Education,Children's Services,Professional Services,,04/10/2019,"1,100.00",150000,Consultancy
5354794,SAFFER COOPER CONSULTANCY,Place,Growth,Professional Consultancy Services,,04/10/2019,643.5,150000,Consultancy
5354411,DALEPEAK LTD,Childrens Services,Children's Services,Childrens Homes Outside Local Authority Fees,Redacted Supplier,04/10/2019,"12,621.00",329999,Social Community Care Supplies & Services
5354421,CIPFA - PENNA (PENNA PLC),Place,Growth,Agency Staff,,04/10/2019,"9,100.00",260000,Human Resources
5354418,CIPFA - PENNA (PENNA PLC),Place,Growth,Agency Staff,,04/10/2019,"12,000.00",260000,Human Resources
5356143,INSPIREDSPACES TAMESIDE LTD,(blank),(blank),New Accommodation Works,,04/10/2019,"100,521.30",390000,"Works - Construction, Repair & Maintenance"
5356148,INSPIREDSPACES TAMESIDE LTD,(blank),(blank),New Accommodation Works,,04/10/2019,"103,634.62",390000,"Works - Construction, Repair & Maintenance"
5356145,INSPIREDSPACES TAMESIDE LTD,(blank),(blank),Fees,,04/10/2019,"1,700.00",390000,"Works - Construction, Repair & Maintenance"
5356147,INSPIREDSPACES TAMESIDE LTD,(blank),(blank),Fees,,04/10/2019,"1,700.00",390000,"Works - Construction, Repair & Maintenance"
5356385,PYRAMID SCHOOLS (TAMESIDE) LTD,Place,Growth,PFI FM Fees and Insurance Costs,,04/10/2019,"4,349.93",390000,"Works - Construction, Repair & Maintenance"
5354665,DURHAM COUNTY COUNCIL,Childrens Services,Children's Services,Childrens Homes Outside Local Authority Fees,,04/10/2019,"31,806.00",UNCLASS,Unclassifiable
5354842,MEDACS HEALTHCARE,Adult Social Care,Adults,Homecare Fees,,04/10/2019,"20,440.99",150000,Consultancy
5354840,MEDACS HEALTHCARE,Adult Social Care,Adults,Homecare Fees,,04/10/2019,"20,185.79",150000,Consultancy
5354385,MEDACS HEALTHCARE,Adult Social Care,Adults,Homecare Fees,,04/10/2019,"19,379.01",150000,Consultancy
5354759,THE ADOLESCENT & CHILDRENS TRUST,Childrens Services,Children's Services,Foster Carer Agency Fees,,04/10/2019,"3,348.00",321100,Social Community Care Supplies & Services - Children
5354749,THE ADOLESCENT & CHILDRENS TRUST,Childrens Services,Children's Services,Foster Carer Agency Fees,,04/10/2019,"3,281.04",321100,Social Community Care Supplies & Services - Children
5354751,THE ADOLESCENT & CHILDRENS TRUST,Childrens Services,Children's Services,Foster Carer Agency Fees,,04/10/2019,"3,281.04",321100,Social Community Care Supplies & Services - Children
5354747,THE ADOLESCENT & CHILDRENS TRUST,Childrens Services,Children's Services,Foster Carer Agency Fees,,04/10/2019,"3,327.85",321100,Social Community Care Supplies & Services - Children
5354579,HORIZON SEMI-INDEPENDENT SUPPORT,Childrens Services,Children's Services,Living With Formal Support,,04/10/2019,"3,800.00",321000,Social Community Care Supplies & Services - Adult
5354689,NPOWER LIMITED,Operations and Neighbourhoods,Operations and Neighbourhoods,Electricity,,04/10/2019,"1,827.66",370000,Utilities
5354693,SWIIS FOSTER CARE LTD,Childrens Services,Children's Services,Foster Carer Agency Fees,,04/10/2019,760.48,321100,Social Community Care Supplies & Services - Children
5354627,SWIIS FOSTER CARE LTD,Childrens Services,Children's Services,Foster Carer Agency Fees,,04/10/2019,658.84,321100,Social Community Care Supplies & Services - Children
5354634,SWIIS FOSTER CARE LTD,Childrens Services,Children's Services,Foster Carer Agency Fees,,04/10/2019,899.99,321100,Social Community Care Supplies & Services - Children
5355592,SWIIS FOSTER CARE LTD,Childrens Services,Children's Services,Foster Carer Agency Fees,,04/10/2019,796.11,321100,Social Community Care Supplies & Services - Children
5354632,SWIIS FOSTER CARE LTD,Childrens Services,Children's Services,Foster Carer Agency Fees,,04/10/2019,703.92,321100,Social Community Care Supplies & Services - Children
5354636,SWIIS FOSTER CARE LTD,Childrens Services,Children's Services,Foster Carer Agency Fees,,04/10/2019,837.97,321100,Social Community Care Supplies & Services - Children
5354629,SWIIS FOSTER CARE LTD,Childrens Services,Children's Services,Foster Carer Agency Fees,,04/10/2019,693.49,321100,Social Community Care Supplies & Services - Children
5354838,P MCGUINNESS & CO LTD,(blank),(blank),Engineers -External,,04/10/2019,"3,380.00",390000,"Works - Construction, Repair & Maintenance"
5354360,CORONA ENERGY RETAIL 4 LIMITED,Place,Growth,Gas,,04/10/2019,"1,454.36",370000,Utilities
5354359,CORONA ENERGY RETAIL 4 LIMITED,Place,Growth,Gas,,04/10/2019,"21,224.76",370000,Utilities
5354876,QUALITY PROTECTS CHILDREN LTD,Childrens Services,Children's Services,Childrens Homes Outside Local Authority Fees,,04/10/2019,"31,000.00",-999999,Unclassifiable
5354694,NPOWER LIMITED,Operations and Neighbourhoods,Operations and Neighbourhoods,Electricity,,04/10/2019,"3,480.33",370000,Utilities
5354652,NPOWER LIMITED,Operations and Neighbourhoods,Operations and Neighbourhoods,Electricity,,04/10/2019,"5,442.27",370000,Utilities
5354774,H JENKINSON & CO LTD,Place,Growth,Fixtures & Fittings Purchase,,04/10/2019,"33,625.78",210000,Furniture & Soft Furnishings
5356641,STAMFORD PROPERTIES,Adult Social Care,Adults,Non-Authority Accommodation Rental,,04/10/2019,"2,494.72",-999999,Unclassifiable
5356640,STAMFORD PROPERTIES,Adult Social Care,Adults,Non-Authority Accommodation Rental,,04/10/2019,"1,006.80",-999999,Unclassifiable
5354645,Water Plus,Place,Growth,Metered Water Costs,,04/10/2019,626.53,370000,Utilities
5354608,Water Plus,Place,Growth,Metered Water Costs,,04/10/2019,"2,357.13",370000,Utilities
5354649,Water Plus,Operations and Neighbourhoods,Operations and Neighbourhoods,Metered Water Costs,,04/10/2019,"2,134.79",370000,Utilities
5354642,Water Plus,Place,Growth,Metered Water Costs,,04/10/2019,"1,343.21",370000,Utilities
5354648,Water Plus,Place,Growth,Metered Water Costs,,04/10/2019,945.85,370000,Utilities
5354607,Water Plus,Place,Growth,Metered Water Costs,,04/10/2019,"3,058.03",370000,Utilities
5354779,Water Plus,Operations and Neighbourhoods,Operations and Neighbourhoods,Metered Water Costs,,04/10/2019,"1,030.55",370000,Utilities
5354779,Water Plus,Place,Growth,Metered Water Costs,,04/10/2019,"1,423.48",370000,Utilities
5354631,Water Plus,Operations and Neighbourhoods,Operations and Neighbourhoods,Metered Water Costs,,04/10/2019,783.84,370000,Utilities
5354641,Water Plus,Place,Growth,Metered Water Costs,,04/10/2019,"1,366.41",370000,Utilities
5354605,Water Plus,Place,Growth,Metered Water Costs,,04/10/2019,"2,231.34",370000,Utilities
5354622,Water Plus,Place,Growth,Metered Water Costs,,04/10/2019,541.37,370000,Utilities
5354413,DALEPEAK LTD,Childrens Services,Children's Services,Childrens Homes Outside Local Authority Fees,Redacted Supplier,04/10/2019,"12,621.00",329999,Social Community Care Supplies & Services
5354420,CAPSTONE FOSTER CARE,Childrens Services,Children's Services,Foster Carer Agency Fees,,04/10/2019,"3,835.80",321000,Social Community Care Supplies & Services - Adult
5354619,K P DODD CONSTRUCTION LTD,Housing,Director of Place,Improvement Grants - Final Mandatory,,04/10/2019,820,390000,"Works - Construction, Repair & Maintenance"
5354428,CAPSTONE FOSTER CARE,Childrens Services,Children's Services,Foster Carer Agency Fees,,04/10/2019,"3,177.90",321000,Social Community Care Supplies & Services - Adult
5354588,CARE TODAY,Childrens Services,Children's Services,Childrens Homes Outside Local Authority Fees,Redacted Supplier,04/10/2019,"8,672.17",321100,Social Community Care Supplies & Services - Children
5354758,EQUIFAX LTD,Hosted Services,Hosted Services,Professional Services,,04/10/2019,"1,219.08",200000,Financial Services
5354373,MAGNA BOOK LTD,Operations and Neighbourhoods,Operations and Neighbourhoods,Purchase Books,,04/10/2019,567.4,170000,Education
5354763,ULVERSCROFT LARGE PRINT  BOOKS LTD,Operations and Neighbourhoods,Operations and Neighbourhoods,Purchase Books,,04/10/2019,827.98,170000,Education
5354369,M.C. & M.A. STEWART HAULAGE LTD,Operations and Neighbourhoods,Operations and Neighbourhoods,General Materials,,04/10/2019,"1,315.88",240000,Horticultural
5354371,M.C. & M.A. STEWART HAULAGE LTD,Operations and Neighbourhoods,Operations and Neighbourhoods,General Materials,,04/10/2019,688.45,240000,Horticultural
5354370,M.C. & M.A. STEWART HAULAGE LTD,Operations and Neighbourhoods,Operations and Neighbourhoods,General Materials,,04/10/2019,"1,605.63",240000,Horticultural
5354443,CAPSTONE FOSTER CARE,Childrens Services,Children's Services,Foster Carer Agency Fees,,04/10/2019,"3,182.65",321000,Social Community Care Supplies & Services - Adult
5354426,CAPSTONE FOSTER CARE,Childrens Services,Children's Services,Foster Carer Agency Fees,,04/10/2019,"3,177.90",321000,Social Community Care Supplies & Services - Adult
5354427,CAPSTONE FOSTER CARE,Childrens Services,Children's Services,Foster Carer Agency Fees,,04/10/2019,"3,177.90",321000,Social Community Care Supplies & Services - Adult
5354881,GLASDON UK LTD,Operations and Neighbourhoods,Operations and Neighbourhoods,General Materials,,04/10/2019,589.18,230000,Highway Equipment & Materials
5354431,CAPSTONE FOSTER CARE,Childrens Services,Children's Services,Foster Carer Agency Fees,,04/10/2019,"3,177.90",321000,Social Community Care Supplies & Services - Adult
5354434,CAPSTONE FOSTER CARE,Childrens Services,Children's Services,Foster Carer Agency Fees,,04/10/2019,"3,177.90",321000,Social Community Care Supplies & Services - Adult
5354425,CAPSTONE FOSTER CARE,Childrens Services,Children's Services,Foster Carer Agency Fees,,04/10/2019,"3,686.96",321000,Social Community Care Supplies & Services - Adult
5354429,CAPSTONE FOSTER CARE,Childrens Services,Children's Services,Foster Carer Agency Fees,,04/10/2019,"3,686.96",321000,Social Community Care Supplies & Services - Adult
5354432,CAPSTONE FOSTER CARE,Childrens Services,Children's Services,Foster Carer Agency Fees,,04/10/2019,"3,686.96",321000,Social Community Care Supplies & Services - Adult
5354433,CAPSTONE FOSTER CARE,Childrens Services,Children's Services,Foster Carer Agency Fees,,04/10/2019,"3,686.96",321000,Social Community Care Supplies & Services - Adult
5354444,CAPSTONE FOSTER CARE,Childrens Services,Children's Services,Foster Carer Agency Fees,,04/10/2019,"3,385.80",321000,Social Community Care Supplies & Services - Adult
5354423,CAPSTONE FOSTER CARE,Childrens Services,Children's Services,Foster Carer Agency Fees,,04/10/2019,"3,420.00",321000,Social Community Care Supplies & Services - Adult
5354424,CAPSTONE FOSTER CARE,Childrens Services,Children's Services,Foster Carer Agency Fees,,04/10/2019,"3,420.00",321000,Social Community Care Supplies & Services - Adult
5354419,CAPSTONE FOSTER CARE,Childrens Services,Children's Services,Foster Carer Agency Fees,,04/10/2019,"3,420.00",321000,Social Community Care Supplies & Services - Adult
5354445,CAPSTONE FOSTER CARE,Childrens Services,Children's Services,Foster Carer Agency Fees,,04/10/2019,"3,420.00",321000,Social Community Care Supplies & Services - Adult
5354438,CAPSTONE FOSTER CARE,Childrens Services,Children's Services,Foster Carer Agency Fees,,04/10/2019,"3,797.44",321000,Social Community Care Supplies & Services - Adult
5354439,CAPSTONE FOSTER CARE,Childrens Services,Children's Services,Foster Carer Agency Fees,,04/10/2019,"3,797.44",321000,Social Community Care Supplies & Services - Adult
5354440,CAPSTONE FOSTER CARE,Childrens Services,Children's Services,Foster Carer Agency Fees,,04/10/2019,"3,797.44",321000,Social Community Care Supplies & Services - Adult
5355596,CAPSTONE FOSTER CARE,Childrens Services,Children's Services,Foster Carer Agency Fees,,04/10/2019,"3,295.80",321000,Social Community Care Supplies & Services - Adult
5354422,CAPSTONE FOSTER CARE,Childrens Services,Children's Services,Foster Carer Agency Fees,,04/10/2019,"3,835.80",321000,Social Community Care Supplies & Services - Adult
5354442,PARALLEL PARENTS,Childrens Services,Children's Services,Foster Carer Agency Fees,,04/10/2019,"3,622.35",321100,Social Community Care Supplies & Services - Children
5354597,CLEAPSS,Education,Children's Services,Subscriptions,,04/10/2019,"2,982.12",170000,Education
5354827,JOHN PACKER LIMITED,Education,Children's Services,Musical Instruments,,04/10/2019,"2,000.00",321100,Social Community Care Supplies & Services - Children
5354535,FOSTERING SOLUTIONS LTD,Childrens Services,Children's Services,Foster Carer Agency Fees,,04/10/2019,"2,978.70",321000,Social Community Care Supplies & Services - Adult
5354540,FOSTERING SOLUTIONS LTD,Childrens Services,Children's Services,Foster Carer Agency Fees,,04/10/2019,"3,195.99",321000,Social Community Care Supplies & Services - Adult
5354541,FOSTERING SOLUTIONS LTD,Childrens Services,Children's Services,Foster Carer Agency Fees,,04/10/2019,"2,829.76",321000,Social Community Care Supplies & Services - Adult
5354544,FOSTERING SOLUTIONS LTD,Childrens Services,Children's Services,Foster Carer Agency Fees,,04/10/2019,"2,829.76",321000,Social Community Care Supplies & Services - Adult
5354546,FOSTERING SOLUTIONS LTD,Childrens Services,Children's Services,Foster Carer Agency Fees,,04/10/2019,"2,829.76",321000,Social Community Care Supplies & Services - Adult
5354533,FOSTERING SOLUTIONS LTD,Childrens Services,Children's Services,Foster Carer Agency Fees,,04/10/2019,"2,890.76",321000,Social Community Care Supplies & Services - Adult
5354548,FOSTERING SOLUTIONS LTD,Childrens Services,Children's Services,Foster Carer Agency Fees,,04/10/2019,"3,388.20",321000,Social Community Care Supplies & Services - Adult
5354526,FOSTERING SOLUTIONS LTD,Childrens Services,Children's Services,Foster Carer Agency Fees,,04/10/2019,"3,492.90",321000,Social Community Care Supplies & Services - Adult
5354536,FOSTERING SOLUTIONS LTD,Childrens Services,Children's Services,Foster Carer Agency Fees,,04/10/2019,"3,236.74",321000,Social Community Care Supplies & Services - Adult
5354350,SAFEHOUSES NORTH LIMITED,Childrens Services,Children's Services,Foster Carer Agency Fees,,04/10/2019,"3,456.60",321100,Social Community Care Supplies & Services - Children
5354351,SAFEHOUSES NORTH LIMITED,Childrens Services,Children's Services,Foster Carer Agency Fees,,04/10/2019,"3,638.70",321100,Social Community Care Supplies & Services - Children
5356487,GREENSCAPE,Operations and Neighbourhoods,Operations and Neighbourhoods,General Materials,,04/10/2019,"3,980.00",390000,"Works - Construction, Repair & Maintenance"
5354802,Redacted,People and Workforce Development,Governance,Training Course Costs,,04/10/2019,800,260000,Human Resources
5354849,SEASHELL TRUST,Education,Children's Services,Non-Maintained School Fees,,04/10/2019,"27,987.81",321000,Social Community Care Supplies & Services - Adult
5354851,SEASHELL TRUST,Education,Children's Services,Non-Maintained School Fees,,04/10/2019,"18,466.02",321000,Social Community Care Supplies & Services - Adult
5354893,SEASHELL TRUST,Education,Children's Services,Non-Maintained School Fees,,04/10/2019,"16,260.75",321000,Social Community Care Supplies & Services - Adult
5356524,BLACK & WHITE PROMOTIONAL PRINT SERVICES,Policy and Communications,Governance,Printing And Stationery,,04/10/2019,910.3,190000,Facilities & Management Services
5354475,A & G BUILDING & JOINERY SERVICES LTD,Housing,Director of Place,Adaptations - Jobs <#500,,04/10/2019,650,390000,"Works - Construction, Repair & Maintenance"
5356696,OAKFIELDS CHILDRENS CARE,Childrens Services,Children's Services,Childrens Homes Outside Local Authority Fees,,04/10/2019,"15,778.57",321100,Social Community Care Supplies & Services - Children
5356693,OAKFIELDS CHILDRENS CARE,Childrens Services,Children's Services,Childrens Homes Outside Local Authority Fees,,04/10/2019,"18,800.00",321100,Social Community Care Supplies & Services - Children
5356694,OAKFIELDS CHILDRENS CARE,Childrens Services,Children's Services,Childrens Homes Outside Local Authority Fees,,04/10/2019,"18,800.00",321100,Social Community Care Supplies & Services - Children
5354768,Randstad Public Services Limited,Education,Children's Services,Agency Staff,,04/10/2019,572.5,170000,Education
5354558,Randstad Public Services Limited,Education,Children's Services,Agency Staff,,04/10/2019,572.5,170000,Education
5354767,Randstad Public Services Limited,Education,Children's Services,Agency Staff,,04/10/2019,617.75,170000,Education
5354809,Randstad Public Services Limited,Education,Children's Services,Agency Staff,,04/10/2019,"1,250.00",170000,Education
5354810,Randstad Public Services Limited,Education,Children's Services,Agency Staff,,04/10/2019,"1,250.00",170000,Education
5354801,Redacted,People and Workforce Development,Governance,Training Course Costs,,04/10/2019,800,260000,Human Resources
5354859,Randstad Public Services Limited,Education,Children's Services,Agency Staff,,04/10/2019,"1,250.00",170000,Education
5354524,iCare Solutions,Adult Social Care,Adults,Homecare Fees,,04/10/2019,"6,242.82",310000,Healthcare
5353925,Medgen Limited,Childrens Services,Children's Services,Homecare Fees,,04/10/2019,"1,008.00",260000,Human Resources
5354797,Skybound Therapies,Education,Children's Services,#N/A,,04/10/2019,"2,206.08",170000,Education
5354436,CAPSTONE FOSTER CARE,Childrens Services,Children's Services,Foster Carer Agency Fees,,04/10/2019,"3,835.80",321000,Social Community Care Supplies & Services - Adult
5357126,Your Law LLP,Multiple Heads of Service,Multiple Strategic Directorates,Claims Settled,,04/10/2019,"4,026.70",400000,Non 3rd Party spend  
5354403,APS Group,Operations and Neighbourhoods,Operations and Neighbourhoods,Professional Medical Services,,04/10/2019,"1,194.48",-999999,Unclassifiable
5354824,Independent Together Limited,Childrens Services,Children's Services,Living With Formal Support,,04/10/2019,"2,892.86",321000,Social Community Care Supplies & Services - Adult
5354803,Independent Together Limited,Childrens Services,Children's Services,Living With Formal Support,,04/10/2019,"2,550.00",321000,Social Community Care Supplies & Services - Adult
5354812,Independent Together Limited,Childrens Services,Children's Services,Living With Formal Support,,04/10/2019,"3,060.00",321000,Social Community Care Supplies & Services - Adult
5354811,Independent Together Limited,Childrens Services,Children's Services,Living With Formal Support,,04/10/2019,"2,121.43",321000,Social Community Care Supplies & Services - Adult
5354617,Redacted,Education,Children's Services,#N/A,,04/10/2019,"2,112.00",400000,Non 3rd Party spend  
5354614,Redacted,Education,Children's Services,#N/A,,04/10/2019,525,400000,Non 3rd Party spend  
5354615,Redacted,Education,Children's Services,#N/A,,04/10/2019,525,400000,Non 3rd Party spend  
5354529,A1 Foster Care,Childrens Services,Children's Services,Foster Carer Agency Fees,,04/10/2019,"3,542.86",321100,Social Community Care Supplies & Services - Children
5354531,A1 Foster Care,Childrens Services,Children's Services,Foster Carer Agency Fees,,04/10/2019,"3,542.86",321100,Social Community Care Supplies & Services - Children
5354789,iCare Solutions,Adult Social Care,Adults,Homecare Fees,,04/10/2019,"1,307.53",310000,Healthcare
5354843,Medgen Limited,Childrens Services,Children's Services,Homecare Fees,,04/10/2019,579.6,260000,Human Resources
5354807,Fat Media Ltd,Policy and Communications,Governance,Computer Software Maintenance Costs,,04/10/2019,"1,890.00",270000,Information Communication Technology
5354770,YOUNG PEOPLE FIRST LIMITED,Childrens Services,Children's Services,Living With Formal Support,,04/10/2019,"5,838.00",321100,Social Community Care Supplies & Services - Children
5354404,PENNINE CARE NHS TRUST,Population Health,Population Health,Professional Services,,04/10/2019,"8,207.44",321000,Social Community Care Supplies & Services - Adult
5354405,PENNINE CARE NHS TRUST,Population Health,Population Health,Professional Services,,04/10/2019,"16,941.73",321000,Social Community Care Supplies & Services - Adult
5354406,PENNINE CARE NHS TRUST,Population Health,Population Health,Professional Services,,04/10/2019,"85,245.02",321000,Social Community Care Supplies & Services - Adult
5354409,Beacon Counselling,People and Workforce Development,Governance,Professional Medical Services,,04/10/2019,"2,600.00",310000,Healthcare
5354825,KBW Barristers Chambers,Childrens Services,Children's Services,Legal Fees,,04/10/2019,800,280000,Legal Services
5356371,Hive North Theatre Company,Operations and Neighbourhoods,Operations and Neighbourhoods,General Materials,,04/10/2019,"6,000.00",260000,Human Resources
5354790,SKILLS FORWARD,Place,Growth,Examination Fees,,04/10/2019,"2,400.00",190000,Facilities & Management Services
5354596,ADOPTION MATTERS NORTHWEST,Childrens Services,Children's Services,Adoption Agency Fees,,04/10/2019,"1,754.00",321100,Social Community Care Supplies & Services - Children
5354538,NETCARE EUROPE LTD,Operations and Neighbourhoods,Operations and Neighbourhoods,Building Works,,04/10/2019,"6,495.00",-999999,Unclassifiable
5354879,TURNING POINT SERVICES LIMITED,Adult Social Care,Adults,Homecare Fees,,04/10/2019,681.6,321000,Social Community Care Supplies & Services - Adult
5354816,ENABLING FUTURES LTD,Childrens Services,Children's Services,Childrens Homes Outside Local Authority Fees,,04/10/2019,"15,057.14",321100,Social Community Care Supplies & Services - Children
5354715,THREE CIRCLES FOSTERING LTD,Childrens Services,Children's Services,Foster Carer Agency Fees,,04/10/2019,"1,802.43",321100,Social Community Care Supplies & Services - Children
5354698,THREE CIRCLES FOSTERING LTD,Childrens Services,Children's Services,Foster Carer Agency Fees,,04/10/2019,"3,875.00",321100,Social Community Care Supplies & Services - Children
5354745,THREE CIRCLES FOSTERING LTD,Childrens Services,Children's Services,Foster Carer Agency Fees,,04/10/2019,"2,781.81",321100,Social Community Care Supplies & Services - Children
5354742,THREE CIRCLES FOSTERING LTD,Childrens Services,Children's Services,Foster Carer Agency Fees,,04/10/2019,"3,534.00",321100,Social Community Care Supplies & Services - Children
5354748,THREE CIRCLES FOSTERING LTD,Childrens Services,Children's Services,Foster Carer Agency Fees,,04/10/2019,"3,534.00",321100,Social Community Care Supplies & Services - Children
5354523,THREE CIRCLES FOSTERING LTD,Childrens Services,Children's Services,Foster Carer Agency Fees,,04/10/2019,"3,534.00",321100,Social Community Care Supplies & Services - Children
5354710,THREE CIRCLES FOSTERING LTD,Childrens Services,Children's Services,Foster Carer Agency Fees,,04/10/2019,"3,534.00",321100,Social Community Care Supplies & Services - Children
5354729,THREE CIRCLES FOSTERING LTD,Childrens Services,Children's Services,Foster Carer Agency Fees,,04/10/2019,"2,900.71",321100,Social Community Care Supplies & Services - Children
5354719,THREE CIRCLES FOSTERING LTD,Childrens Services,Children's Services,Foster Carer Agency Fees,,04/10/2019,"5,301.00",321100,Social Community Care Supplies & Services - Children
5354562,THE COPYRIGHT LICENSING AGENCY LTD,Hosted Services,Hosted Services,Licences,,04/10/2019,"8,021.64",280000,Legal Services
5354743,THREE CIRCLES FOSTERING LTD,Childrens Services,Children's Services,Foster Carer Agency Fees,,04/10/2019,"2,945.66",321100,Social Community Care Supplies & Services - Children
5354740,THREE CIRCLES FOSTERING LTD,Childrens Services,Children's Services,Foster Carer Agency Fees,,04/10/2019,"2,781.81",321100,Social Community Care Supplies & Services - Children
5354723,THREE CIRCLES FOSTERING LTD,Childrens Services,Children's Services,Foster Carer Agency Fees,,04/10/2019,"3,387.86",321100,Social Community Care Supplies & Services - Children
5354564,THREE CIRCLES FOSTERING LTD,Childrens Services,Children's Services,Foster Carer Agency Fees,,04/10/2019,"3,697.86",321100,Social Community Care Supplies & Services - Children
5354725,THREE CIRCLES FOSTERING LTD,Childrens Services,Children's Services,Foster Carer Agency Fees,,04/10/2019,"3,077.86",321100,Social Community Care Supplies & Services - Children
5354518,BRAMHALL SURFACING LTD,(blank),(blank),Engineers -External,,04/10/2019,"12,007.36",390000,"Works - Construction, Repair & Maintenance"
5354894,CARE 4 CHILDREN RESIDENTIAL SERVICES LTD,Childrens Services,Children's Services,Foster Carer Agency Fees,,04/10/2019,"3,479.10",321100,Social Community Care Supplies & Services - Children
5354895,CARE 4 CHILDREN RESIDENTIAL SERVICES LTD,Childrens Services,Children's Services,Foster Carer Agency Fees,,04/10/2019,"3,351.90",321100,Social Community Care Supplies & Services - Children
5357461,ABLE CARE AND SUPPORT SERVICES LTD,Adult Social Care,Adults,Homecare Fees,,04/10/2019,"40,400.16",321000,Social Community Care Supplies & Services - Adult
5354896,CARE 4 CHILDREN RESIDENTIAL SERVICES LTD,Childrens Services,Children's Services,Foster Carer Agency Fees,,04/10/2019,"3,351.90",321100,Social Community Care Supplies & Services - Children
5354468,SOCIAL CARE SERVICES (CLAYTON) LTD,Childrens Services,Children's Services,Living With Formal Support,Redacted Supplier,04/10/2019,"4,592.65",321000,Social Community Care Supplies & Services - Adult
5356870,REDDIPAK LIMITED,Operations and Neighbourhoods,Operations and Neighbourhoods,General Office Expenses,,04/10/2019,923,-999999,Unclassifiable
5354352,ENERGYST RENTAL SOLUTIONS LP,GMPF (FX),GMPF (FX),General Lease,,04/10/2019,"1,000.00",290000,Arts & Leisure Services
5356682,HUGH MASON PROPERTIES LIMITED,Adult Social Care,Adults,Non-Authority Accommodation Rental,,04/10/2019,"2,663.10",190000,Facilities & Management Services
5356681,HUGH MASON PROPERTIES LIMITED,Adult Social Care,Adults,Non-Authority Accommodation Rental,,04/10/2019,"2,428.60",190000,Facilities & Management Services
5357541,Redacted,Childrens Services,Children's Services,Professional Services,,04/10/2019,"2,824.40",280000,Legal Services
5354435,CLASSIC FOSTER CARE,Childrens Services,Children's Services,Foster Carer Agency Fees,,04/10/2019,"3,214.20",321100,Social Community Care Supplies & Services - Children
5357543,PRD PROPERTY SERVICES LTD,Governance,Governance,Legal Fees,,04/10/2019,"4,930.00",190000,Facilities & Management Services
5354621,PROFILE SECURITY SERVICES LIMITED,Operations and Neighbourhoods,Operations and Neighbourhoods,General Materials,,04/10/2019,"5,823.36",190000,Facilities & Management Services
5354447,CAPSTONE FOSTER CARE,Childrens Services,Children's Services,Foster Carer Agency Fees,,04/10/2019,"3,295.80",321000,Social Community Care Supplies & Services - Adult
5354815,DAISY COMMUNICATIONS LTD,Digital Tameside,Finance & IT,Telephone Landline Costs,,04/10/2019,"3,960.39",908001,Public Bodies
5354465,SOCIAL CARE SERVICES (CLAYTON) LTD,Childrens Services,Children's Services,Living With Formal Support,Redacted Supplier,04/10/2019,"4,849.33",321000,Social Community Care Supplies & Services - Adult
5354485,SOCIAL CARE SERVICES (CLAYTON) LTD,Childrens Services,Children's Services,Living With Formal Support,Redacted Supplier,04/10/2019,"1,095.00",321000,Social Community Care Supplies & Services - Adult
5354467,SOCIAL CARE SERVICES (CLAYTON) LTD,Childrens Services,Children's Services,Living With Formal Support,Redacted Supplier,04/10/2019,"1,333.35",321000,Social Community Care Supplies & Services - Adult
5354464,SOCIAL CARE SERVICES (CLAYTON) LTD,Childrens Services,Children's Services,Cash Grants,Redacted Supplier,04/10/2019,"1,266.84",321000,Social Community Care Supplies & Services - Adult
5354464,SOCIAL CARE SERVICES (CLAYTON) LTD,Childrens Services,Children's Services,Living With Formal Support,Redacted Supplier,04/10/2019,"4,619.31",321000,Social Community Care Supplies & Services - Adult
5354483,SOCIAL CARE SERVICES (CLAYTON) LTD,Childrens Services,Children's Services,Cash Grants,Redacted Supplier,04/10/2019,"1,266.84",321000,Social Community Care Supplies & Services - Adult
5354483,SOCIAL CARE SERVICES (CLAYTON) LTD,Childrens Services,Children's Services,Living With Formal Support,Redacted Supplier,04/10/2019,"4,619.31",321000,Social Community Care Supplies & Services - Adult
5354481,SOCIAL CARE SERVICES (CLAYTON) LTD,Childrens Services,Children's Services,Childrens Homes Outside Local Authority Fees,Redacted Supplier,04/10/2019,"1,285.70",321000,Social Community Care Supplies & Services - Adult
5354469,SOCIAL CARE SERVICES (CLAYTON) LTD,Childrens Services,Children's Services,Living With Formal Support,Redacted Supplier,04/10/2019,"4,223.61",321000,Social Community Care Supplies & Services - Adult
5354806,Wharfedale Lodge,Operations and Neighbourhoods,Operations and Neighbourhoods,"Activity (Materials, Trips)",,04/10/2019,"1,154.00",321100,Social Community Care Supplies & Services - Children
5354898,CARE 4 CHILDREN RESIDENTIAL SERVICES LTD,Childrens Services,Children's Services,Foster Carer Agency Fees,,04/10/2019,"3,214.20",321100,Social Community Care Supplies & Services - Children
5354482,SOCIAL CARE SERVICES (CLAYTON) LTD,Childrens Services,Children's Services,Living With Formal Support,Redacted Supplier,04/10/2019,"1,333.35",321000,Social Community Care Supplies & Services - Adult
5354466,SOCIAL CARE SERVICES (CLAYTON) LTD,Childrens Services,Children's Services,Living With Formal Support,Redacted Supplier,04/10/2019,"4,619.31",321000,Social Community Care Supplies & Services - Adult
5354511,Transunion Internal UK Limited,Hosted Services,Hosted Services,Professional Services,,04/10/2019,"13,400.00",150000,Consultancy
5345286,Kingfisher Design & Management Ltd,Operations and Neighbourhoods,Operations and Neighbourhoods,Engineers -External,,04/10/2019,"1,500.00",260000,Human Resources
5354595,Redacted,Corporate Costs,Corporate Costs,Agency Staff,,04/10/2019,"1,931.00",360000,Public Transport
5355633,Dow Schofield Watts Business Planning LLP,Finance,Finance & IT,Professional Consultancy Services,,04/10/2019,"2,086.35",-999999,Unclassifiable
470828,AGGREGATE INDUSTRIES UK LIMITED,Operations and Neighbourhoods,Operations and Neighbourhoods,General Materials,,07/10/2019,"4,085.23",230000,Highway Equipment & Materials
470828,ARCO LIMITED,Operations and Neighbourhoods,Operations and Neighbourhoods,General Materials,,07/10/2019,881.16,140000,Clothing
470828,EAGLE CIVIL ENGINEERING LTD,Operations and Neighbourhoods,Operations and Neighbourhoods,Sub-contractor Services,,07/10/2019,"19,247.70",391411,"Works - Construction, Repair & Maintenance"
470828,FAIRWAY LANDSCAPES LTD,Operations and Neighbourhoods,Operations and Neighbourhoods,Sub-contractor Services,,07/10/2019,"1,500.00",399999,"Works - Construction, Repair & Maintenance"
470828,KENNY BROTHERS,Operations and Neighbourhoods,Operations and Neighbourhoods,Sub-contractor Services,,07/10/2019,"3,244.93",391411,"Works - Construction, Repair & Maintenance"
470828,PG FABRICATIONS,Operations and Neighbourhoods,Operations and Neighbourhoods,General Materials,,07/10/2019,"3,553.00",390000,"Works - Construction, Repair & Maintenance"
470828,PG FABRICATIONS,Operations and Neighbourhoods,Operations and Neighbourhoods,Sub-contractor Services,,07/10/2019,"10,596.00",390000,"Works - Construction, Repair & Maintenance"
470828,TARMAC CENTRAL LIMITED,Operations and Neighbourhoods,Operations and Neighbourhoods,General Materials,,07/10/2019,"5,225.34",230000,Highway Equipment & Materials
470828,JONES LIGHTING LTD,Operations and Neighbourhoods,Operations and Neighbourhoods,Sub-contractor Services,,07/10/2019,"6,723.35",359999,Street & Traffic Management
470828,4WAY CONSULTING LTD,Operations and Neighbourhoods,Operations and Neighbourhoods,Sub-contractor Services,,07/10/2019,660,180000,Environmental Services
470828,1st Choice Grab Hire LTD,Operations and Neighbourhoods,Operations and Neighbourhoods,Sub-contractor Services,,07/10/2019,"2,600.00",230000,Highway Equipment & Materials
470828,Saint-Gobain Building Distribution Limited t/a Benchmark Building Supplies,Civil Engineers,Director of Place,Debits Goods Received,,07/10/2019,"2,118.32",100000,Building Construction Materials
470828,Saint-Gobain Building Distribution Limited t/a Benchmark Building Supplies,Operations and Neighbourhoods,Operations and Neighbourhoods,General Materials,,07/10/2019,"1,339.38",100000,Building Construction Materials
470828,CASTINGS SERVICES LTD,Civil Engineers,Director of Place,Debits Goods Received,,07/10/2019,"1,170.50",100000,Building Construction Materials
470828,FSN Facilities Management Ltd,Operations and Neighbourhoods,Operations and Neighbourhoods,General Materials,,07/10/2019,"5,827.50",190000,Facilities & Management Services
470828,TRAFFIC DIRECT LTD,(blank),(blank),Traffic Signs,,07/10/2019,"1,160.00",350000,Street & Traffic Management
470828,KONSTRUCTA HIRE LIMITED,Operations and Neighbourhoods,Operations and Neighbourhoods,General Materials,,07/10/2019,840,390000,"Works - Construction, Repair & Maintenance"
470828,VAISALA LTD,Operations and Neighbourhoods,Operations and Neighbourhoods,General Materials,,07/10/2019,"4,880.00",180000,Environmental Services
470828,DYNO-ROD,Operations and Neighbourhoods,Operations and Neighbourhoods,General Materials,,26/11/2019,600,100000,Building Construction Materials
5357031,Redacted,Adult Social Care,Adults,Residential Home Short Stay Fees,,07/10/2019,771.94,321000,Social Community Care Supplies & Services - Adult
5357157,Redacted,Adult Social Care,Adults,Day Care Fees,Redacted Supplier,07/10/2019,"2,133.95",-999999,Unclassifiable
5355597,BRISTOL CITY COUNCIL,Hosted Services,Hosted Services,Conference/Seminar Expenses For Staff,,07/10/2019,"1,260.00",-999999,Unclassifiable
5356969,TAMESIDE ARTS LTD,Adult Social Care,Adults,Professional Services,,07/10/2019,"3,086.40",290000,Arts & Leisure Services
5354984,TOGETHER FOR MENTAL WELLBEING,Adult Social Care,Adults,Professional Services,,07/10/2019,"15,362.00",321100,Social Community Care Supplies & Services - Children
5357727,J HOPKINS CONTRACTORS  LTD,(blank),(blank),Highway Construction,,07/10/2019,"43,055.22",391411,"Works - Construction, Repair & Maintenance"
5357176,Redacted,Adult Social Care,Adults,Day Care Fees,Redacted Supplier,07/10/2019,674.11,321000,Social Community Care Supplies & Services - Adult
5357163,Redacted,Adult Social Care,Adults,Day Care Fees,Redacted Supplier,07/10/2019,572.1,-999999,Unclassifiable
5354967,VISION FOR EDUCATION LIMITED,Education,Children's Services,Professional Services,,07/10/2019,570,170000,Education
5354975,Redacted,Governance,Governance,External  Consultants,Business Payment,07/10/2019,902.5,-999999,Unclassifiable
5357369,REGENDA LIMITED,Adult Social Care,Adults,Non-Authority Accommodation Rental,,07/10/2019,"15,755.15",250000,Housing Management
5357441,Redacted,Adult Social Care,Adults,Day Care Fees,,07/10/2019,566.94,-999999,Unclassifiable
5356297,SALFORD CITY COUNCIL,Education,Children's Services,Professional Services,,07/10/2019,"101,328.00",-999999,Unclassifiable
5354978,CITY LIFT SERVICES (NW) LTD,Adult Social Care,Adults,General Equipment Repair & Maintenance,,07/10/2019,"1,325.00",390000,"Works - Construction, Repair & Maintenance"
5357435,Redacted,Adult Social Care,Adults,Day Care Fees,Redacted Supplier,07/10/2019,615.4,-999999,Unclassifiable
5357215,HMS DECORATIVE SURFACING LTD,(blank),(blank),Road Marking Works,,07/10/2019,"40,789.30",100000,Building Construction Materials
5357531,PRECIOUS LITTLE ONES LTD,Childrens Services,Children's Services,Nursery Services,,07/10/2019,"1,416.00",170000,Education
5357128,Redacted,Adult Social Care,Adults,Day Care Fees,,07/10/2019,"1,014.16",400000,Non 3rd Party spend  
5357405,Hillgate Health Group Limited,Childrens Services,Children's Services,Living With Formal Support,,07/10/2019,"1,179.36",-999999,Unclassifiable
5357407,Hillgate Health Group Limited,Childrens Services,Children's Services,Living With Formal Support,,07/10/2019,"1,179.36",-999999,Unclassifiable
5350103,Shared Futures CIC,Hosted Services,Hosted Services,Professional Services,,07/10/2019,"1,000.00",290000,Arts & Leisure Services
5357436,Redacted,Adult Social Care,Adults,Day Care Fees,Redacted Supplier,07/10/2019,966.82,321000,Social Community Care Supplies & Services - Adult
5357790,Local Government Association,Adult Social Care,Adults,Conference/Seminar Expenses For Staff,,07/10/2019,"1,425.00",-999999,Unclassifiable
5350321,BAKERS SOLICITORS,Childrens Services,Children's Services,Legal Fees,,07/10/2019,789.5,280000,Legal Services
5356793,GREENSCAPE,Adult Social Care,Adults,Professional Services,,07/10/2019,"1,286.00",390000,"Works - Construction, Repair & Maintenance"
5356794,GREENSCAPE,Adult Social Care,Adults,Professional Services,,07/10/2019,"1,286.00",390000,"Works - Construction, Repair & Maintenance"
5354952,TRANSPORT FOR GREATER MANCHESTER,Place,Growth,Professional Consultancy Services,,07/10/2019,"4,800.00",360000,Public Transport
5357438,Redacted,Adult Social Care,Adults,Nursing Home Long Stay Fees,,07/10/2019,"1,423.35",-999999,Unclassifiable
5356808,ABLE CARE AND SUPPORT SERVICES LTD,Adult Social Care,Adults,Homecare Fees,,07/10/2019,"1,196.80",321000,Social Community Care Supplies & Services - Adult
5357241,Redacted,Education,Children's Services,#N/A,,07/10/2019,"1,472.30",170000,Education
5357851,Hyde Accessible Transport Limited,Education,Children's Services,Transport Of Pupils,,08/10/2019,"1,710.00",360000,Public Transport
5357828,Hyde Accessible Transport Limited,Education,Children's Services,Transport Of Pupils,,08/10/2019,"1,710.00",360000,Public Transport
5357857,Hyde Accessible Transport Limited,Education,Children's Services,Transport Of Pupils,,08/10/2019,"2,375.00",360000,Public Transport
5357829,Hyde Accessible Transport Limited,Education,Children's Services,Transport Of Pupils,,08/10/2019,"2,375.00",360000,Public Transport
5357820,Hyde Accessible Transport Limited,Education,Children's Services,Transport Of Pupils,,08/10/2019,"2,375.00",360000,Public Transport
5357817,Hyde Accessible Transport Limited,Education,Children's Services,Transport Of Post 16 Pupils,,08/10/2019,"2,375.00",360000,Public Transport
5357812,Hyde Accessible Transport Limited,Education,Children's Services,Transport Of Pupils,,08/10/2019,"2,375.00",360000,Public Transport
5357809,Hyde Accessible Transport Limited,Education,Children's Services,Transport Of Pupils,,08/10/2019,"2,375.00",360000,Public Transport
5357842,Hyde Accessible Transport Limited,Education,Children's Services,Transport Of Pupils,,08/10/2019,"2,137.50",360000,Public Transport
5357836,Hyde Accessible Transport Limited,Education,Children's Services,Transport Of Post 16 Pupils,,08/10/2019,"2,137.50",360000,Public Transport
5357866,Hyde Accessible Transport Limited,Education,Children's Services,Transport Of Pupils,,08/10/2019,"1,710.00",360000,Public Transport
5357827,Hyde Accessible Transport Limited,Education,Children's Services,Transport Of Post 16 Pupils,,08/10/2019,"2,137.50",360000,Public Transport
5357823,Hyde Accessible Transport Limited,Education,Children's Services,Transport Of Pupils,,08/10/2019,"2,137.50",360000,Public Transport
5357822,Hyde Accessible Transport Limited,Education,Children's Services,Transport Of Pupils,,08/10/2019,"2,137.50",360000,Public Transport
5357819,Hyde Accessible Transport Limited,Education,Children's Services,Transport Of Pupils,,08/10/2019,"2,137.50",360000,Public Transport
5357815,Hyde Accessible Transport Limited,Education,Children's Services,Transport Of Pupils,,08/10/2019,"2,137.50",360000,Public Transport
5357833,Hyde Accessible Transport Limited,Operations and Neighbourhoods,Operations and Neighbourhoods,Hired Transport,,08/10/2019,"1,785.00",360000,Public Transport
5357865,Hyde Accessible Transport Limited,Education,Children's Services,Transport Of Pupils,,08/10/2019,"1,330.00",360000,Public Transport
5357848,Hyde Accessible Transport Limited,Operations and Neighbourhoods,Operations and Neighbourhoods,Hired Transport,,08/10/2019,960,360000,Public Transport
5357849,Hyde Accessible Transport Limited,Operations and Neighbourhoods,Operations and Neighbourhoods,Hired Transport,,08/10/2019,"1,140.00",360000,Public Transport
5357000,Redacted,Education,Children's Services,#N/A,Redacted Supplier,08/10/2019,"11,700.00",-999999,Unclassifiable
5356129,TAMESIDE LINK,Childrens Services,Children's Services,Day Care Fees,,08/10/2019,922.2,321000,Social Community Care Supplies & Services - Adult
5356132,TAMESIDE LINK,Childrens Services,Children's Services,Day Care Fees,,08/10/2019,922.2,321000,Social Community Care Supplies & Services - Adult
5357793,WILKINSON GROUP OF COMPANIES,Tameside Investment Partnership,Director of Place,Contributions,,08/10/2019,"860,000.00",210000,Furniture & Soft Furnishings
5354522,British Telecommunications PLC,Digital Tameside,Finance & IT,Telephone Landline Costs,,08/10/2019,"1,575.96",270000,Information Communication Technology
5353852,KILLGERM CHEMICALS LTD,Operations and Neighbourhoods,Operations and Neighbourhoods,Pest Control Equipment,,08/10/2019,"1,824.65",180000,Environmental Services
5357821,Hyde Accessible Transport Limited,Education,Children's Services,Transport Of Ola Pupils,,08/10/2019,"2,565.00",360000,Public Transport
5357955,JIGSAW HOMES GROUP,Operations and Neighbourhoods,Operations and Neighbourhoods,Lettings/Waiting List,,08/10/2019,"22,500.00",321000,Social Community Care Supplies & Services - Adult
5357807,Hyde Accessible Transport Limited,Education,Children's Services,Transport Of Ola Pupils,,08/10/2019,"2,679.00",360000,Public Transport
5357852,Hyde Accessible Transport Limited,Operations and Neighbourhoods,Operations and Neighbourhoods,Hired Transport,,08/10/2019,990,360000,Public Transport
5357814,Hyde Accessible Transport Limited,Education,Children's Services,Transport Of Pupils,,08/10/2019,"1,900.00",360000,Public Transport
5357880,Redacted,Adult Social Care,Adults,Residential Home Short Stay Fees,,08/10/2019,553.75,-999999,Unclassifiable
5357810,Hyde Accessible Transport Limited,Education,Children's Services,Transport Of Pupils,,08/10/2019,"2,375.00",360000,Public Transport
5357957,ERIC WRIGHT CIVIL ENGINEERING LTD,(blank),(blank),Structural Works,,08/10/2019,"76,292.89",390000,"Works - Construction, Repair & Maintenance"
5354834,Medgen Limited,Childrens Services,Children's Services,Homecare Fees,,08/10/2019,509.04,260000,Human Resources
5354828,Medgen Limited,Childrens Services,Children's Services,Homecare Fees,,08/10/2019,"1,058.40",260000,Human Resources
5357794,ISW CSC Limited,Childrens Services,Children's Services,Living With Formal Support,,08/10/2019,890,260000,Human Resources
5349633,MERIDIAN HEALTHCARE LTD,Adult Social Care,Adults,Day Centre Fees,,08/10/2019,"8,532.96",321000,Social Community Care Supplies & Services - Adult
5354955,SEASHELL TRUST,Childrens Services,Children's Services,Day Care Fees,,08/10/2019,"2,592.00",321000,Social Community Care Supplies & Services - Adult
5357037,TAMESIDE AND GLOSSOP INTEGRATED CARE NHS FOUNDATION TRUST,Childrens Services,Children's Services,Day Care Fees,,08/10/2019,"1,891.00",310000,Healthcare
5357039,TAMESIDE AND GLOSSOP INTEGRATED CARE NHS FOUNDATION TRUST,Childrens Services,Children's Services,Day Care Fees,,08/10/2019,"1,891.00",310000,Healthcare
5353460,TORDAN HEALTHCARE LTD,Childrens Services,Children's Services,Day Care Fees,,08/10/2019,"5,897.60",310000,Healthcare
5348033,Redacted,Childrens Services,Children's Services,Professional Child Services,,08/10/2019,525,321100,Social Community Care Supplies & Services - Children
5356404,INSPIREDSPACES TAMESIDE LTD,Asset & Investment Partnership Management,Growth,PFI FM Fees and Insurance Costs,,08/10/2019,"23,880.07",390000,"Works - Construction, Repair & Maintenance"
5356503,INSPIREDSPACES TAMESIDE LTD,(blank),(blank),Other Works,,08/10/2019,"59,731.05",390000,"Works - Construction, Repair & Maintenance"
5356446,INSPIREDSPACES TAMESIDE LTD,(blank),(blank),New Accommodation Works,,08/10/2019,"2,540.90",390000,"Works - Construction, Repair & Maintenance"
5357588,Proactive Care (Manchester) Ltd,Childrens Services,Children's Services,Childrens Homes Outside Local Authority Fees,,08/10/2019,571.43,321100,Social Community Care Supplies & Services - Children
5357860,Hyde Accessible Transport Limited,Education,Children's Services,Transport Of Pupils,,08/10/2019,"1,282.50",360000,Public Transport
5356448,INSPIREDSPACES TAMESIDE LTD,(blank),(blank),New Accommodation Works,,08/10/2019,"4,539.00",390000,"Works - Construction, Repair & Maintenance"
5356447,INSPIREDSPACES TAMESIDE LTD,(blank),(blank),New Accommodation Works,,08/10/2019,"3,686.80",390000,"Works - Construction, Repair & Maintenance"
5357804,Hyde Accessible Transport Limited,Education,Children's Services,Transport Of Pupils,,08/10/2019,"2,850.00",360000,Public Transport
5357832,Hyde Accessible Transport Limited,Operations and Neighbourhoods,Operations and Neighbourhoods,Hired Transport,,08/10/2019,"1,652.50",360000,Public Transport
5357825,Hyde Accessible Transport Limited,Education,Children's Services,Transport Of Pupils,,08/10/2019,"1,662.50",360000,Public Transport
5357838,Hyde Accessible Transport Limited,Education,Children's Services,Transport Of Ola Pupils,,08/10/2019,"1,665.00",360000,Public Transport
5357824,Hyde Accessible Transport Limited,Education,Children's Services,Transport Of Pupils,,08/10/2019,"1,200.00",360000,Public Transport
5357806,Hyde Accessible Transport Limited,Education,Children's Services,Transport Of Ola Pupils,,08/10/2019,"1,222.00",360000,Public Transport
5357808,Hyde Accessible Transport Limited,Education,Children's Services,Transport Of Pupils,,08/10/2019,"1,440.00",360000,Public Transport
5356466,INSPIREDSPACES TAMESIDE LTD,(blank),(blank),Other Works,,08/10/2019,"37,050.38",390000,"Works - Construction, Repair & Maintenance"
5357826,Hyde Accessible Transport Limited,Education,Children's Services,Transport Of Ola Pupils,,08/10/2019,"2,590.00",360000,Public Transport
5355040,The Fabularium LTD,Operations and Neighbourhoods,Operations and Neighbourhoods,Professional Entertainment Services,,09/10/2019,925,290000,Arts & Leisure Services
5354510,Redacted,Education,Children's Services,#N/A,,09/10/2019,"1,400.00",171000,Education
5345437,FRIENDS HOUSE (LONDON) HOSPITALITY LIMITED,Hosted Services,Hosted Services,Conference/Seminar Expenses For Staff,,09/10/2019,"2,535.00",290000,Arts & Leisure Services
5355039,The Fabularium LTD,Operations and Neighbourhoods,Operations and Neighbourhoods,Professional Entertainment Services,,09/10/2019,950,290000,Arts & Leisure Services
5355023,SERVELEC EDUCATION LIMITED,Exchequer,Governance,Professional Consultancy Services,,09/10/2019,"16,954.00",170000,Education
32000042,Redacted,Individual Schools Budget,Children's Services,Section 251 Budget,,09/10/2019,"6,384.60",170000,Education
5356504,INSPIREDSPACES TAMESIDE LTD,Tameside Investment Partnership,Director of Place,New Build Construction Costs,,09/10/2019,"36,988.54",390000,"Works - Construction, Repair & Maintenance"
5356529,INSPIREDSPACES TAMESIDE LTD,(blank),(blank),Other Works,,09/10/2019,"11,057.35",390000,"Works - Construction, Repair & Maintenance"
5355021,FRIENDS HOUSE (LONDON) HOSPITALITY LIMITED,Hosted Services,Hosted Services,Conference/Seminar Expenses For Staff,,09/10/2019,"2,628.34",290000,Arts & Leisure Services
5355013,SAFFER COOPER CONSULTANCY,Place,Growth,Professional Consultancy Services,,09/10/2019,990,150000,Consultancy
5355081,TAMESIDE TRINITY CIC,Childrens Services,Children's Services,Cash Grants,,09/10/2019,"1,400.00",321000,Social Community Care Supplies & Services - Adult
5354860,WEIGHTMANS LLP,Childrens Services,Children's Services,Legal Fees,,09/10/2019,"1,664.00",-999999,Unclassifiable
5355047,COMPLETE BACKGROUND SCREENING LTD,People and Workforce Development,Governance,Professional Services,,09/10/2019,"2,505.00",-999999,Unclassifiable
5355197,CITY LIFT SERVICES (NW) LTD,Adult Social Care,Adults,General Equipment Repair & Maintenance,,09/10/2019,610,390000,"Works - Construction, Repair & Maintenance"
5357591,Christ Church Community Development,Adult Social Care,Adults,Voluntary Organisations Fees,,09/10/2019,"25,000.00",UNCLASS,Unclassifiable
5356609,Eden Brown LTD,Childrens Services,Children's Services,Agency Staff,,09/10/2019,"7,826.60",-999999,Unclassifiable
5354990,ACTION TOGETHER CIO,Quality and Safeguarding,Quality and Safeguarding,Professional Photography Services,,09/10/2019,"9,000.00",200000,Financial Services
5355026,ARCO LIMITED,Operations and Neighbourhoods,Operations and Neighbourhoods,Protective Clothing,,09/10/2019,708.46,140000,Clothing
5355044,ZZ DUP - LANCASHIRE COUNTY COUNCIL,Operations and Neighbourhoods,Operations and Neighbourhoods,Professional Services,,09/10/2019,887.5,-999999,Unclassifiable
5355003,ZZ DUP - LANCASHIRE COUNTY COUNCIL,Operations and Neighbourhoods,Operations and Neighbourhoods,Professional Services,,09/10/2019,600,-999999,Unclassifiable
5355005,ZZ DUP - LANCASHIRE COUNTY COUNCIL,Operations and Neighbourhoods,Operations and Neighbourhoods,Professional Services,,09/10/2019,600,-999999,Unclassifiable
5355007,ZZ DUP - LANCASHIRE COUNTY COUNCIL,Operations and Neighbourhoods,Operations and Neighbourhoods,Professional Services,,09/10/2019,595,-999999,Unclassifiable
5358115,JACKSON & TAYLOR LTD,Housing,Director of Place,Improvement Grants - Final Mandatory,,09/10/2019,"4,056.00",390000,"Works - Construction, Repair & Maintenance"
5358119,JACKSON & TAYLOR LTD,Housing,Director of Place,Improvement Grants - Final Mandatory,,09/10/2019,"3,780.00",390000,"Works - Construction, Repair & Maintenance"
5358118,JACKSON & TAYLOR LTD,Housing,Director of Place,Improvement Grants - Final Mandatory,,09/10/2019,"3,400.00",390000,"Works - Construction, Repair & Maintenance"
5355014,CHILD ACTION NORTHWEST,Adult Social Care,Adults,Professional Child Services,,09/10/2019,597.1,-999999,Unclassifiable
5355042,CHILD ACTION NORTHWEST,Childrens Services,Children's Services,Professional Services,,09/10/2019,867.05,-999999,Unclassifiable
5354930,Redacted,Education,Children's Services,#N/A,,09/10/2019,"2,635.00",170000,Education
5358098,AUTUMN (UK) 2017 LIMITED,Housing,Director of Place,Improvement Grants - Final Mandatory,,09/10/2019,"3,640.00",321000,Social Community Care Supplies & Services - Adult
5358099,AUTUMN (UK) 2017 LIMITED,Housing,Director of Place,Improvement Grants - Final Mandatory,,09/10/2019,"4,132.00",321000,Social Community Care Supplies & Services - Adult
5358097,AUTUMN (UK) 2017 LIMITED,Housing,Director of Place,Improvement Grants - Final Mandatory,,09/10/2019,"4,236.00",321000,Social Community Care Supplies & Services - Adult
5355009,K P DODD CONSTRUCTION LTD,Housing,Director of Place,Improvement Grants - Final Mandatory,,09/10/2019,"3,915.00",390000,"Works - Construction, Repair & Maintenance"
5358091,K P DODD CONSTRUCTION LTD,Housing,Director of Place,Improvement Grants - Final Mandatory,,09/10/2019,"3,598.00",390000,"Works - Construction, Repair & Maintenance"
5358092,K P DODD CONSTRUCTION LTD,Housing,Director of Place,Improvement Grants - Final Mandatory,,09/10/2019,"2,344.00",390000,"Works - Construction, Repair & Maintenance"
5355006,MEADOWS CARE LIMITED,Childrens Services,Children's Services,Childrens Homes Outside Local Authority Fees,Redacted Supplier,09/10/2019,"17,571.43",321000,Social Community Care Supplies & Services - Adult
5355010,K P DODD CONSTRUCTION LTD,Housing,Director of Place,Improvement Grants - Final Mandatory,,09/10/2019,"5,102.00",390000,"Works - Construction, Repair & Maintenance"
5358243,MOSSLEY PRIVATE HIRE,Education,Children's Services,Transport Of Pupils,,09/10/2019,"2,375.00",360000,Public Transport
5354959,Interserve Healthcare Limited,Childrens Services,Children's Services,Day Care Fees,,09/10/2019,"1,101.02",321100,Social Community Care Supplies & Services - Children
5354968,PortalPlanQuest Limited,Place,Growth,Planning Fee Income,,09/10/2019,"2,076.00",-999999,Unclassifiable
5354954,PortalPlanQuest Limited,Place,Growth,Planning Fee Income,,09/10/2019,924,-999999,Unclassifiable
5355032,Foster Careline Ltd,Childrens Services,Children's Services,Foster Carer Agency Fees,,09/10/2019,"3,658.00",321000,Social Community Care Supplies & Services - Adult
5355033,Foster Careline Ltd,Childrens Services,Children's Services,Foster Carer Agency Fees,,09/10/2019,"3,806.00",321000,Social Community Care Supplies & Services - Adult
5354923,Deans Court Chambers,Childrens Services,Children's Services,Legal Fees,,09/10/2019,650,280000,Legal Services
5354924,Deans Court Chambers,Childrens Services,Children's Services,Legal Fees,,09/10/2019,700,280000,Legal Services
5354934,18 St John Street Chambers,Childrens Services,Children's Services,Legal Fees,,09/10/2019,"1,740.00",280000,Legal Services
5354935,18 St John Street Chambers,Childrens Services,Children's Services,Legal Fees,,09/10/2019,670,280000,Legal Services
5354931,18 St John Street Chambers,Childrens Services,Children's Services,Legal Fees,,09/10/2019,550,280000,Legal Services
5354932,18 St John Street Chambers,Childrens Services,Children's Services,Legal Fees,,09/10/2019,550,280000,Legal Services
5354937,KBW Barristers Chambers,Childrens Services,Children's Services,Legal Fees,,09/10/2019,600,280000,Legal Services
5354922,Jane Donohoe Training & Consultancy,Operations and Neighbourhoods,Operations and Neighbourhoods,General Materials,,09/10/2019,700,260000,Human Resources
5354941,Redacted,Governance,Governance,External  Consultants,Business Payment,09/10/2019,"1,605.40",150000,Consultancy
5358239,MOSSLEY PRIVATE HIRE,Education,Children's Services,Transport Of Ola Pupils,,09/10/2019,"2,451.00",360000,Public Transport
5358241,MOSSLEY PRIVATE HIRE,Education,Children's Services,Transport Of Pupils,,09/10/2019,"2,375.00",360000,Public Transport
5358180,Inspired Spaces (ProjectCo1) LTD,Individual Schools Budget,Children's Services,PFI FM Fees and Insurance Costs,,09/10/2019,"3,850.00",390000,"Works - Construction, Repair & Maintenance"
5353332,STEP AHEAD RESOURCE SERVICES,Adult Social Care,Adults,Homecare Fees,,09/10/2019,"1,150.00",321000,Social Community Care Supplies & Services - Adult
5349655,STEP AHEAD RESOURCE SERVICES,Adult Social Care,Adults,Homecare Fees,,09/10/2019,"1,150.00",321000,Social Community Care Supplies & Services - Adult
5349135,STEP AHEAD RESOURCE SERVICES,Adult Social Care,Adults,Homecare Fees,,09/10/2019,"1,150.00",321000,Social Community Care Supplies & Services - Adult
5351232,STEP AHEAD RESOURCE SERVICES,Adult Social Care,Adults,Homecare Fees,,09/10/2019,"1,150.00",321000,Social Community Care Supplies & Services - Adult
5358050,DENTON COMMUNITY COLLEGE,Multiple Heads of Service,Multiple Strategic Directorates,Section 52 School Cash Advances,Redacted Supplier,09/10/2019,"70,000.00",400000,Non 3rd Party spend  
5358177,FUSION CARE,Adult Social Care,Adults,Supporting People Gross Contract,,09/10/2019,"2,780.00",321100,Social Community Care Supplies & Services - Children
5354938,OCTAGON CARE LTD,Childrens Services,Children's Services,Childrens Homes Outside Local Authority Fees,,09/10/2019,"5,000.00",321100,Social Community Care Supplies & Services - Children
5354944,FAB EVENTS LIMITED,Operations and Neighbourhoods,Operations and Neighbourhoods,#N/A,,09/10/2019,"1,550.00",190000,Facilities & Management Services
5354942,FAB EVENTS LIMITED,Operations and Neighbourhoods,Operations and Neighbourhoods,#N/A,,09/10/2019,600,190000,Facilities & Management Services
5355031,Foster Careline Ltd,Childrens Services,Children's Services,Foster Carer Agency Fees,,09/10/2019,"3,806.00",321000,Social Community Care Supplies & Services - Adult
5358240,MOSSLEY PRIVATE HIRE,Operations and Neighbourhoods,Operations and Neighbourhoods,Hired Transport,,09/10/2019,"3,150.00",360000,Public Transport
5358244,MOSSLEY PRIVATE HIRE,Education,Children's Services,Transport Of Pupils,,09/10/2019,"2,375.00",360000,Public Transport
5354948,FAB EVENTS LIMITED,Operations and Neighbourhoods,Operations and Neighbourhoods,#N/A,,09/10/2019,"3,650.00",190000,Facilities & Management Services
5352711,Redacted,Childrens Services,Children's Services,Legal Fees,,09/10/2019,"1,500.00",260000,Human Resources
5355583,Sanctuary Personnel Trading as Skylakes,Childrens Services,Children's Services,Professional Services,,10/10/2019,"17,723.72",321100,Social Community Care Supplies & Services - Children
5355582,Sanctuary Personnel Trading as Skylakes,Childrens Services,Children's Services,Professional Services,,10/10/2019,"17,723.72",321100,Social Community Care Supplies & Services - Children
5355103,TURNING POINT,Adult Social Care,Adults,Homecare Fees,,10/10/2019,"1,862.09",321000,Social Community Care Supplies & Services - Adult
5355155,EDENRED (UK GROUP) LIMITED,People and Workforce Development,Governance,Long Service Award (ex LSC Training),,10/10/2019,"6,458.40",-999999,Unclassifiable
5355174,ASSA ABLOY T/A TRAKA,Operations and Neighbourhoods,Operations and Neighbourhoods,General Equipment Purchase,,10/10/2019,"8,619.90",190000,Facilities & Management Services
5358287,Redacted,Operations and Neighbourhoods,Operations and Neighbourhoods,Professional Entertainment Services,,10/10/2019,"1,100.00",-999999,Unclassifiable
5358322,CENTUM CONSTRUCTION SERVICES LTD,Housing,Director of Place,Structural Works,,10/10/2019,"2,327.94",390000,"Works - Construction, Repair & Maintenance"
5355094,HEXAGON CARE SERVICES LTD,Childrens Services,Children's Services,Childrens Homes Outside Local Authority Fees,,10/10/2019,"18,835.71",321000,Social Community Care Supplies & Services - Adult
5355095,HEXAGON CARE SERVICES LTD,Childrens Services,Children's Services,Childrens Homes Outside Local Authority Fees,,10/10/2019,"4,375.00",321000,Social Community Care Supplies & Services - Adult
5355051,COMPLETE BACKGROUND SCREENING LTD,People and Workforce Development,Governance,Professional Services,,10/10/2019,"1,242.00",-999999,Unclassifiable
5355102,TURNING POINT,Adult Social Care,Adults,Homecare Fees,,10/10/2019,"11,079.33",321000,Social Community Care Supplies & Services - Adult
5355131,Redacted,Education,Children's Services,#N/A,,10/10/2019,"1,472.30",170000,Education
5358056,KIDZ STOP,Education,Children's Services,#N/A,,10/10/2019,"1,317.00",321100,Social Community Care Supplies & Services - Children
5355089,TORDAN HEALTHCARE LTD,Childrens Services,Children's Services,Day Care Fees,,10/10/2019,"5,499.20",310000,Healthcare
5358196,Redacted,Childrens Services,Children's Services,#N/A,Business Payment,10/10/2019,"1,185.00",-999999,Unclassifiable
5356035,COMFORT CALL LIMITED,Adult Social Care,Adults,Homecare Fees,,10/10/2019,"12,205.42",310000,Healthcare
5358176,FUSION CARE,Adult Social Care,Adults,Residential Home Long Stay Fees,,10/10/2019,"9,851.62",321100,Social Community Care Supplies & Services - Children
5355918,FUSION CARE,Adult Social Care,Adults,Homecare Fees,,10/10/2019,"2,780.00",321100,Social Community Care Supplies & Services - Children
5357863,Hyde Accessible Transport Limited,Operations and Neighbourhoods,Operations and Neighbourhoods,Hired Transport,,10/10/2019,"1,900.00",360000,Public Transport
5355177,ACCCOUNTING OFFICER HOME OFFICE,Hosted Services,Hosted Services,Professional Services,,10/10/2019,"3,458.79",200000,Financial Services
5357853,Hyde Accessible Transport Limited,Education,Children's Services,Transport Of Post 16 Pupils,,10/10/2019,990,360000,Public Transport
5357856,Hyde Accessible Transport Limited,Operations and Neighbourhoods,Operations and Neighbourhoods,Hired Transport,,10/10/2019,"1,080.00",360000,Public Transport
5357830,Hyde Accessible Transport Limited,Operations and Neighbourhoods,Operations and Neighbourhoods,Hired Transport,,10/10/2019,750,360000,Public Transport
5357869,Hyde Accessible Transport Limited,Operations and Neighbourhoods,Operations and Neighbourhoods,Hired Transport,,10/10/2019,750,360000,Public Transport
5358016,Hyde Accessible Transport Limited,Operations and Neighbourhoods,Operations and Neighbourhoods,Hired Transport,,10/10/2019,"1,125.00",360000,Public Transport
5355080,Compass Fostering North LTD,Childrens Services,Children's Services,Foster Carer Agency Fees,,10/10/2019,"3,334.50",321100,Social Community Care Supplies & Services - Children
5355078,Compass Fostering North LTD,Childrens Services,Children's Services,Foster Carer Agency Fees,,10/10/2019,"3,256.98",321100,Social Community Care Supplies & Services - Children
5355059,Compass Fostering North LTD,Childrens Services,Children's Services,Foster Carer Agency Fees,,10/10/2019,"3,239.31",321100,Social Community Care Supplies & Services - Children
5355071,Compass Fostering North LTD,Childrens Services,Children's Services,Foster Carer Agency Fees,,10/10/2019,"3,239.31",321100,Social Community Care Supplies & Services - Children
5355060,Compass Fostering North LTD,Childrens Services,Children's Services,Foster Carer Agency Fees,,10/10/2019,"3,428.40",321100,Social Community Care Supplies & Services - Children
5355082,Compass Fostering North LTD,Childrens Services,Children's Services,Foster Carer Agency Fees,,10/10/2019,"3,428.40",321100,Social Community Care Supplies & Services - Children
5355073,Compass Fostering North LTD,Childrens Services,Children's Services,Foster Carer Agency Fees,,10/10/2019,"3,138.60",321100,Social Community Care Supplies & Services - Children
5355069,Compass Fostering North LTD,Childrens Services,Children's Services,Foster Carer Agency Fees,,10/10/2019,"3,068.82",321100,Social Community Care Supplies & Services - Children
5355076,Compass Fostering North LTD,Childrens Services,Children's Services,Foster Carer Agency Fees,,10/10/2019,"3,060.90",321100,Social Community Care Supplies & Services - Children
5355072,Compass Fostering North LTD,Childrens Services,Children's Services,Foster Carer Agency Fees,,10/10/2019,571.4,321100,Social Community Care Supplies & Services - Children
5358361,GREATER MANCHESTER PENSION FUND,Corporate Costs,Corporate Costs,Pension Increase Act Costs,,10/10/2019,"122,900.00",UNCLASS,Unclassifiable
5358051,Redacted,Education,Children's Services,#N/A,,10/10/2019,"1,317.00",321100,Social Community Care Supplies & Services - Children
5355150,LORIMER FOSTERING SERVICES,Childrens Services,Children's Services,Foster Carer Agency Fees,,10/10/2019,"3,358.93",321100,Social Community Care Supplies & Services - Children
5356021,CREATIVE SUPPORT LTD,Adult Social Care,Adults,Residential Home Long Stay Fees,,10/10/2019,"1,817.20",321000,Social Community Care Supplies & Services - Adult
5351338,SARABEC LIMITED,Adult Social Care,Adults,It Equipment,,10/10/2019,"1,771.75",321100,Social Community Care Supplies & Services - Children
5350463,SARABEC LIMITED,Adult Social Care,Adults,It Equipment,,10/10/2019,"1,771.75",321100,Social Community Care Supplies & Services - Children
5355411,Water Plus,Operations and Neighbourhoods,Operations and Neighbourhoods,Metered Water Costs,,10/10/2019,"2,268.64",370000,Utilities
5355130,Redacted,Operations and Neighbourhoods,Operations and Neighbourhoods,General Materials,,10/10/2019,821.92,170000,Education
5355176,ACCCOUNTING OFFICER HOME OFFICE,Hosted Services,Hosted Services,Professional Services,,10/10/2019,"3,730.41",200000,Financial Services
5358232,HMCTS (FOR PAYMENT BY ACCOUNT),Exchequer,Governance,Court Fees,,10/10/2019,615,-999999,Unclassifiable
5358193,AD HOC CHAPS PAYMENT,Multiple Heads of Service,Multiple Strategic Directorates,Debits Superann Teachers,,10/10/2019,"1,147,803.25",400002,Chaps Payments
5358248,AD HOC CHAPS PAYMENT,Corporate Costs,Corporate Costs,Contributions,,10/10/2019,600,400002,Chaps Payments
5358053,Slater Gordon Solutions Legal,Multiple Heads of Service,Multiple Strategic Directorates,Claims Settled,,10/10/2019,"10,880.35",150000,Consultancy
5355140,The Compost Bag Company Ltd,Operations and Neighbourhoods,Operations and Neighbourhoods,Refuse Domestic Bin Purchases,,10/10/2019,"6,030.00",182014,Environmental Services
5358299,Lightbulb EMDR Ltd,Education,Children's Services,Professional Services,,10/10/2019,"1,100.00",-999999,Unclassifiable
5355141,YOUNG PEOPLE FIRST LIMITED,Childrens Services,Children's Services,Living With Formal Support,,10/10/2019,"6,818.00",321100,Social Community Care Supplies & Services - Children
5355101,YOUNG PEOPLE FIRST LIMITED,Childrens Services,Children's Services,Living With Formal Support,,10/10/2019,"3,584.00",321100,Social Community Care Supplies & Services - Children
5358227,HMCTS (FOR PAYMENT BY ACCOUNT),Childrens Services,Children's Services,Court Fees,,10/10/2019,"25,875.00",-999999,Unclassifiable
5355437,Furniture Resource Centre Ltd,Operations and Neighbourhoods,Operations and Neighbourhoods,Fixtures & Fittings Purchase,,10/10/2019,528.73,#N/A,#N/A
5355334,Furniture Resource Centre Ltd,Operations and Neighbourhoods,Operations and Neighbourhoods,Fixtures & Fittings Purchase,,10/10/2019,843.5,#N/A,#N/A
5355431,Furniture Resource Centre Ltd,Operations and Neighbourhoods,Operations and Neighbourhoods,Fixtures & Fittings Purchase,,10/10/2019,829.41,#N/A,#N/A
5355430,Furniture Resource Centre Ltd,Operations and Neighbourhoods,Operations and Neighbourhoods,Fixtures & Fittings Purchase,,10/10/2019,"1,178.98",#N/A,#N/A
5358002,HALLIWELL HOMES,Childrens Services,Children's Services,Childrens Homes Outside Local Authority Fees,,10/10/2019,"21,407.14",321100,Social Community Care Supplies & Services - Children
5358028,HALLIWELL HOMES,Childrens Services,Children's Services,Childrens Homes Outside Local Authority Fees,,10/10/2019,"18,552.88",321100,Social Community Care Supplies & Services - Children
5358296,MOSSLEY PRIVATE HIRE,Education,Children's Services,Transport Of Pupils,,10/10/2019,"2,375.00",360000,Public Transport
5358242,MOSSLEY PRIVATE HIRE,Education,Children's Services,Transport Of Pupils,,10/10/2019,"1,900.00",360000,Public Transport
5358316,MOSSLEY PRIVATE HIRE,Education,Children's Services,Transport Of Pupils,,10/10/2019,"2,850.00",360000,Public Transport
5355435,Furniture Resource Centre Ltd,Operations and Neighbourhoods,Operations and Neighbourhoods,Fixtures & Fittings Purchase,,10/10/2019,"1,886.65",#N/A,#N/A
5355433,Furniture Resource Centre Ltd,Operations and Neighbourhoods,Operations and Neighbourhoods,Fixtures & Fittings Purchase,,10/10/2019,"1,302.22",#N/A,#N/A
5355432,Furniture Resource Centre Ltd,Operations and Neighbourhoods,Operations and Neighbourhoods,Fixtures & Fittings Purchase,,10/10/2019,504.73,#N/A,#N/A
5355350,Furniture Resource Centre Ltd,Operations and Neighbourhoods,Operations and Neighbourhoods,Fixtures & Fittings Purchase,,10/10/2019,886.57,#N/A,#N/A
5355337,Furniture Resource Centre Ltd,Operations and Neighbourhoods,Operations and Neighbourhoods,Fixtures & Fittings Purchase,,10/10/2019,855,#N/A,#N/A
5355436,Furniture Resource Centre Ltd,Operations and Neighbourhoods,Operations and Neighbourhoods,Fixtures & Fittings Purchase,,10/10/2019,"1,660.23",#N/A,#N/A
5355428,Furniture Resource Centre Ltd,Operations and Neighbourhoods,Operations and Neighbourhoods,Fixtures & Fittings Purchase,,10/10/2019,"1,210.81",#N/A,#N/A
5355429,Furniture Resource Centre Ltd,Operations and Neighbourhoods,Operations and Neighbourhoods,Fixtures & Fittings Purchase,,10/10/2019,"1,628.98",#N/A,#N/A
5358192,SIEMENS FINANCIAL SERVICES LTD,Adult Social Care,Adults,It Equipment,,10/10/2019,"20,103.60",200000,Financial Services
5358086,LOVE OUR CHILD,Education,Children's Services,#N/A,Business Payment,10/10/2019,"1,317.00",321100,Social Community Care Supplies & Services - Children
3250732,DENNIS EAGLE LTD,Operations and Neighbourhoods,Operations and Neighbourhoods,General Materials,,11/10/2019,"2,401.54",380000,Vehicle Management
3250732,G B OILS TA CARLTON FUELS,Transport,Director of Place,Diesel Fuel,,11/10/2019,"16,643.20",380000,Vehicle Management
3250732,HI-Q TYRESERVICES,Operations and Neighbourhoods,Operations and Neighbourhoods,Tyre Costs,,11/10/2019,730.66,381500,Vehicle Management
3250732,TERBERG MATEC UK LTD,Transport,Director of Place,Debits Goods Received,,11/10/2019,"1,044.54",180000,Environmental Services
3250732,TERBERG MATEC UK LTD,Operations and Neighbourhoods,Operations and Neighbourhoods,General Materials,,11/10/2019,"1,659.42",180000,Environmental Services
3250732,PEAK PARTS,Operations and Neighbourhoods,Operations and Neighbourhoods,General Materials,,11/10/2019,518.16,380000,Vehicle Management
3250732,CALIBRATION &CONSULTANCYSERVICES (UK) LTD,Operations and Neighbourhoods,Operations and Neighbourhoods,General Equipment Repair & Maintenance,,11/10/2019,825.27,150000,Consultancy
3250732,INNOVATIVE SAFETY SYSTEMS LIMITED,Operations and Neighbourhoods,Operations and Neighbourhoods,General Materials,,11/10/2019,516,380000,Vehicle Management
3250732,TRUCTYRE ATS,Operations and Neighbourhoods,Operations and Neighbourhoods,Tyre Costs,,11/10/2019,625.43,380000,Vehicle Management
3250732,DAWSON RENTALS SWEEPERS,Operations and Neighbourhoods,Operations and Neighbourhoods,Replacement Hire,,11/10/2019,"2,969.40",230000,Highway Equipment & Materials
5357243,OFF THE RECORD,Population Health,Population Health,Contributions,,11/10/2019,"22,875.00",321000,Social Community Care Supplies & Services - Adult
5355401,NOMIX-ENVIRO LTD,Operations and Neighbourhoods,Operations and Neighbourhoods,Professional Weedspraying Services,,11/10/2019,"3,033.00",240000,Horticultural
5355393,BROADSTONES SCHOOL LTD.,Education,Children's Services,Other Local Authorities Fees,,11/10/2019,"13,421.10",170000,Education
5355388,Action First Recruitment LTD,Adult Social Care,Adults,Professional Services,,11/10/2019,550,-999999,Unclassifiable
5355193,Excel Fostering Limited,Childrens Services,Children's Services,Foster Carer Agency Fees,,11/10/2019,"3,273.07",-999999,Unclassifiable
5355285,Excel Fostering Limited,Childrens Services,Children's Services,Foster Carer Agency Fees,,11/10/2019,"3,167.49",-999999,Unclassifiable
5357410,DIRECT CARE (TAMESIDE) LTD,Adult Social Care,Adults,Homecare Fees,,11/10/2019,"42,977.53",321000,Social Community Care Supplies & Services - Adult
5355391,BROADSTONES SCHOOL LTD.,Education,Children's Services,Other Local Authorities Fees,,11/10/2019,"13,421.10",170000,Education
5356723,GREATER MANCHESTER COMBINED AUTHORITY,Operations and Neighbourhoods,Operations and Neighbourhoods,Passenger Transport Levy,,11/10/2019,"1,430,756.97",-999999,Unclassifiable
5355315,CARITAS CARE LTD,Childrens Services,Children's Services,Foster Carer Agency Fees,,11/10/2019,"2,214.29",321000,Social Community Care Supplies & Services - Adult
5355321,CARITAS CARE LTD,Childrens Services,Children's Services,Foster Carer Agency Fees,,11/10/2019,"4,143.17",321000,Social Community Care Supplies & Services - Adult
5355535,TEACHING PERSONNEL LTD,Individual Schools Budget,Children's Services,Agency Staff,,11/10/2019,791.32,260000,Human Resources
5355538,TEACHING PERSONNEL LTD,Individual Schools Budget,Children's Services,Agency Staff,,11/10/2019,577.97,260000,Human Resources
5357546,FAIRFIELD VIEW CARE LTD,Adult Social Care,Adults,Nursing Home Long Stay Fees,,11/10/2019,"13,922.56",321000,Social Community Care Supplies & Services - Adult
5355244,Water Plus,Place,Growth,Metered Water Costs,,11/10/2019,"1,411.34",370000,Utilities
5355188,Water Plus,Place,Growth,Metered Water Costs,,11/10/2019,"1,620.79",370000,Utilities
5355241,Water Plus,Place,Growth,Metered Water Costs,,11/10/2019,"1,706.60",370000,Utilities
5355222,Water Plus,Place,Growth,Metered Water Costs,,11/10/2019,696.11,370000,Utilities
5355242,Water Plus,Place,Growth,Metered Water Costs,,11/10/2019,671.62,370000,Utilities
5355374,FOSTER CARES LTD,Childrens Services,Children's Services,Foster Carer Agency Fees,,11/10/2019,850,321100,Social Community Care Supplies & Services - Children
5355376,FOSTER CARES LTD,Childrens Services,Children's Services,Foster Carer Agency Fees,,11/10/2019,760,321100,Social Community Care Supplies & Services - Children
5355379,FOSTER CARES LTD,Childrens Services,Children's Services,Foster Carer Agency Fees,,11/10/2019,760,321100,Social Community Care Supplies & Services - Children
5355447,K P DODD CONSTRUCTION LTD,Housing,Director of Place,Improvement Grants - Final Mandatory,,11/10/2019,"3,400.00",390000,"Works - Construction, Repair & Maintenance"
5357686,NMA Travel LTD,Education,Children's Services,Transport Of Pupils,,11/10/2019,"2,014.00",360000,Public Transport
5357232,SHARED-CARE T/A MAPLE LEAF LIMITED,Childrens Services,Children's Services,Childrens Homes Outside Local Authority Fees,Redacted Supplier,11/10/2019,"11,078.57",321100,Social Community Care Supplies & Services - Children
5357233,SHARED-CARE T/A MAPLE LEAF LIMITED,Childrens Services,Children's Services,Childrens Homes Outside Local Authority Fees,Redacted Supplier,11/10/2019,"11,078.57",321100,Social Community Care Supplies & Services - Children
5355256,SWIIS FOSTER CARE LTD,Childrens Services,Children's Services,Foster Carer Agency Fees,,11/10/2019,703.92,321100,Social Community Care Supplies & Services - Children
5355273,SWIIS FOSTER CARE LTD,Childrens Services,Children's Services,Foster Carer Agency Fees,,11/10/2019,658.84,321100,Social Community Care Supplies & Services - Children
5355270,SWIIS FOSTER CARE LTD,Childrens Services,Children's Services,Foster Carer Agency Fees,,11/10/2019,760.48,321100,Social Community Care Supplies & Services - Children
5355272,SWIIS FOSTER CARE LTD,Childrens Services,Children's Services,Foster Carer Agency Fees,,11/10/2019,899.99,321100,Social Community Care Supplies & Services - Children
5355271,SWIIS FOSTER CARE LTD,Childrens Services,Children's Services,Foster Carer Agency Fees,,11/10/2019,837.97,321100,Social Community Care Supplies & Services - Children
5357958,JIGSAW HOMES GROUP,Operations and Neighbourhoods,Operations and Neighbourhoods,Miscellaneous Expenses,,11/10/2019,"8,132.00",321000,Social Community Care Supplies & Services - Adult
5355352,FORBES SOLICITORS,Multiple Heads of Service,Multiple Strategic Directorates,Claims Settled,,11/10/2019,"5,264.74",280000,Legal Services
5355255,SWIIS FOSTER CARE LTD,Childrens Services,Children's Services,Foster Carer Agency Fees,,11/10/2019,693.49,321100,Social Community Care Supplies & Services - Children
5355332,Fat Media Ltd,Policy and Communications,Governance,Computer Software Maintenance Costs,,11/10/2019,"5,600.00",270000,Information Communication Technology
5356783,Bloom Procurement Services Limited,(blank),(blank),Professional Consultancy Services,,11/10/2019,"3,717.00",150000,Consultancy
5355325,YOUNG PEOPLE FIRST LIMITED,Childrens Services,Children's Services,Living With Formal Support,,11/10/2019,"5,838.00",321100,Social Community Care Supplies & Services - Children
5357628,TechAlign LTD,GMPF (FX),GMPF (FX),Computer Software,,11/10/2019,"1,475.00",-999999,Unclassifiable
5355185,18 St John Street Chambers,Childrens Services,Children's Services,Legal Fees,,11/10/2019,550,280000,Legal Services
5355339,EON ENERGY,Adult Social Care,Adults,Electricity,,11/10/2019,922.6,370000,Utilities
5355556,VILLAGE URBAN RESORTS,Education,Children's Services,Room Hire,,11/10/2019,592.5,260000,Human Resources
5355245,AUTISM INITIATIVES (UK),Adult Social Care,Adults,Supporting People Gross Contract,,11/10/2019,"5,142.14",321100,Social Community Care Supplies & Services - Children
5355259,AUTISM INITIATIVES (UK),Adult Social Care,Adults,Supporting People Gross Contract,,11/10/2019,908.27,321100,Social Community Care Supplies & Services - Children
5355346,Randstad Public Services Limited,Individual Schools Budget,Children's Services,Agency Staff,,11/10/2019,"1,025.00",170000,Education
5355443,Randstad Public Services Limited,Individual Schools Budget,Children's Services,Agency Staff,,11/10/2019,"1,025.00",170000,Education
5355195,MAGIQUE GALILEO SOFTWARD LTD,Finance,Finance & IT,Computer Hardware Maintenance Costs,,11/10/2019,"3,000.00",270000,Information Communication Technology
5357735,PEOPLE FIRST TAMESIDE,Adult Social Care,Adults,Professional Services,,11/10/2019,"3,513.44",321000,Social Community Care Supplies & Services - Adult
5355221,Home Instead Senior Care,Adult Social Care,Adults,Homecare Fees,,11/10/2019,"1,621.45",321000,Social Community Care Supplies & Services - Adult
5355182,Dynamic Childcare Limited,Childrens Services,Children's Services,Childrens Homes Outside Local Authority Fees,,11/10/2019,"18,000.00",321100,Social Community Care Supplies & Services - Children
5355300,Affinity Media,Operations and Neighbourhoods,Operations and Neighbourhoods,General Materials,,11/10/2019,685,-999999,Unclassifiable
5355478,Medgen Limited,Childrens Services,Children's Services,Homecare Fees,,11/10/2019,"1,159.20",260000,Human Resources
5355302,Saddleworth Environmental Education,Education,Children's Services,Non-Maintained School Fees,,11/10/2019,"7,980.00",170000,Education
5355481,Interserve Healthcare Limited,Childrens Services,Children's Services,Day Care Fees,,11/10/2019,894.24,321100,Social Community Care Supplies & Services - Children
5357402,LOST EARTH ADVENTURE LTD,Operations and Neighbourhoods,Operations and Neighbourhoods,"Activity (Materials, Trips)",,11/10/2019,880,321100,Social Community Care Supplies & Services - Children
5355482,Teacher2Parents,Individual Schools Budget,Children's Services,Subscriptions,,11/10/2019,600.04,170000,Education
5355444,Randstad HR Solution Ltd T/A Student Worker Support,Individual Schools Budget,Children's Services,Professional Services,,11/10/2019,696,321000,Social Community Care Supplies & Services - Adult
5355445,Randstad HR Solution Ltd T/A Student Worker Support,Individual Schools Budget,Children's Services,Professional Services,,11/10/2019,986,321000,Social Community Care Supplies & Services - Adult
5355484,Redacted,Education,Children's Services,Other Local Authorities Fees,,11/10/2019,"2,195.67",170000,Education
5355181,Dynamic Childcare Limited,Childrens Services,Children's Services,Childrens Homes Outside Local Authority Fees,,11/10/2019,"18,000.00",321100,Social Community Care Supplies & Services - Children
5358338,Hillgate Health Group Limited,Childrens Services,Children's Services,Living With Formal Support,,11/10/2019,"1,179.36",-999999,Unclassifiable
5358339,Hillgate Health Group Limited,Childrens Services,Children's Services,Living With Formal Support,,11/10/2019,"1,179.36",-999999,Unclassifiable
5357796,ISW CSC Limited,Childrens Services,Children's Services,Living With Formal Support,,11/10/2019,"1,055.00",260000,Human Resources
5357799,ISW CSC Limited,Childrens Services,Children's Services,Living With Formal Support,,11/10/2019,"1,055.00",260000,Human Resources
5357797,ISW CSC Limited,Childrens Services,Children's Services,Living With Formal Support,,11/10/2019,800,260000,Human Resources
5357795,ISW CSC Limited,Childrens Services,Children's Services,Living With Formal Support,,11/10/2019,750,260000,Human Resources
5355547,VIP-SYSTEM LIMITED,Operations and Neighbourhoods,Operations and Neighbourhoods,General Materials,,11/10/2019,"1,421.22",380000,Vehicle Management
5355312,ADOPTION MATTERS NORTHWEST,Childrens Services,Children's Services,Adoption Agency Fees,,11/10/2019,"1,754.00",321100,Social Community Care Supplies & Services - Children
5357612,PRIME ACTIVE COMMUNITIES CIC,Operations and Neighbourhoods,Operations and Neighbourhoods,Grants to Organisations,,11/10/2019,"10,000.00",321100,Social Community Care Supplies & Services - Children
5355508,LIGHTBULB PSYCHOLOGY LTD,Education,Children's Services,Professional Services,,11/10/2019,"1,100.00",150000,Consultancy
5355229,DHL Parcel UK Ltd (UK Mail),Exchequer,Governance,Printing And Stationery,,11/10/2019,"3,091.04",300000,Mail Services
5355378,LIGHTBULB PSYCHOLOGY LTD,Education,Children's Services,Professional Services,,11/10/2019,"1,100.00",150000,Consultancy
5355373,LIGHTBULB PSYCHOLOGY LTD,Education,Children's Services,Professional Services,,11/10/2019,"1,100.00",150000,Consultancy
5355380,BASEMAP LIMITED,Policy and Communications,Governance,Licences,,11/10/2019,"1,525.00",270000,Information Communication Technology
5355424,Connex Community Support,Childrens Services,Children's Services,Day Care Fees,,11/10/2019,543,321000,Social Community Care Supplies & Services - Adult
5355420,Connex Community Support,Childrens Services,Children's Services,Day Care Fees,,11/10/2019,735,321000,Social Community Care Supplies & Services - Adult
5355289,CARETECH COMMUNITY SERVICES LIMITED,Adult Social Care,Adults,Residential Home Long Stay Fees,,11/10/2019,820.53,321000,Social Community Care Supplies & Services - Adult
5355507,LIGHTBULB PSYCHOLOGY LTD,Education,Children's Services,Professional Services,,11/10/2019,"1,100.00",150000,Consultancy
5355402,HORIZON SEMI-INDEPENDENT SUPPORT,Childrens Services,Children's Services,Living With Formal Support,,11/10/2019,"1,050.00",321000,Social Community Care Supplies & Services - Adult
5355288,Pertemps Professional Recruitment Limited,Childrens Services,Children's Services,Agency Staff,,11/10/2019,"1,427.76",321100,Social Community Care Supplies & Services - Children
5355638,DHL Parcel UK Ltd (UK Mail),Place,Growth,Printing And Stationery,,11/10/2019,781.03,300000,Mail Services
5357325,Smartway Health and Social Care Limited,Adult Social Care,Adults,Homecare Fees,,11/10/2019,"2,076.37",321000,Social Community Care Supplies & Services - Adult
5357323,Smartway Health and Social Care Limited,Adult Social Care,Adults,Homecare Fees,,11/10/2019,"1,976.27",321000,Social Community Care Supplies & Services - Adult
5355522,Don't Panic Projects LTD,Place,Growth,Contributions,,11/10/2019,"3,000.00",290000,Arts & Leisure Services
5357835,Hyde Accessible Transport Limited,Education,Children's Services,Transport Of Ola Pupils,,11/10/2019,"1,057.50",360000,Public Transport
5357846,Hyde Accessible Transport Limited,Operations and Neighbourhoods,Operations and Neighbourhoods,Hired Transport,,11/10/2019,"1,020.00",360000,Public Transport
5357818,Hyde Accessible Transport Limited,Education,Children's Services,Transport Of Pupils,,11/10/2019,997.5,360000,Public Transport
5357953,Hyde Accessible Transport Limited,Operations and Neighbourhoods,Operations and Neighbourhoods,Hired Transport,,11/10/2019,"2,590.00",360000,Public Transport
5357867,Hyde Accessible Transport Limited,Education,Children's Services,Transport Of Pupils,,11/10/2019,"3,135.00",360000,Public Transport
5357684,NMA Travel LTD,Education,Children's Services,Transport Of Pupils,,11/10/2019,"1,880.00",360000,Public Transport
5357272,NEW CHARTER HOUSING TRUST GROUP,Adult Social Care,Adults,Non-Authority Accommodation Rental,,11/10/2019,"4,060.15",-999999,Unclassifiable
5357680,NMA Travel LTD,Education,Children's Services,Transport Of Post 16 Pupils,,11/10/2019,"1,908.00",360000,Public Transport
5355557,OSMIS EDUCATION LIMITED,Digital Tameside,Finance & IT,Professional Services,,11/10/2019,"19,500.00",270000,Information Communication Technology
5355317,PROFILE SECURITY SERVICES LIMITED,Operations and Neighbourhoods,Operations and Neighbourhoods,General Materials,,11/10/2019,"5,635.50",190000,Facilities & Management Services
5357443,ASHTON PIONEER HOMES,Operations and Neighbourhoods,Operations and Neighbourhoods,Miscellaneous Expenses,,11/10/2019,"3,904.75",191700,Facilities & Management Services
5357109,AGE UK TAMESIDE,Adult Social Care,Adults,Age Concern Fees,,11/10/2019,"4,753.33",180000,Environmental Services
5357110,AGE UK TAMESIDE,Adult Social Care,Adults,Professional Services,,11/10/2019,"7,068.60",180000,Environmental Services
5357111,AGE UK TAMESIDE,Adult Social Care,Adults,Age Concern Fees,,11/10/2019,"2,866.67",180000,Environmental Services
5355266,WHITEFERN LTD,Operations and Neighbourhoods,Operations and Neighbourhoods,Fixtures & Fittings Purchase,,11/10/2019,"1,977.41",210000,Furniture & Soft Furnishings
5355267,TONGUE TIED (MANCHESTER) LTD,Childrens Services,Children's Services,Professional Services,,11/10/2019,"3,978.00",150000,Consultancy
5355510,LIGHTBULB PSYCHOLOGY LTD,Education,Children's Services,Professional Services,,11/10/2019,"1,100.00",150000,Consultancy
5355265,Redacted,Operations and Neighbourhoods,Operations and Neighbourhoods,Legal Fees,,11/10/2019,"1,800.00",-999999,Unclassifiable
5357576,ABLE CARE AND SUPPORT SERVICES LTD,Adult Social Care,Adults,Homecare Fees,,11/10/2019,"4,531.12",321000,Social Community Care Supplies & Services - Adult
5357467,ABLE CARE AND SUPPORT SERVICES LTD,Adult Social Care,Adults,Homecare Fees,,11/10/2019,"3,566.11",321000,Social Community Care Supplies & Services - Adult
5357577,ABLE CARE AND SUPPORT SERVICES LTD,Adult Social Care,Adults,Homecare Fees,,11/10/2019,"19,998.33",321000,Social Community Care Supplies & Services - Adult
5355530,QUEST MEDIA NETWORKS LTD,Policy and Communications,Governance,Statutory Advertising,,11/10/2019,672,-999999,Unclassifiable
5358168,Redacted,Childrens Services,Children's Services,Professional Services,,11/10/2019,782,-999999,Unclassifiable
5355497,PLATINUM STAIRLIFTS LIMITED,Housing,Director of Place,Improvement Grants - Final Mandatory,,11/10/2019,"1,656.25",321000,Social Community Care Supplies & Services - Adult
5355494,PLATINUM STAIRLIFTS LIMITED,Housing,Director of Place,Improvement Grants - Final Mandatory,,11/10/2019,"2,047.18",321000,Social Community Care Supplies & Services - Adult
5355545,PLATINUM STAIRLIFTS LIMITED,Housing,Director of Place,Improvement Grants - Final Mandatory,,11/10/2019,"1,875.00",321000,Social Community Care Supplies & Services - Adult
5355063,HEXAGON CARE SERVICES LTD,Childrens Services,Children's Services,Childrens Homes Outside Local Authority Fees,,11/10/2019,"13,285.72",321000,Social Community Care Supplies & Services - Adult
5355349,TAMESIDE TRINITY CIC,Childrens Services,Children's Services,Cash Grants,,11/10/2019,"1,260.00",321000,Social Community Care Supplies & Services - Adult
5358484,TAMESIDE SPORTS TRUST,Education,Children's Services,#N/A,,14/10/2019,"40,943.00",290000,Arts & Leisure Services
5342912,Selborne Care Ltd,Adult Social Care,Adults,Homecare Fees,,14/10/2019,"20,788.00",321000,Social Community Care Supplies & Services - Adult
5357057,K P DODD CONSTRUCTION LTD,Housing,Director of Place,Improvement Grants - Final Mandatory,,14/10/2019,"1,060.00",390000,"Works - Construction, Repair & Maintenance"
5357292,TAMESIDE LINK,Childrens Services,Children's Services,Day Care Fees,,14/10/2019,922.2,321000,Social Community Care Supplies & Services - Adult
5358038,NEW CHARTER HOUSING TRUST GROUP,Population Health,Population Health,Professional Services,,14/10/2019,"24,875.00",-999999,Unclassifiable
5356289,ROYAL MAIL,Exchequer,Governance,Postages,,14/10/2019,"1,792.00",301200,Mail Services
5358057,Redacted,Education,Children's Services,Professional Services,Redacted Supplier,14/10/2019,"12,100.00",-999999,Unclassifiable
5358057,Redacted,Education,Children's Services,#N/A,Redacted Supplier,14/10/2019,"11,700.00",-999999,Unclassifiable
5357870,NMA Travel LTD,Childrens Services,Children's Services,Hired Transport,,14/10/2019,548.52,360000,Public Transport
5356932,INSPIREDSPACES TAMESIDE LTD,(blank),(blank),New Build Construction Costs,,14/10/2019,"35,569.56",390000,"Works - Construction, Repair & Maintenance"
5356929,INSPIREDSPACES TAMESIDE LTD,(blank),(blank),Other Works,,14/10/2019,"70,118.22",390000,"Works - Construction, Repair & Maintenance"
5358561,Inspired Spaces (ProjectCo1) LTD,Asset & Investment Partnership Management,Growth,PFI FM Fees and Insurance Costs,,14/10/2019,"23,750.00",390000,"Works - Construction, Repair & Maintenance"
5355558,CORAM VOICE,Childrens Services,Children's Services,Professional Services,,14/10/2019,594.1,260000,Human Resources
5356349,TURNING POINT SERVICES LIMITED,Adult Social Care,Adults,Independent Sector Care Fees,,14/10/2019,"182,362.62",321000,Social Community Care Supplies & Services - Adult
5357360,NSL LIMITED,Operations and Neighbourhoods,Operations and Neighbourhoods,General Materials,,14/10/2019,"49,200.61",350000,Street & Traffic Management
5358352,TAMESIDE AND GLOSSOP INTEGRATED CARE NHS FOUNDATION TRUST,Hosted Services,Hosted Services,Professional Services,,14/10/2019,"4,900,000.00",310000,Healthcare
5358562,Inspired Spaces (ProjectCo1) LTD,Place,Growth,PFI FM Fees and Insurance Costs,,14/10/2019,"10,114.96",390000,"Works - Construction, Repair & Maintenance"
5355474,We Support LTD,Adult Social Care,Adults,Homecare Fees,,14/10/2019,"5,000.00",321000,Social Community Care Supplies & Services - Adult
470829,AGGREGATE INDUSTRIES UK LIMITED,Operations and Neighbourhoods,Operations and Neighbourhoods,General Materials,,15/10/2019,"5,871.07",230000,Highway Equipment & Materials
470829,ALTITUDE SERVICES,Operations and Neighbourhoods,Operations and Neighbourhoods,Sub-contractor Services,,15/10/2019,"2,161.08",230000,Highway Equipment & Materials
470829,ARCO LIMITED,Civil Engineers,Director of Place,Debits Goods Received,,15/10/2019,667.73,140000,Clothing
470829,ARCO LIMITED,Operations and Neighbourhoods,Operations and Neighbourhoods,General Materials,,15/10/2019,527.87,140000,Clothing
470829,EAGLE CIVIL ENGINEERING LTD,Operations and Neighbourhoods,Operations and Neighbourhoods,General Materials,,15/10/2019,"11,495.00",391411,"Works - Construction, Repair & Maintenance"
470829,EAGLE CIVIL ENGINEERING LTD,Operations and Neighbourhoods,Operations and Neighbourhoods,Sub-contractor Services,,15/10/2019,"22,584.80",391411,"Works - Construction, Repair & Maintenance"
470829,KENNY BROTHERS,Operations and Neighbourhoods,Operations and Neighbourhoods,Sub-contractor Services,,15/10/2019,"38,209.18",391411,"Works - Construction, Repair & Maintenance"
470829,TARMAC CENTRAL LIMITED,Operations and Neighbourhoods,Operations and Neighbourhoods,General Materials,,15/10/2019,"8,762.77",230000,Highway Equipment & Materials
470829,GRAFTON MERCHANTING GB LTD,Operations and Neighbourhoods,Operations and Neighbourhoods,General Materials,,15/10/2019,"1,746.18",100000,Building Construction Materials
470829,1st Choice Grab Hire LTD,Operations and Neighbourhoods,Operations and Neighbourhoods,Sub-contractor Services,,15/10/2019,"1,350.00",230000,Highway Equipment & Materials
470829,STALYBRIDGE READYMIX LTD,Operations and Neighbourhoods,Operations and Neighbourhoods,General Materials,,15/10/2019,"1,261.00",231200,Highway Equipment & Materials
470829,INSTARMAC GROUP PLC,Civil Engineers,Director of Place,Debits Goods Received,,15/10/2019,"1,182.00",230000,Highway Equipment & Materials
470829,LARSEN BUILDING PRODUCTS,Operations and Neighbourhoods,Operations and Neighbourhoods,General Materials,,15/10/2019,"4,259.16",-999999,Unclassifiable
470829,MAIN STREET SIGNS LIMITED,Operations and Neighbourhoods,Operations and Neighbourhoods,General Materials,,15/10/2019,562,-999999,Unclassifiable
470829,FSN Facilities Management Ltd,Operations and Neighbourhoods,Operations and Neighbourhoods,Sub-contractor Services,,15/10/2019,"5,323.50",190000,Facilities & Management Services
470829,NORTHWEST UTILITY SOLUTIONS LTD,Operations and Neighbourhoods,Operations and Neighbourhoods,Sub-contractor Services,,15/10/2019,"7,600.00",370000,Utilities
470829,ROSGAL CIVIL ENGINEERING LTD,Operations and Neighbourhoods,Operations and Neighbourhoods,General Materials,,15/10/2019,"11,000.00",230000,Highway Equipment & Materials
470829,SIGNPOST SOLUTIONS LIMITED,Civil Engineers,Director of Place,Debits Goods Received,,15/10/2019,"1,622.50",230000,Highway Equipment & Materials
470829,HARDSCAPE PRODUCTS LTD,Operations and Neighbourhoods,Operations and Neighbourhoods,General Materials,,15/10/2019,"25,978.86",230000,Highway Equipment & Materials
470829,HUGH LOGAN ENGINEERING,Civil Engineers,Director of Place,Debits Goods Received,,15/10/2019,"4,005.20",230000,Highway Equipment & Materials
470829,GLOSTA ENGINEERING,Operations and Neighbourhoods,Operations and Neighbourhoods,General Materials,,15/10/2019,"3,750.00",390000,"Works - Construction, Repair & Maintenance"
5356376,ORANGE PCS Airtime,Digital Tameside,Finance & IT,Telephone Landline Costs,,15/10/2019,"12,761.64",270000,Information Communication Technology
5356378,ORANGE PCS Airtime,Digital Tameside,Finance & IT,Telephone Landline Costs,,15/10/2019,"7,319.88",270000,Information Communication Technology
5356381,ORANGE PCS Airtime,Digital Tameside,Finance & IT,Telephone Landline Costs,,15/10/2019,934.11,270000,Information Communication Technology
5358365,Redacted,Education,Children's Services,Hired Transport,Business Payment,15/10/2019,"2,375.00",UNCLASS,Unclassifiable
5358366,Redacted,Education,Children's Services,Hired Transport,Business Payment,15/10/2019,"2,375.00",UNCLASS,Unclassifiable
5358367,Redacted,Education,Children's Services,Hired Transport,Business Payment,15/10/2019,"2,375.00",UNCLASS,Unclassifiable
5358368,Redacted,Education,Children's Services,Hired Transport,Business Payment,15/10/2019,"2,375.00",UNCLASS,Unclassifiable
5358369,Redacted,Education,Children's Services,Transport Of Post 16 Pupils,Business Payment,15/10/2019,"2,025.00",UNCLASS,Unclassifiable
5357599,ROYAL MAIL GROUP PLC,Governance,Governance,Postages,,15/10/2019,"10,593.46",300000,Mail Services
5357430,PERSON CENTRED CARE SERVICES LIMITED,Adult Social Care,Adults,Homecare Fees,,15/10/2019,"1,229.60",310000,Healthcare
5357432,PERSON CENTRED CARE SERVICES LIMITED,Adult Social Care,Adults,Homecare Fees,,15/10/2019,"1,229.60",310000,Healthcare
5357139,Bloom Procurement Services Limited,Tameside Investment Partnership,Director of Place,Consultancies,,15/10/2019,"21,394.68",150000,Consultancy
5357137,Bloom Procurement Services Limited,Tameside Investment Partnership,Director of Place,Consultancies,,15/10/2019,"26,300.00",150000,Consultancy
5358707,REGENDA LIMITED,Adult Social Care,Adults,Non-Authority Accommodation Rental,,15/10/2019,"2,111.81",250000,Housing Management
5358709,REGENDA LIMITED,Adult Social Care,Adults,Non-Authority Accommodation Rental,,15/10/2019,"2,111.81",250000,Housing Management
5357418,PERSON CENTRED CARE SERVICES LIMITED,Adult Social Care,Adults,Homecare Fees,,15/10/2019,"1,260.34",310000,Healthcare
5357417,PERSON CENTRED CARE SERVICES LIMITED,Adult Social Care,Adults,Homecare Fees,,15/10/2019,"1,198.86",310000,Healthcare
5357420,PERSON CENTRED CARE SERVICES LIMITED,Adult Social Care,Adults,Homecare Fees,,15/10/2019,"1,229.60",310000,Healthcare
5357422,PERSON CENTRED CARE SERVICES LIMITED,Adult Social Care,Adults,Homecare Fees,,15/10/2019,"1,229.60",310000,Healthcare
5358662,UK FOSTERING LTD,Childrens Services,Children's Services,Foster Carer Agency Fees,,15/10/2019,"3,476.34",321100,Social Community Care Supplies & Services - Children
5357310,MANCHESTER CITY COUNCIL,Operations and Neighbourhoods,Operations and Neighbourhoods,Professional Entertainment Services,,15/10/2019,"20,000.00",321100,Social Community Care Supplies & Services - Children
5357265,Safehands Liverpool LTD,Childrens Services,Children's Services,Living With Formal Support,,15/10/2019,"8,373.00",321100,Social Community Care Supplies & Services - Children
5358298,Oxygen Finance Limited,People and Workforce Development,Governance,Professional Services,,15/10/2019,"2,113.82",200000,Financial Services
5358665,UK FOSTERING LTD,Childrens Services,Children's Services,Foster Carer Agency Fees,,15/10/2019,"3,027.78",321100,Social Community Care Supplies & Services - Children
5358660,UK FOSTERING LTD,Childrens Services,Children's Services,Foster Carer Agency Fees,,15/10/2019,"3,124.17",321100,Social Community Care Supplies & Services - Children
5348382,Onward Homes,Housing,Director of Place,Claims Settled,,15/10/2019,"77,000.00",190000,Facilities & Management Services
5358663,UK FOSTERING LTD,Childrens Services,Children's Services,Foster Carer Agency Fees,,15/10/2019,"3,587.01",321100,Social Community Care Supplies & Services - Children
5354213,TAMESIDE SPORTS TRUST,Adult Social Care,Adults,Day Centre Fees,,16/10/2019,"1,229.00",290000,Arts & Leisure Services
5355595,CAPSTONE FOSTER CARE,Childrens Services,Children's Services,Foster Carer Agency Fees,,16/10/2019,"3,076.08",321000,Social Community Care Supplies & Services - Adult
5355580,Sanctuary Personnel Trading as Skylakes,Childrens Services,Children's Services,Professional Services,,16/10/2019,"17,723.72",321100,Social Community Care Supplies & Services - Children
5358890,TAMESIDE SPORTS TRUST,Childrens Services,Children's Services,"Activity (Materials, Trips)",,16/10/2019,"1,560.00",290000,Arts & Leisure Services
5354218,TAMESIDE SPORTS TRUST,Adult Social Care,Adults,Homecare Fees,,16/10/2019,"1,843.50",290000,Arts & Leisure Services
5358364,Hyde Accessible Transport Limited,Education,Children's Services,Transport Of Ola Pupils,,16/10/2019,"2,820.00",360000,Public Transport
5355639,Change Grow Live,Population Health,Population Health,Professional Services,,16/10/2019,"272,416.00",321000,Social Community Care Supplies & Services - Adult
5355581,Sanctuary Personnel Trading as Skylakes,Childrens Services,Children's Services,Professional Services,,16/10/2019,"35,447.44",321100,Social Community Care Supplies & Services - Children
5355584,Sanctuary Personnel Trading as Skylakes,Childrens Services,Children's Services,Professional Services,,16/10/2019,"17,723.72",321100,Social Community Care Supplies & Services - Children
5355579,Sanctuary Personnel Trading as Skylakes,Childrens Services,Children's Services,Professional Services,,16/10/2019,"17,723.72",321100,Social Community Care Supplies & Services - Children
5355578,Sanctuary Personnel Trading as Skylakes,Childrens Services,Children's Services,Professional Services,,16/10/2019,"17,723.72",321100,Social Community Care Supplies & Services - Children
5357611,The Shed Tameside,Adult Social Care,Adults,Professional Services,,16/10/2019,"2,700.60",321000,Social Community Care Supplies & Services - Adult
5358772,UK FOSTERING LTD,Childrens Services,Children's Services,Foster Carer Agency Fees,,16/10/2019,"3,471.30",321100,Social Community Care Supplies & Services - Children
5358774,UK FOSTERING LTD,Childrens Services,Children's Services,Foster Carer Agency Fees,,16/10/2019,"3,476.34",321100,Social Community Care Supplies & Services - Children
5358776,UK FOSTERING LTD,Childrens Services,Children's Services,Foster Carer Agency Fees,,16/10/2019,"3,587.01",321100,Social Community Care Supplies & Services - Children
5358773,UK FOSTERING LTD,Childrens Services,Children's Services,Foster Carer Agency Fees,,16/10/2019,"3,364.20",321100,Social Community Care Supplies & Services - Children
5355587,CAMBIAN CHILDCARE LTD,Childrens Services,Children's Services,Childrens Homes Outside Local Authority Fees,Redacted Supplier,16/10/2019,"25,628.46",321100,Social Community Care Supplies & Services - Children
5355465,TAMESIDE TRINITY CIC,Childrens Services,Children's Services,Cash Grants,,16/10/2019,"12,600.00",321000,Social Community Care Supplies & Services - Adult
5355586,THE MUSIC MAN,Education,Children's Services,Musical Instruments,,16/10/2019,"3,593.50",200000,Financial Services
5358807,PARAMOUNT CARE & SAFETY LIMITED,Childrens Services,Children's Services,Hired Transport,,16/10/2019,998.75,-999999,Unclassifiable
5355585,OCR,Place,Growth,Examination Fees,,16/10/2019,590,170000,Education
5358103,AUTUMN (UK) 2017 LIMITED,Housing,Director of Place,Improvement Grants - Final Mandatory,,16/10/2019,"4,395.00",321000,Social Community Care Supplies & Services - Adult
5355663,TAMESIDE ARTS LTD,Adult Social Care,Adults,Day Centre Fees,,16/10/2019,645.92,290000,Arts & Leisure Services
5358936,STAMFORD CARS UK LTD,Education,Children's Services,Transport Of Pupils,,16/10/2019,"1,330.00",360000,Public Transport
5358929,STAMFORD CARS UK LTD,Education,Children's Services,Transport Of Pupils,,16/10/2019,"1,520.00",360000,Public Transport
5358932,STAMFORD CARS UK LTD,Education,Children's Services,Transport Of Ola Pupils,,16/10/2019,"1,520.00",360000,Public Transport
5358931,STAMFORD CARS UK LTD,Education,Children's Services,Transport Of Ola Pupils,,16/10/2019,"1,710.00",360000,Public Transport
5358933,STAMFORD CARS UK LTD,Education,Children's Services,Transport Of Ola Pupils,,16/10/2019,"3,300.00",360000,Public Transport
5358930,STAMFORD CARS UK LTD,Education,Children's Services,Transport Of Ola Pupils,,16/10/2019,715,360000,Public Transport
5358934,STAMFORD CARS UK LTD,Education,Children's Services,Hired Transport,,16/10/2019,"1,805.00",360000,Public Transport
5358937,STAMFORD CARS UK LTD,Education,Children's Services,Transport Of Pupils,,16/10/2019,"1,805.00",360000,Public Transport
5358935,STAMFORD CARS UK LTD,Education,Children's Services,Transport Of Ola Pupils,,16/10/2019,"2,250.00",360000,Public Transport
5355635,FAMILY CARE FOSTERING LTD,Childrens Services,Children's Services,Foster Carer Agency Fees,,16/10/2019,"3,379.24",321100,Social Community Care Supplies & Services - Children
5358093,K P DODD CONSTRUCTION LTD,Housing,Director of Place,Improvement Grants - Final Mandatory,,16/10/2019,"4,155.00",390000,"Works - Construction, Repair & Maintenance"
5356762,PRISM MEDICAL UK,Housing,Director of Place,Improvement Grants - Final Mandatory,,16/10/2019,"1,799.58",311600,Healthcare
5355620,VISION BEYOND AUTISM CIC,Education,Children's Services,Non-Maintained School Fees,,16/10/2019,"9,941.75",321100,Social Community Care Supplies & Services - Children
5335412,Tameside Housing Advice,Operations and Neighbourhoods,Operations and Neighbourhoods,Other Accomodation Related Costs,,16/10/2019,"2,772.00",-999999,Unclassifiable
5335413,Tameside Housing Advice,Operations and Neighbourhoods,Operations and Neighbourhoods,Other Accomodation Related Costs,,16/10/2019,"7,235.50",-999999,Unclassifiable
5358591,Hillgate Health Group Limited,Childrens Services,Children's Services,Living With Formal Support,,16/10/2019,"1,179.36",-999999,Unclassifiable
5358735,ISW CSC Limited,Childrens Services,Children's Services,Living With Formal Support,,16/10/2019,"1,055.00",260000,Human Resources
5358737,ISW CSC Limited,Childrens Services,Children's Services,Living With Formal Support,,16/10/2019,"1,055.00",260000,Human Resources
5358734,ISW CSC Limited,Childrens Services,Children's Services,Living With Formal Support,,16/10/2019,890,260000,Human Resources
5355613,YOUNG PEOPLE FIRST LIMITED,Childrens Services,Children's Services,Living With Formal Support,,16/10/2019,"6,818.00",321100,Social Community Care Supplies & Services - Children
5355618,Accountants In Demand t/a The Finegreen Group,Place,Growth,Agency Staff,,16/10/2019,"2,400.00",260000,Human Resources
5358718,Redacted,Multiple Heads of Service,Multiple Strategic Directorates,Salaries & Wages Advances(Hold),,16/10/2019,770,-999999,Unclassifiable
5354813,Independent Together Limited,Childrens Services,Children's Services,Living With Formal Support,,16/10/2019,"3,574.28",321000,Social Community Care Supplies & Services - Adult
5354878,TURNING POINT SERVICES LIMITED,Adult Social Care,Adults,Homecare Fees,,16/10/2019,681.6,321000,Social Community Care Supplies & Services - Adult
5358920,HATTON GRANGE,Adult Social Care,Adults,Nursing Home Long Stay Fees,,16/10/2019,"5,048.88",321000,Social Community Care Supplies & Services - Adult
5358736,ISW CSC Limited,Childrens Services,Children's Services,Living With Formal Support,,16/10/2019,800,260000,Human Resources
5355631,SOFTCAT LIMITED,Digital Tameside,Finance & IT,It Equipment,,16/10/2019,580.64,270000,Information Communication Technology
5355623,INTACT PROJECTS LIMITED,Childrens Services,Children's Services,Living With Formal Support,,16/10/2019,"1,590.00",321000,Social Community Care Supplies & Services - Adult
5355677,NEW BRIDGE HORIZONS,Adult Social Care,Adults,Day Centre Fees,,16/10/2019,"2,101.50",321000,Social Community Care Supplies & Services - Adult
5355625,INTACT PROJECTS LIMITED,Childrens Services,Children's Services,Living With Formal Support,,16/10/2019,"1,590.00",321000,Social Community Care Supplies & Services - Adult
5355714,NEW BRIDGE HORIZONS,Adult Social Care,Adults,Day Centre Fees,,16/10/2019,"1,620.00",321000,Social Community Care Supplies & Services - Adult
5355680,NEW BRIDGE HORIZONS,Adult Social Care,Adults,Day Centre Fees,,16/10/2019,"1,634.50",321000,Social Community Care Supplies & Services - Adult
5355673,NEW BRIDGE HORIZONS,Adult Social Care,Adults,Day Centre Fees,,16/10/2019,"1,462.50",321000,Social Community Care Supplies & Services - Adult
5355670,NEW BRIDGE HORIZONS,Adult Social Care,Adults,Day Centre Fees,,16/10/2019,952.5,321000,Social Community Care Supplies & Services - Adult
5357557,Eden Brown LTD,Childrens Services,Children's Services,Agency Staff,,16/10/2019,"2,618.10",-999999,Unclassifiable
5351473,STEP AHEAD RESOURCE SERVICES,Adult Social Care,Adults,Homecare Fees,,16/10/2019,"1,150.00",321000,Social Community Care Supplies & Services - Adult
5358630,SEDGEMOOR DISTRICT COUNCIL,Hosted Services,Hosted Services,Professional Consultancy Services,,16/10/2019,"3,408.35",-999999,Unclassifiable
5355634,FOSTERING PEOPLE LTD,Childrens Services,Children's Services,Foster Carer Agency Fees,,16/10/2019,"3,405.00",321100,Social Community Care Supplies & Services - Children
5355679,NPOWER LIMITED,Operations and Neighbourhoods,Operations and Neighbourhoods,Electricity,,17/10/2019,"87,044.24",370000,Utilities
3250733,ARNOLD PLANT HIRE LTD,Operations and Neighbourhoods,Operations and Neighbourhoods,Additional Hire,,17/10/2019,"1,063.00",UNCLASS,Unclassifiable
3250733,BURNT TREE GROUP LIMITED,Operations and Neighbourhoods,Operations and Neighbourhoods,Additional Hire,,17/10/2019,"2,886.15",380000,Vehicle Management
3250733,HI-Q TYRESERVICES,Operations and Neighbourhoods,Operations and Neighbourhoods,Tyre Costs,,17/10/2019,"1,135.37",381500,Vehicle Management
3250733,TERBERG MATEC UK LTD,Transport,Director of Place,Debits Goods Received,,17/10/2019,804.33,180000,Environmental Services
3250733,TERBERG MATEC UK LTD,Operations and Neighbourhoods,Operations and Neighbourhoods,General Materials,,17/10/2019,"5,214.75",180000,Environmental Services
3250733,NTM GB LTD,Operations and Neighbourhoods,Operations and Neighbourhoods,General Materials,,17/10/2019,709.54,380000,Vehicle Management
3250733,ECON ENGINEERING LTD,Operations and Neighbourhoods,Operations and Neighbourhoods,General Materials,,17/10/2019,"2,973.61",380000,Vehicle Management
3250733,LEEDS COMMERCIAL LTD T/A LC VEHICLE HIRE,Operations and Neighbourhoods,Operations and Neighbourhoods,Additional Hire,,17/10/2019,"1,260.00",380000,Vehicle Management
3250733,TRUCTYRE ATS,Operations and Neighbourhoods,Operations and Neighbourhoods,Tyre Costs,,17/10/2019,913.4,380000,Vehicle Management
3250733,RIVERSIDE TRUCK RENTAL LIMITED,Operations and Neighbourhoods,Operations and Neighbourhoods,Additional Hire,,17/10/2019,"3,759.00",380000,Vehicle Management
3250733,RIVERSIDE TRUCK RENTAL LIMITED,Operations and Neighbourhoods,Operations and Neighbourhoods,Replacement Hire,,17/10/2019,895,380000,Vehicle Management
3250733,MOTUS COMMERCIALS (OLDHAM),Operations and Neighbourhoods,Operations and Neighbourhoods,General Materials,,17/10/2019,564.91,380000,Vehicle Management
5355672,NPOWER LIMITED,Place,Growth,Electricity,,17/10/2019,"49,434.41",370000,Utilities
5355676,NPOWER LIMITED,Place,Growth,Electricity,,17/10/2019,"20,042.34",370000,Utilities
5355681,CPC,Digital Tameside,Finance & IT,It Equipment,,17/10/2019,"1,125.00",270000,Information Communication Technology
5358117,JACKSON & TAYLOR LTD,(blank),(blank),Improvement Grants - Final Mandatory,,17/10/2019,"4,188.00",390000,"Works - Construction, Repair & Maintenance"
5358114,JACKSON & TAYLOR LTD,Asset Management and Investment Partnership Management,Director of Place,Improvement Grants - Final Mandatory,,17/10/2019,"6,193.20",390000,"Works - Construction, Repair & Maintenance"
5359013,NEXUS SOLICITORS,Education,Children's Services,Legal Fees,,17/10/2019,"6,561.47",-999999,Unclassifiable
5355727,P MCGUINNESS & CO LTD,Place,Growth,Engineers Works,,17/10/2019,540,390000,"Works - Construction, Repair & Maintenance"
5355732,CAPSTONE FOSTER CARE,Childrens Services,Children's Services,Foster Carer Agency Fees,,17/10/2019,"3,103.50",321000,Social Community Care Supplies & Services - Adult
5355733,PHONAK UK LIMITED,Education,Children's Services,Educational Equipment,,17/10/2019,"11,009.60",321100,Social Community Care Supplies & Services - Children
5357711,CARE TODAY,Childrens Services,Children's Services,Childrens Homes Outside Local Authority Fees,Redacted Supplier,17/10/2019,"11,335.80",321100,Social Community Care Supplies & Services - Children
5357744,CARE TODAY,Childrens Services,Children's Services,Childrens Homes Outside Local Authority Fees,Redacted Supplier,17/10/2019,"11,335.80",321100,Social Community Care Supplies & Services - Children
5357746,CARE TODAY,Childrens Services,Children's Services,Childrens Homes Outside Local Authority Fees,Redacted Supplier,17/10/2019,"10,478.70",321100,Social Community Care Supplies & Services - Children
5357641,CARE TODAY,Childrens Services,Children's Services,Childrens Homes Outside Local Authority Fees,Redacted Supplier,17/10/2019,"11,978.70",321100,Social Community Care Supplies & Services - Children
5357745,CARE TODAY,Childrens Services,Children's Services,Childrens Homes Outside Local Authority Fees,Redacted Supplier,17/10/2019,"16,885.80",321100,Social Community Care Supplies & Services - Children
5358892,BARCLAYCARD COMMERCIAL,Childrens Services,Children's Services,Procurement Hub Holding Account,,17/10/2019,"21,632.67",200000,Financial Services
5358892,BARCLAYCARD COMMERCIAL,Individual Schools Budget,Children's Services,Procurement Hub Holding Account,,17/10/2019,"1,036.95",200000,Financial Services
5358892,BARCLAYCARD COMMERCIAL,Operations and Neighbourhoods,Operations and Neighbourhoods,Procurement Hub Holding Account,,17/10/2019,759.02,200000,Financial Services
5358892,BARCLAYCARD COMMERCIAL,Education,Children's Services,Procurement Hub Holding Account,,17/10/2019,813.32,200000,Financial Services
5358892,BARCLAYCARD COMMERCIAL,Hosted Services,Hosted Services,Procurement Hub Holding Account,,17/10/2019,"1,734.61",200000,Financial Services
5358892,BARCLAYCARD COMMERCIAL,Digital Tameside,Finance & IT,Procurement Hub Holding Account,,17/10/2019,562.39,200000,Financial Services
5358892,BARCLAYCARD COMMERCIAL,Policy and Communications,Governance,Procurement Hub Holding Account,,17/10/2019,"1,353.71",200000,Financial Services
5358845,AD HOC CHAPS PAYMENT,(blank),(blank),New Accommodation Works,,17/10/2019,"150,000.00",400002,Chaps Payments
5359018,AD HOC CHAPS PAYMENT,Adult Social Care,Adults,Homecare Fees,,17/10/2019,"41,585.79",400002,Chaps Payments
5358844,AD HOC CHAPS PAYMENT,Multiple Heads of Service,Multiple Strategic Directorates,Salaries & Wages Advances(Hold),,17/10/2019,"12,247.25",400002,Chaps Payments
5358971,CREATIVE SUPPORT LTD,Adult Social Care,Adults,Age Concern Fees,,17/10/2019,"32,496.92",321000,Social Community Care Supplies & Services - Adult
5358856,SANTANDER UK PLC,Finance,Finance & IT,National Giro,,17/10/2019,528.64,200000,Financial Services
5358861,SANTANDER UK PLC,Finance,Finance & IT,National Giro,,17/10/2019,"7,022.24",200000,Financial Services
5357722,Selborne Care Ltd,Adult Social Care,Adults,Homecare Fees,,17/10/2019,"20,788.00",321000,Social Community Care Supplies & Services - Adult
5358096,TAMESIDE ARTS LTD,Adult Social Care,Adults,Professional Services,,17/10/2019,"3,086.40",290000,Arts & Leisure Services
5359042,CREATIVE SUPPORT LTD,Adult Social Care,Adults,Age Concern Fees,,17/10/2019,"32,496.92",321000,Social Community Care Supplies & Services - Adult
5355756,TUDOR (UK) LTD T/A TUDOR ENVIRONMENTAL,Operations and Neighbourhoods,Operations and Neighbourhoods,General Materials,,17/10/2019,633.52,240000,Horticultural
5355752,PLATINUM STAIRLIFTS LIMITED,Housing,Director of Place,Improvement Grants - Final Mandatory,,17/10/2019,"3,375.00",321000,Social Community Care Supplies & Services - Adult
5355200,KILOGRAMME ANIMATION STUDIO,Population Health,Population Health,"Marketing, Publicity and Recruitment",,17/10/2019,"8,400.00",260000,Human Resources
5355720,INTERFERENCE-ART,Cultural and Customer Services,"Community,Environmental,Adult and Health Services",Fees,,17/10/2019,"1,200.00",200000,Financial Services
5358151,GREENSCAPE,Adult Social Care,Adults,Professional Services,,17/10/2019,"1,286.00",390000,"Works - Construction, Repair & Maintenance"
5358188,Park Lane Minibuses LTD,Operations and Neighbourhoods,Operations and Neighbourhoods,Hired Transport,,17/10/2019,"4,041.44",360000,Public Transport
5358120,Park Lane Minibuses LTD,Education,Children's Services,Transport Of Post 16 Pupils,,17/10/2019,"1,022.00",360000,Public Transport
5358126,Park Lane Minibuses LTD,Operations and Neighbourhoods,Operations and Neighbourhoods,Hired Transport,,17/10/2019,"2,706.00",360000,Public Transport
5358125,Park Lane Minibuses LTD,Education,Children's Services,Transport Of Pupils,,17/10/2019,"2,705.60",360000,Public Transport
5358121,Park Lane Minibuses LTD,Education,Children's Services,Transport Of Ola Pupils,,17/10/2019,"1,522.95",360000,Public Transport
5356685,COMFORT CALL LIMITED,Adult Social Care,Adults,Homecare Fees,,17/10/2019,"12,311.02",310000,Healthcare
5357434,TE LETTINGS,Childrens Services,Children's Services,Other Accomodation Related Costs,,17/10/2019,"2,735.96",#N/A,#N/A
5359078,PERSON CENTRED CARE SERVICES LIMITED,Adult Social Care,Adults,Homecare Fees,,17/10/2019,"9,367.24",310000,Healthcare
5356041,Redacted,Childrens Services,Children's Services,Legal Fees,,17/10/2019,600,-999999,Unclassifiable
5355667,Randstad Public Services Limited,Education,Children's Services,Agency Staff,,17/10/2019,"1,000.00",170000,Education
5355660,Randstad Public Services Limited,Education,Children's Services,Agency Staff,,17/10/2019,"1,000.00",170000,Education
5355666,Randstad Public Services Limited,Education,Children's Services,Agency Staff,,17/10/2019,"1,250.00",170000,Education
5355664,Randstad Public Services Limited,Education,Children's Services,Agency Staff,,17/10/2019,"1,250.00",170000,Education
5355661,Randstad Public Services Limited,Education,Children's Services,Agency Staff,,17/10/2019,"1,250.00",170000,Education
5357125,Montrose Recruitment Limited TA Montrose Living,Childrens Services,Children's Services,Living With Formal Support,,17/10/2019,"5,571.30",321100,Social Community Care Supplies & Services - Children
5357381,QA LIMITED,GMPF (FX),GMPF (FX),Training Course Costs,,17/10/2019,"7,706.00",260000,Human Resources
5355713,REACTEC LIMITED,Operations and Neighbourhoods,Operations and Neighbourhoods,General Materials,,17/10/2019,"3,948.84",390000,"Works - Construction, Repair & Maintenance"
5358755,HALLIWELL HOMES,Childrens Services,Children's Services,Childrens Homes Outside Local Authority Fees,,17/10/2019,713.57,321100,Social Community Care Supplies & Services - Children
5358748,Redacted,Adult Social Care,Adults,Day Care Fees,Redacted Supplier,17/10/2019,543.96,-999999,Unclassifiable
5358129,Cath Quinnell t/a CQ Training Services,Operations and Neighbourhoods,Operations and Neighbourhoods,"Activity (Materials, Trips)",,17/10/2019,"2,000.00",220000,Health & Safety
5355647,Sandcastle Care LTD,Childrens Services,Children's Services,Childrens Homes Outside Local Authority Fees,,17/10/2019,"25,692.86",321000,Social Community Care Supplies & Services - Adult
5355695,YOUNG PEOPLE FIRST LIMITED,Childrens Services,Children's Services,Living With Formal Support,,17/10/2019,"3,584.00",321100,Social Community Care Supplies & Services - Children
5355687,Albert Hall Nottingham Limited,Hosted Services,Hosted Services,Conference/Seminar Expenses For Staff,,17/10/2019,"2,085.00",-999999,Unclassifiable
5355712,The Compost Bag Company Ltd,Operations and Neighbourhoods,Operations and Neighbourhoods,Purchase Plastic Sacks,,17/10/2019,"2,177.50",182014,Environmental Services
5355686,Social Work Solutions NW Limited,Adult Social Care,Adults,Professional Services,,17/10/2019,529.5,321000,Social Community Care Supplies & Services - Adult
5355728,HEXAGON CARE SERVICES LTD,Childrens Services,Children's Services,Childrens Homes Outside Local Authority Fees,,17/10/2019,"13,242.86",321000,Social Community Care Supplies & Services - Adult
5358110,STEPPING STONES CHILDRENS HOMES LTD,Childrens Services,Children's Services,Childrens Homes Outside Local Authority Fees,,17/10/2019,"15,680.00",321100,Social Community Care Supplies & Services - Children
5337350,GREATER MANCHESTER COMBINED AUTHORITY,Operations and Neighbourhoods,Operations and Neighbourhoods,GMC Waste Disposal Levy,,17/10/2019,"1,288,000.00",-999999,Unclassifiable
5357999,Redacted,Multiple Heads of Service,Multiple Strategic Directorates,Balance Of Risks Receipts,Redacted Supplier,17/10/2019,"2,062.50",-999999,Unclassifiable
5355735,NEW IMAGE(PUBLIC RELATIONS) LTD,Operations and Neighbourhoods,Operations and Neighbourhoods,Professional Entertainment Services,,17/10/2019,"2,500.00",190000,Facilities & Management Services
5357701,STOCKPORT CP  SOCIETY,Adult Social Care,Adults,Day Centre Fees,,17/10/2019,"1,108.80",321000,Social Community Care Supplies & Services - Adult
5357691,STOCKPORT CP  SOCIETY,Adult Social Care,Adults,Day Centre Fees,,17/10/2019,"1,108.80",321000,Social Community Care Supplies & Services - Adult
5358360,GREATER MANCHESTER PENSION FUND,Corporate Costs,Corporate Costs,Pension Increase Act Costs,,17/10/2019,"122,900.00",UNCLASS,Unclassifiable
5355762,Exclusec Security Solutions Ltd,Operations and Neighbourhoods,Operations and Neighbourhoods,Professional Entertainment Services,,17/10/2019,"1,415.60",-999999,Unclassifiable
5355725,Options Autism (4) LTD,Childrens Services,Children's Services,Childrens Homes Outside Local Authority Fees,,17/10/2019,"20,871.43",170000,Education
5355723,Oxford Innovation LTD - ASHTON OLD BATHS,Place,Growth,Professional Services,,17/10/2019,"24,929.33",190000,Facilities & Management Services
5358105,STEPPING STONES CHILDRENS HOMES LTD,Childrens Services,Children's Services,Childrens Homes Outside Local Authority Fees,,17/10/2019,"20,000.00",321100,Social Community Care Supplies & Services - Children
5358102,STEPPING STONES CHILDRENS HOMES LTD,Childrens Services,Children's Services,Childrens Homes Outside Local Authority Fees,,17/10/2019,"20,000.00",321100,Social Community Care Supplies & Services - Children
5358109,STEPPING STONES CHILDRENS HOMES LTD,Childrens Services,Children's Services,Childrens Homes Outside Local Authority Fees,,17/10/2019,"13,720.00",321100,Social Community Care Supplies & Services - Children
5358104,STEPPING STONES CHILDRENS HOMES LTD,Childrens Services,Children's Services,Childrens Homes Outside Local Authority Fees,,17/10/2019,"16,650.00",321100,Social Community Care Supplies & Services - Children
5355745,FOSTERING LIMITED,Childrens Services,Children's Services,Foster Carer Agency Fees,,17/10/2019,880,321100,Social Community Care Supplies & Services - Children
5358106,STEPPING STONES CHILDRENS HOMES LTD,Childrens Services,Children's Services,Childrens Homes Outside Local Authority Fees,,17/10/2019,"27,440.00",321100,Social Community Care Supplies & Services - Children
5358107,STEPPING STONES CHILDRENS HOMES LTD,Childrens Services,Children's Services,Childrens Homes Outside Local Authority Fees,,17/10/2019,"17,640.00",321100,Social Community Care Supplies & Services - Children
5356303,LIBERTY SUPPORT SERVICES LTD,Adult Social Care,Adults,Homecare Fees,,17/10/2019,"16,554.16",321000,Social Community Care Supplies & Services - Adult
5355759,The Networking People (TNP) Ltd,Place,Growth,It Equipment,,17/10/2019,"1,805.46",270000,Information Communication Technology
5355738,FOSTERING LIMITED,Childrens Services,Children's Services,Foster Carer Agency Fees,,17/10/2019,880,321100,Social Community Care Supplies & Services - Children
5355749,FOSTERING LIMITED,Childrens Services,Children's Services,Foster Carer Agency Fees,,17/10/2019,862.4,321100,Social Community Care Supplies & Services - Children
5355746,FOSTERING LIMITED,Childrens Services,Children's Services,Foster Carer Agency Fees,,17/10/2019,862.4,321100,Social Community Care Supplies & Services - Children
5355742,FOSTERING LIMITED,Childrens Services,Children's Services,Foster Carer Agency Fees,,17/10/2019,862.4,321100,Social Community Care Supplies & Services - Children
5356763,NEW CHARTER HOUSING TRUST GROUP,Childrens Services,Children's Services,Professional Services,,17/10/2019,"9,600.00",-999999,Unclassifiable
5356764,NEW CHARTER HOUSING TRUST GROUP,Childrens Services,Children's Services,Professional Services,,17/10/2019,"24,000.00",-999999,Unclassifiable
5355740,FOSTERING LIMITED,Childrens Services,Children's Services,Foster Carer Agency Fees,,17/10/2019,880,321100,Social Community Care Supplies & Services - Children
5355743,FOSTERING LIMITED,Childrens Services,Children's Services,Foster Carer Agency Fees,,17/10/2019,880,321100,Social Community Care Supplies & Services - Children
5355747,FOSTERING LIMITED,Childrens Services,Children's Services,Foster Carer Agency Fees,,17/10/2019,880,321100,Social Community Care Supplies & Services - Children
5355748,FOSTERING LIMITED,Childrens Services,Children's Services,Foster Carer Agency Fees,,17/10/2019,880,321100,Social Community Care Supplies & Services - Children
5355750,FOSTERING LIMITED,Childrens Services,Children's Services,Foster Carer Agency Fees,,17/10/2019,880,321100,Social Community Care Supplies & Services - Children
5355751,FOSTERING LIMITED,Childrens Services,Children's Services,Foster Carer Agency Fees,,17/10/2019,880,321100,Social Community Care Supplies & Services - Children
5358124,Park Lane Minibuses LTD,Education,Children's Services,Transport Of Post 16 Pupils,,17/10/2019,"1,972.20",360000,Public Transport
5355737,FOSTERING LIMITED,Childrens Services,Children's Services,Foster Carer Agency Fees,,17/10/2019,862.4,321100,Social Community Care Supplies & Services - Children
5355726,HEXAGON CARE SERVICES LTD,Childrens Services,Children's Services,Childrens Homes Outside Local Authority Fees,,17/10/2019,"4,806.00",321000,Social Community Care Supplies & Services - Adult
5355969,MEDACS HEALTHCARE,Adult Social Care,Adults,Homecare Fees,,18/10/2019,"1,178.94",150000,Consultancy
5355970,MEDACS HEALTHCARE,Adult Social Care,Adults,Homecare Fees,,18/10/2019,"1,037.05",150000,Consultancy
5358033,STOCKPORT MBC (SEXUAL HEALTH CONTRACT),Population Health,Population Health,Professional Services,,18/10/2019,"106,243.66",150000,Consultancy
5358149,INSPIREDSPACES TAMESIDE LTD,Asset & Investment Partnership Management,Growth,PFI FM Fees and Insurance Costs,,18/10/2019,"1,233.00",390000,"Works - Construction, Repair & Maintenance"
5359229,Redacted,Childrens Services,Children's Services,Legal Fees,,18/10/2019,"1,162.50",321100,Social Community Care Supplies & Services - Children
5358184,INSPIREDSPACES TAMESIDE LTD,Asset & Investment Partnership Management,Growth,PFI FM Fees and Insurance Costs,,18/10/2019,"3,940.00",390000,"Works - Construction, Repair & Maintenance"
5358147,INSPIREDSPACES TAMESIDE LTD,Asset & Investment Partnership Management,Growth,PFI FM Fees and Insurance Costs,,18/10/2019,"2,960.00",390000,"Works - Construction, Repair & Maintenance"
5355966,CARELINE HOMECARE LTD,Adult Social Care,Adults,Homecare Fees,,18/10/2019,"9,443.38",321000,Social Community Care Supplies & Services - Adult
5358013,INSPIREDSPACES TAMESIDE LTD,Place,Growth,Agency Staff,,18/10/2019,"19,374.00",390000,"Works - Construction, Repair & Maintenance"
5355915,CARELINE HOMECARE LTD,Adult Social Care,Adults,Homecare Fees,,18/10/2019,"11,861.80",321000,Social Community Care Supplies & Services - Adult
5356765,CARELINE HOMECARE LTD,Adult Social Care,Adults,Homecare Fees,,18/10/2019,"8,121.80",321000,Social Community Care Supplies & Services - Adult
5356306,LIBERTY SUPPORT SERVICES LTD,Adult Social Care,Adults,Spot Purchasing Fees,,18/10/2019,"1,215.00",321000,Social Community Care Supplies & Services - Adult
5355959,Just One Recruitment and Training,Childrens Services,Children's Services,Living With Formal Support,,18/10/2019,507.24,321000,Social Community Care Supplies & Services - Adult
5355962,Just One Recruitment and Training,Childrens Services,Children's Services,Living With Formal Support,,18/10/2019,507.24,321000,Social Community Care Supplies & Services - Adult
5355963,Just One Recruitment and Training,Childrens Services,Children's Services,Living With Formal Support,,18/10/2019,507.24,321000,Social Community Care Supplies & Services - Adult
5356068,Sanctuary Personnel Trading as Skylakes,Childrens Services,Children's Services,Professional Services,,18/10/2019,"17,723.72",321100,Social Community Care Supplies & Services - Children
5355902,DHL Parcel UK Ltd (UK Mail),Exchequer,Governance,Printing And Stationery,,18/10/2019,"1,874.12",300000,Mail Services
5355904,DHL Parcel UK Ltd (UK Mail),Education,Children's Services,Professional Services,,18/10/2019,"1,228.37",300000,Mail Services
5356023,Target Psychology Limited,Childrens Services,Children's Services,Professional Services,,18/10/2019,874.8,280000,Legal Services
5358486,Smartway Health and Social Care Limited,Adult Social Care,Adults,Homecare Fees,,18/10/2019,"2,214.51",321000,Social Community Care Supplies & Services - Adult
5355957,Olive Branch Fostering LTD,Childrens Services,Children's Services,Foster Carer Agency Fees,,18/10/2019,"3,502.96",321100,Social Community Care Supplies & Services - Children
5356057,Olive Branch Fostering LTD,Childrens Services,Children's Services,Foster Carer Agency Fees,,18/10/2019,"3,308.01",321100,Social Community Care Supplies & Services - Children
5358036,INSPIREDSPACES TAMESIDE LTD,Asset & Investment Partnership Management,Growth,PFI FM Fees and Insurance Costs,,18/10/2019,"23,880.07",390000,"Works - Construction, Repair & Maintenance"
5358185,INSPIREDSPACES TAMESIDE LTD,Asset & Investment Partnership Management,Growth,PFI FM Fees and Insurance Costs,,18/10/2019,"27,404.11",390000,"Works - Construction, Repair & Maintenance"
5358152,INSPIREDSPACES TAMESIDE LTD,Asset & Investment Partnership Management,Growth,PFI FM Fees and Insurance Costs,,18/10/2019,"4,272.00",390000,"Works - Construction, Repair & Maintenance"
5358015,INSPIREDSPACES TAMESIDE LTD,Place,Growth,Agency Staff,,18/10/2019,"4,277.50",390000,"Works - Construction, Repair & Maintenance"
5358148,INSPIREDSPACES TAMESIDE LTD,Asset & Investment Partnership Management,Growth,PFI FM Fees and Insurance Costs,,18/10/2019,787,390000,"Works - Construction, Repair & Maintenance"
5355976,INDUSTRIAL WATER TRAINING SERVICES LTD,Operations and Neighbourhoods,Operations and Neighbourhoods,Training Course Costs,,18/10/2019,800,260000,Human Resources
5356020,ME LEARNING LTD,People and Workforce Development,Governance,Licences,,18/10/2019,750,-999999,Unclassifiable
5356986,AFFINITY TRUST,Adult Social Care,Adults,Homecare Fees,,18/10/2019,867.86,321000,Social Community Care Supplies & Services - Adult
5356985,AFFINITY TRUST,Adult Social Care,Adults,Homecare Fees,,18/10/2019,867.86,321000,Social Community Care Supplies & Services - Adult
5356982,AFFINITY TRUST,Adult Social Care,Adults,Homecare Fees,,18/10/2019,737.76,321000,Social Community Care Supplies & Services - Adult
5356987,AFFINITY TRUST,Adult Social Care,Adults,Homecare Fees,,18/10/2019,"141,032.17",321000,Social Community Care Supplies & Services - Adult
5356984,AFFINITY TRUST,Adult Social Care,Adults,Homecare Fees,,18/10/2019,"2,198.57",321000,Social Community Care Supplies & Services - Adult
5356112,Andrew Jenner Ltd t/a RCD,Operations and Neighbourhoods,Operations and Neighbourhoods,Professional Entertainment Services,,18/10/2019,675,340000,Stationery
5356030,Manchester University NHS Foundation Trust (MFT),Population Health,Population Health,Contributions,,18/10/2019,"4,195.99",150000,Consultancy
5355979,FAMILY CARE FOSTERING LTD,Childrens Services,Children's Services,Foster Carer Agency Fees,,18/10/2019,"4,446.30",321100,Social Community Care Supplies & Services - Children
5355980,Redacted,Childrens Services,Children's Services,Legal Fees,Business Payment,18/10/2019,650,310000,Healthcare
5355981,Redacted,Childrens Services,Children's Services,Legal Fees,Business Payment,18/10/2019,"1,100.00",310000,Healthcare
5355984,TRIANGLE CARE GROUP,Childrens Services,Children's Services,Living With Formal Support,,18/10/2019,"3,142.85",321000,Social Community Care Supplies & Services - Adult
5355983,TRIANGLE CARE GROUP,Childrens Services,Children's Services,Professional Services,,18/10/2019,750,321000,Social Community Care Supplies & Services - Adult
5358908,COMPLETE BACKGROUND SCREENING LTD,People and Workforce Development,Governance,Professional Services,,18/10/2019,"1,585.50",-999999,Unclassifiable
5359235,Adlard Transport LTD,Education,Children's Services,Transport Of Pupils,,18/10/2019,"1,900.00",360000,Public Transport
5355198,CARE 4 CHILDREN RESIDENTIAL SERVICES LTD,Childrens Services,Children's Services,Foster Carer Agency Fees,,18/10/2019,"5,142.80",321100,Social Community Care Supplies & Services - Children
5355939,SWIIS FOSTER CARE LTD,Childrens Services,Children's Services,Foster Carer Agency Fees,,18/10/2019,837.97,321100,Social Community Care Supplies & Services - Children
5356002,FOSTER CARES LTD,Childrens Services,Children's Services,Foster Carer Agency Fees,,18/10/2019,760,321100,Social Community Care Supplies & Services - Children
5356134,JENOPTIK TRAFFIC SOLUTIONS UK LTD,Operations and Neighbourhoods,Operations and Neighbourhoods,General Materials,,18/10/2019,"3,745.00",350000,Street & Traffic Management
5356001,FOSTER CARES LTD,Childrens Services,Children's Services,Foster Carer Agency Fees,,18/10/2019,850,321100,Social Community Care Supplies & Services - Children
5355815,Water Plus,Place,Growth,Metered Water Costs,,18/10/2019,633.49,370000,Utilities
5355925,Water Plus,Place,Growth,Metered Water Costs,,18/10/2019,863.48,370000,Utilities
5355923,Water Plus,Place,Growth,Metered Water Costs,,18/10/2019,992.28,370000,Utilities
5355813,Water Plus,Place,Growth,Metered Water Costs,,18/10/2019,"3,145.59",370000,Utilities
5355812,Water Plus,Place,Growth,Metered Water Costs,,18/10/2019,"1,262.57",370000,Utilities
5355810,Water Plus,Place,Growth,Metered Water Costs,,18/10/2019,642.01,370000,Utilities
5359156,Redacted,Childrens Services,Children's Services,Professional Services,Business Payment,18/10/2019,626.36,310000,Healthcare
5358460,TAMESIDE ARTS LTD,Adult Social Care,Adults,Professional Services,,18/10/2019,"3,150.70",290000,Arts & Leisure Services
5355851,GADDUM CENTRE,Hosted Services,Hosted Services,Professional Services,,18/10/2019,"7,500.00",-999999,Unclassifiable
5355842,CAMBIAN CHILDCARE LTD,Childrens Services,Children's Services,Childrens Homes Outside Local Authority Fees,Redacted Supplier,18/10/2019,"21,685.62",321100,Social Community Care Supplies & Services - Children
5358112,QUALITY PROTECTS CHILDREN LTD,Childrens Services,Children's Services,Childrens Homes Outside Local Authority Fees,,18/10/2019,"20,635.72",-999999,Unclassifiable
5355935,CORONA ENERGY RETAIL 4 LIMITED,Place,Growth,Gas,,18/10/2019,"1,485.21",370000,Utilities
5355895,LEXISNEXIS UK,Governance,Governance,Purchase Books,,18/10/2019,876.99,270000,Information Communication Technology
5356113,Contract Data Research Limited trading as CDR Group,Digital Tameside,Finance & IT,Computer Software Maintenance Costs,,18/10/2019,640,270000,Information Communication Technology
5359139,SANCTUARY HOUSING ASSOCIATION,Place,Growth,Non-Authority Accommodation Rental,,18/10/2019,"2,902.05",UNCLASS,Unclassifiable
5358512,M G DOMESTIC,Adult Social Care,Adults,Fixtures & Fittings Purchase,,18/10/2019,"1,014.97",160000,Domestic Goods
5355932,SWIIS FOSTER CARE LTD,Childrens Services,Children's Services,Foster Carer Agency Fees,,18/10/2019,693.49,321100,Social Community Care Supplies & Services - Children
5355933,SWIIS FOSTER CARE LTD,Childrens Services,Children's Services,Foster Carer Agency Fees,,18/10/2019,703.92,321100,Social Community Care Supplies & Services - Children
5355998,FOSTER CARES LTD,Childrens Services,Children's Services,Foster Carer Agency Fees,,18/10/2019,760,321100,Social Community Care Supplies & Services - Children
5355930,SWIIS FOSTER CARE LTD,Childrens Services,Children's Services,Foster Carer Agency Fees,,18/10/2019,658.84,321100,Social Community Care Supplies & Services - Children
5355938,SWIIS FOSTER CARE LTD,Childrens Services,Children's Services,Foster Carer Agency Fees,,18/10/2019,760.48,321100,Social Community Care Supplies & Services - Children
5355936,SWIIS FOSTER CARE LTD,Childrens Services,Children's Services,Foster Carer Agency Fees,,18/10/2019,899.99,321100,Social Community Care Supplies & Services - Children
5355908,METRIC GROUP LTD,Operations and Neighbourhoods,Operations and Neighbourhoods,General Materials,,18/10/2019,863.1,351100,Street & Traffic Management
5357049,CREATIVE SUPPORT LTD,Adult Social Care,Adults,Independent Sector Care Fees,,18/10/2019,"42,479.67",321000,Social Community Care Supplies & Services - Adult
5356056,THE TOGETHER TRUST,Education,Children's Services,#N/A,Redacted Supplier,18/10/2019,"12,159.34",321100,Social Community Care Supplies & Services - Children
5355168,LORIMER FOSTERING SERVICES,Childrens Services,Children's Services,Foster Carer Agency Fees,,18/10/2019,"3,236.79",321100,Social Community Care Supplies & Services - Children
5358423,TAMESIDE SPORTS TRUST,Education,Children's Services,#N/A,,18/10/2019,"40,942.66",290000,Arts & Leisure Services
5358421,TAMESIDE SPORTS TRUST,Adult Social Care,Adults,Day Centre Fees,,18/10/2019,"1,229.00",290000,Arts & Leisure Services
5358414,TAMESIDE SPORTS TRUST,Childrens Services,Children's Services,Homecare Fees,,18/10/2019,600,290000,Arts & Leisure Services
5358363,TAMESIDE SPORTS TRUST,Childrens Services,Children's Services,Homecare Fees,,18/10/2019,"1,050.00",290000,Arts & Leisure Services
5358398,TAMESIDE SPORTS TRUST,Adult Social Care,Adults,Professional Services,,18/10/2019,"30,799.70",290000,Arts & Leisure Services
5358425,TAMESIDE SPORTS TRUST,Childrens Services,Children's Services,Homecare Fees,,18/10/2019,"1,140.00",290000,Arts & Leisure Services
5358429,TAMESIDE SPORTS TRUST,Adult Social Care,Adults,Day Centre Fees,,18/10/2019,983.2,290000,Arts & Leisure Services
5356006,Redacted,Childrens Services,Children's Services,Legal Fees,,18/10/2019,600,-999999,Unclassifiable
5358144,DIRECT CARE (TAMESIDE) LTD,Adult Social Care,Adults,Homecare Fees,,18/10/2019,"43,659.53",321000,Social Community Care Supplies & Services - Adult
5356141,XMA LIMITED,Digital Tameside,Finance & IT,It Equipment,,18/10/2019,"1,350.00",270000,Information Communication Technology
5356205,ARCO LIMITED,Operations and Neighbourhoods,Operations and Neighbourhoods,Protective Clothing,,18/10/2019,512.8,140000,Clothing
5357945,STOCKPORT MBC,Population Health,Population Health,Contributions,,18/10/2019,"20,670.00",321100,Social Community Care Supplies & Services - Children
5355890,Footsteps Psychology,Education,Children's Services,Professional Services,,18/10/2019,"1,100.00",-999999,Unclassifiable
5355764,Footsteps Psychology,Education,Children's Services,Professional Services,,18/10/2019,"1,100.00",-999999,Unclassifiable
5359048,Hillgate Health Group Limited,Childrens Services,Children's Services,Living With Formal Support,,18/10/2019,"1,179.36",-999999,Unclassifiable
5358139,ADVANCED CHILD CARE ASSESSMENTS LTD,Childrens Services,Children's Services,Professional Services,Redacted Supplier,18/10/2019,"2,318.00",321100,Social Community Care Supplies & Services - Children
5350018,ADVANCED CHILD CARE ASSESSMENTS LTD,Childrens Services,Children's Services,Professional Services,Redacted Supplier,18/10/2019,"1,551.40",321100,Social Community Care Supplies & Services - Children
5358657,ADVANCED CHILD CARE ASSESSMENTS LTD,Childrens Services,Children's Services,Professional Services,Redacted Supplier,18/10/2019,"2,952.50",321100,Social Community Care Supplies & Services - Children
5359163,Redacted,Childrens Services,Children's Services,Placement with Relative or Friend In LA,,18/10/2019,668,400000,Non 3rd Party spend  
5356064,NCRQ LTD,Operations and Neighbourhoods,Operations and Neighbourhoods,Training Course Costs,,18/10/2019,"3,400.00",220000,Health & Safety
5359067,Redacted,Multiple Heads of Service,Multiple Strategic Directorates,Salaries & Wages Advances(Hold),,18/10/2019,"3,426.55",400000,Non 3rd Party spend  
5356050,KBW Barristers Chambers,Childrens Services,Children's Services,Legal Fees,,18/10/2019,650,280000,Legal Services
5356053,18 St John Street Chambers,Childrens Services,Children's Services,Legal Fees,,18/10/2019,950,280000,Legal Services
5356047,18 St John Street Chambers,Childrens Services,Children's Services,Legal Fees,,18/10/2019,950,280000,Legal Services
5356013,Redacted,Childrens Services,Children's Services,Legal Fees,,18/10/2019,600,-999999,Unclassifiable
5356049,18 St John Street Chambers,Childrens Services,Children's Services,Legal Fees,,18/10/2019,550,280000,Legal Services
5356048,18 St John Street Chambers,Childrens Services,Children's Services,Legal Fees,,18/10/2019,550,280000,Legal Services
5356043,18 St John Street Chambers,Childrens Services,Children's Services,Legal Fees,,18/10/2019,550,280000,Legal Services
5356046,18 St John Street Chambers,Childrens Services,Children's Services,Legal Fees,,18/10/2019,670,280000,Legal Services
5356039,18 St John Street Chambers,Childrens Services,Children's Services,Legal Fees,,18/10/2019,670,280000,Legal Services
5358733,ISW CSC Limited,Childrens Services,Children's Services,Living With Formal Support,,18/10/2019,750,260000,Human Resources
5356117,PAYPARTNERS LTD (MONTHLY),Adult Social Care,Adults,Sub-contractor Services,,18/10/2019,"4,150.00",321000,Social Community Care Supplies & Services - Adult
5359047,Hillgate Health Group Limited,Childrens Services,Children's Services,Living With Formal Support,,18/10/2019,"1,179.36",-999999,Unclassifiable
5359045,Hillgate Health Group Limited,Childrens Services,Children's Services,Living With Formal Support,,18/10/2019,"1,179.36",-999999,Unclassifiable
5356018,Redacted,Childrens Services,Children's Services,Legal Fees,,18/10/2019,650,400000,Non 3rd Party spend  
5356017,Redacted,Childrens Services,Children's Services,Legal Fees,,18/10/2019,525,400000,Non 3rd Party spend  
5356014,Redacted,Childrens Services,Children's Services,Legal Fees,,18/10/2019,600,200000,Financial Services
5356083,ISOteaching,Education,Children's Services,#N/A,,18/10/2019,"2,450.00",170000,Education
5356082,Redacted,(blank),(blank),Asbestos Removal,,18/10/2019,"3,618.50",170000,Education
5356000,Redacted,Childrens Services,Children's Services,Legal Fees,,18/10/2019,700,400000,Non 3rd Party spend  
5356005,Redacted,Childrens Services,Children's Services,Legal Fees,,18/10/2019,650,400000,Non 3rd Party spend  
5355997,Redacted,Childrens Services,Children's Services,Legal Fees,,18/10/2019,"3,000.00",280000,Legal Services
5355996,Redacted,Childrens Services,Children's Services,Legal Fees,,18/10/2019,"2,250.00",280000,Legal Services
5355995,Redacted,Childrens Services,Children's Services,Legal Fees,,18/10/2019,600,280000,Legal Services
5359052,Montrose Recruitment Limited TA Montrose Living,Childrens Services,Children's Services,Living With Formal Support,,18/10/2019,"5,757.01",321100,Social Community Care Supplies & Services - Children
5356126,Interserve Healthcare Limited,Childrens Services,Children's Services,Day Care Fees,,18/10/2019,745.2,321100,Social Community Care Supplies & Services - Children
5355934,Redacted,Childrens Services,Children's Services,Legal Fees,,18/10/2019,600,280000,Legal Services
5355994,Redacted,Childrens Services,Children's Services,Legal Fees,,18/10/2019,866.67,280000,Legal Services
5356079,GB Sports & Leisure,Operations and Neighbourhoods,Operations and Neighbourhoods,General Materials,,18/10/2019,"1,517.83",330000,Sports & Playground Equipment & Maintenance
5356155,PAYPARTNERS LTD (MONTHLY),Adult Social Care,Adults,Sub-contractor Services,,18/10/2019,"1,037.50",321000,Social Community Care Supplies & Services - Adult
5355845,Randstad Public Services Limited,Individual Schools Budget,Children's Services,Agency Staff,,18/10/2019,"1,025.00",170000,Education
5359081,STEP AHEAD RESOURCE SERVICES,Adult Social Care,Adults,Provision for Supporting People,,18/10/2019,"1,150.00",321000,Social Community Care Supplies & Services - Adult
5356024,QUADRANT SECURITY GROUP LTD,Operations and Neighbourhoods,Operations and Neighbourhoods,Miscellaneous Expenses,,18/10/2019,"3,155.12",190000,Facilities & Management Services
5355988,QUADRANT SECURITY GROUP LTD,Operations and Neighbourhoods,Operations and Neighbourhoods,Security Services,,18/10/2019,"9,960.00",190000,Facilities & Management Services
5355891,QUADRANT SECURITY GROUP LTD,Operations and Neighbourhoods,Operations and Neighbourhoods,Professional Services,,18/10/2019,"10,325.00",190000,Facilities & Management Services
5356116,CORE INTEGRATED SOLUTIONS LTD,(blank),(blank),Cabling/Diversion Works,,18/10/2019,"2,100.00",390000,"Works - Construction, Repair & Maintenance"
5355990,UNITED UTILITIES,Childrens Services,Children's Services,Metered Water Costs,,18/10/2019,541.22,-999999,Unclassifiable
5356115,MAMMOTH SIGNS LTD,Operations and Neighbourhoods,Operations and Neighbourhoods,"Marketing, Publicity and Recruitment",,18/10/2019,813,390000,"Works - Construction, Repair & Maintenance"
5355991,Redacted,Childrens Services,Children's Services,Legal Fees,Business Payment,18/10/2019,700,-999999,Unclassifiable
5355992,Redacted,Childrens Services,Children's Services,Legal Fees,Business Payment,18/10/2019,600,-999999,Unclassifiable
5356967,CLOVERLEAF ADVOCACY 2000 LTD,Adult Social Care,Adults,Professional Services,,18/10/2019,"12,408.34",321000,Social Community Care Supplies & Services - Adult
5355830,THE GUINNESS PARTNERSHIP LTD,Adult Social Care,Adults,Non-Authority Accommodation Rental,,18/10/2019,"1,204.65",250000,Housing Management
5355832,THE GUINNESS PARTNERSHIP LTD,Adult Social Care,Adults,Non-Authority Accommodation Rental,,18/10/2019,"4,093.76",250000,Housing Management
5355739,NEW BRIDGE HORIZONS,Adult Social Care,Adults,Day Centre Fees,,18/10/2019,"1,771.20",321000,Social Community Care Supplies & Services - Adult
5358858,PURE INNOVATIONS LTD,Education,Children's Services,Training Course Costs,,18/10/2019,"15,221.25",400000,Non 3rd Party spend  
5358558,Park Lane Minibuses LTD,Education,Children's Services,Transport Of Pupils,,18/10/2019,"2,444.92",360000,Public Transport
5356200,DEPARTMENT FOR EDUCATION,(blank),(blank),New Accommodation Works,,18/10/2019,"340,000.00",170000,Education
5358310,PEOPLE FIRST TAMESIDE,Adult Social Care,Adults,Professional Services,,18/10/2019,"6,274.00",321000,Social Community Care Supplies & Services - Adult
5358233,PEOPLE FIRST TAMESIDE,Adult Social Care,Adults,Professional Services,,18/10/2019,"3,325.22",321000,Social Community Care Supplies & Services - Adult
5359002,TIPTOES CHILD THERAPY SERVICES (LTD),Childrens Services,Children's Services,Professional Services,,18/10/2019,"1,680.00",321100,Social Community Care Supplies & Services - Children
5359003,TIPTOES CHILD THERAPY SERVICES (LTD),Childrens Services,Children's Services,Professional Services,,18/10/2019,840,321100,Social Community Care Supplies & Services - Children
5359138,CYCLESCHEME LTD,Multiple Heads of Service,Multiple Strategic Directorates,Debits,,18/10/2019,"2,699.17",-999999,Unclassifiable
5356004,WELL INFORMED LIMITED,Operations and Neighbourhoods,Operations and Neighbourhoods,Purchase Sound Recordings,,18/10/2019,601.66,150000,Consultancy
5358270,Redacted,Operations and Neighbourhoods,Operations and Neighbourhoods,Hired Transport,Business Payment,18/10/2019,702,360000,Public Transport
5358275,Redacted,Education,Children's Services,Transport Of Post 16 Pupils,Business Payment,18/10/2019,"1,944.00",360000,Public Transport
5358273,Redacted,Education,Children's Services,Transport Of Pupils,Business Payment,18/10/2019,"1,577.00",360000,Public Transport
5358274,Redacted,Education,Children's Services,Transport Of Pupils,Business Payment,18/10/2019,"2,052.00",360000,Public Transport
5358272,Redacted,Education,Children's Services,Transport Of Pupils,Business Payment,18/10/2019,"2,052.00",360000,Public Transport
5356051,18 St John Street Chambers,Childrens Services,Children's Services,Legal Fees,,18/10/2019,550,280000,Legal Services
5355796,AUTISM INITIATIVES (UK),Adult Social Care,Adults,Provision for Supporting People,,18/10/2019,"2,899.68",321100,Social Community Care Supplies & Services - Children
5355838,COMMANDO JOES FUN AND FITNESS LTD,Individual Schools Budget,Children's Services,Educational Equipment,,18/10/2019,"1,500.00",290000,Arts & Leisure Services
5355792,AUTISM INITIATIVES (UK),Adult Social Care,Adults,Provision for Supporting People,,18/10/2019,"2,174.76",321100,Social Community Care Supplies & Services - Children
5355794,AUTISM INITIATIVES (UK),Adult Social Care,Adults,Provision for Supporting People,,18/10/2019,"5,137.16",321100,Social Community Care Supplies & Services - Children
5355791,AUTISM INITIATIVES (UK),Adult Social Care,Adults,Provision for Supporting People,,18/10/2019,"1,114.97",321100,Social Community Care Supplies & Services - Children
5356012,Redacted,Childrens Services,Children's Services,Legal Fees,,18/10/2019,600,200000,Financial Services
5355799,AUTISM INITIATIVES (UK),Adult Social Care,Adults,Provision for Supporting People,,18/10/2019,"2,899.68",321100,Social Community Care Supplies & Services - Children
5356127,JOHN PACKER LIMITED,Education,Children's Services,Musical Instruments,,18/10/2019,"2,625.00",321100,Social Community Care Supplies & Services - Children
5358145,DERBYSHIRE COUNTY COUNCIL,Education,Children's Services,Other Local Authorities Fees,,18/10/2019,"4,352.00",UNCLASS,Unclassifiable
5355790,AUTISM INITIATIVES (UK),Adult Social Care,Adults,Provision for Supporting People,,18/10/2019,"4,943.65",321100,Social Community Care Supplies & Services - Children
5356871,ALTERNATIVE FUTURES GROUP,Adult Social Care,Adults,Homecare Fees,,18/10/2019,"202,637.33",321000,Social Community Care Supplies & Services - Adult
5355793,AUTISM INITIATIVES (UK),Adult Social Care,Adults,Provision for Supporting People,,18/10/2019,"4,556.63",321100,Social Community Care Supplies & Services - Children
5358397,ABLE CARE AND SUPPORT SERVICES LTD,Adult Social Care,Adults,Homecare Fees,,18/10/2019,"3,231.71",321000,Social Community Care Supplies & Services - Adult
470830,AGGREGATE INDUSTRIES UK LIMITED,Operations and Neighbourhoods,Operations and Neighbourhoods,General Materials,,22/10/2019,"5,241.90",230000,Highway Equipment & Materials
470830,ALTITUDE SERVICES,Operations and Neighbourhoods,Operations and Neighbourhoods,Sub-contractor Services,,22/10/2019,"6,483.24",230000,Highway Equipment & Materials
470830,EAGLE CIVIL ENGINEERING LTD,Operations and Neighbourhoods,Operations and Neighbourhoods,General Materials,,22/10/2019,"6,497.74",391411,"Works - Construction, Repair & Maintenance"
470830,EAGLE CIVIL ENGINEERING LTD,Operations and Neighbourhoods,Operations and Neighbourhoods,Sub-contractor Services,,22/10/2019,"41,166.91",391411,"Works - Construction, Repair & Maintenance"
470830,FAIRWAY LANDSCAPES LTD,Operations and Neighbourhoods,Operations and Neighbourhoods,Sub-contractor Services,,22/10/2019,"2,660.00",399999,"Works - Construction, Repair & Maintenance"
470830,KENNY BROTHERS,Operations and Neighbourhoods,Operations and Neighbourhoods,Sub-contractor Services,,22/10/2019,"6,221.31",391411,"Works - Construction, Repair & Maintenance"
470830,P F CUSACK LTD,Civil Engineers,Director of Place,Debits Goods Received,,22/10/2019,630.3,240000,Horticultural
470830,PG FABRICATIONS,Operations and Neighbourhoods,Operations and Neighbourhoods,Sub-contractor Services,,22/10/2019,"2,390.00",390000,"Works - Construction, Repair & Maintenance"
470830,TARMAC CENTRAL LIMITED,Operations and Neighbourhoods,Operations and Neighbourhoods,General Materials,,22/10/2019,"6,830.91",230000,Highway Equipment & Materials
470830,WILDE CONSULTING ENGINEERS,Operations and Neighbourhoods,Operations and Neighbourhoods,General Materials,,22/10/2019,"5,818.50",150000,Consultancy
470830,WOLSELEY UK LTD,Operations and Neighbourhoods,Operations and Neighbourhoods,General Materials,,22/10/2019,"4,133.84",230000,Highway Equipment & Materials
470830,P J SPENCER LTD,Operations and Neighbourhoods,Operations and Neighbourhoods,Sub-contractor Services,,22/10/2019,528.65,390000,"Works - Construction, Repair & Maintenance"
470830,BRAMHALL SURFACING LTD,Operations and Neighbourhoods,Operations and Neighbourhoods,Sub-contractor Services,,22/10/2019,"49,895.79",390000,"Works - Construction, Repair & Maintenance"
470830,4WAY CONSULTING LTD,(blank),(blank),Engineers -External,,22/10/2019,"2,299.50",180000,Environmental Services
470830,4WAY CONSULTING LTD,Operations and Neighbourhoods,Operations and Neighbourhoods,General Materials,,22/10/2019,722.71,180000,Environmental Services
470830,1st Choice Grab Hire LTD,Operations and Neighbourhoods,Operations and Neighbourhoods,Sub-contractor Services,,22/10/2019,750,230000,Highway Equipment & Materials
470830,ACORN LIGHTING SERVICES LTD,Operations and Neighbourhoods,Operations and Neighbourhoods,Sub-contractor Services,,22/10/2019,"9,835.50",230000,Highway Equipment & Materials
470830,Holroyds Skip Hire Limited,Operations and Neighbourhoods,Operations and Neighbourhoods,Sub-contractor Services,,22/10/2019,"3,200.00",150000,Consultancy
470830,NORTHWEST UTILITY SOLUTIONS LTD,Operations and Neighbourhoods,Operations and Neighbourhoods,Sub-contractor Services,,22/10/2019,"7,600.00",370000,Utilities
470830,KONSTRUCTA HIRE LIMITED,Operations and Neighbourhoods,Operations and Neighbourhoods,General Materials,,22/10/2019,840,390000,"Works - Construction, Repair & Maintenance"
470830,HILTI (GB) LTD,Operations and Neighbourhoods,Operations and Neighbourhoods,General Materials,,22/10/2019,724,390000,"Works - Construction, Repair & Maintenance"
5357603,ATLAS TRADING GROUP LTD,Operations and Neighbourhoods,Operations and Neighbourhoods,General Materials,,22/10/2019,"1,300.00",100000,Building Construction Materials
5359430,AUTUMN (UK) 2017 LIMITED,Housing,Director of Place,Improvement Grants - Final Mandatory,,22/10/2019,"4,935.00",321000,Social Community Care Supplies & Services - Adult
5359381,STAMFORD CARS UK LTD,Operations and Neighbourhoods,Operations and Neighbourhoods,Transport Of Pupils,,22/10/2019,"1,792.50",360000,Public Transport
5359351,K P DODD CONSTRUCTION LTD,Housing,Director of Place,Improvement Grants - Final Mandatory,,22/10/2019,"7,376.00",390000,"Works - Construction, Repair & Maintenance"
5359356,K P DODD CONSTRUCTION LTD,Housing,Director of Place,Improvement Grants - Final Mandatory,,22/10/2019,"7,720.00",390000,"Works - Construction, Repair & Maintenance"
5359299,TIPTOES CHILD THERAPY SERVICES (LTD),Childrens Services,Children's Services,Professional Services,,22/10/2019,"1,200.00",321100,Social Community Care Supplies & Services - Children
5358565,Inspired Spaces (ProjectCo1) LTD,Asset & Investment Partnership Management,Growth,Free School Meal Costs,,22/10/2019,"4,011.20",390000,"Works - Construction, Repair & Maintenance"
5358565,Inspired Spaces (ProjectCo1) LTD,Asset & Investment Partnership Management,Growth,Unitary Charge Payments,,22/10/2019,"516,140.21",390000,"Works - Construction, Repair & Maintenance"
5358565,Inspired Spaces (ProjectCo1) LTD,Asset & Investment Partnership Management,Growth,Utilities,,22/10/2019,"15,300.89",390000,"Works - Construction, Repair & Maintenance"
5356144,WHITEFERN LTD,Operations and Neighbourhoods,Operations and Neighbourhoods,General Materials,,22/10/2019,"1,956.50",210000,Furniture & Soft Furnishings
5358390,THE FAMILY UNIT LTD,Childrens Services,Children's Services,Living With Formal Support,,22/10/2019,"7,000.00",321000,Social Community Care Supplies & Services - Adult
5358574,Redacted,Place,Growth,Contributions,,22/10/2019,749.09,400000,Non 3rd Party spend  
5357036,GIA-MAC Architects Limited,Asset Management and Investment Partnership Management,Director of Place,Engineers -External,,22/10/2019,"10,000.00",390000,"Works - Construction, Repair & Maintenance"
5356080,Moving Forward Care Ltd,Childrens Services,Children's Services,Living With Formal Support,,22/10/2019,"3,400.00",321100,Social Community Care Supplies & Services - Children
5359079,ATKINS LIMITED,Operations and Neighbourhoods,Operations and Neighbourhoods,Engineers Works,,22/10/2019,"6,139.91",180000,Environmental Services
5359320,ISW CSC Limited,Childrens Services,Children's Services,Living With Formal Support,,22/10/2019,"1,055.00",260000,Human Resources
5359321,ISW CSC Limited,Childrens Services,Children's Services,Living With Formal Support,,22/10/2019,915,260000,Human Resources
5358815,Bloom Procurement Services Limited,Tameside Investment Partnership,Director of Place,Consultancies,,22/10/2019,"9,571.95",150000,Consultancy
5355650,Haymarket Media Group Limited t/a CIPD Events,People and Workforce Development,Governance,Training Course Costs,,22/10/2019,525,290000,Arts & Leisure Services
5358194,Redacted,Childrens Services,Children's Services,Other Accomodation Related Costs,,22/10/2019,650,250000,Housing Management
5359326,GIA-MAC Architects Limited,Asset Management and Investment Partnership Management,Director of Place,Engineers -External,,22/10/2019,"1,000.00",390000,"Works - Construction, Repair & Maintenance"
5357997,HALLIWELL HOMES,Childrens Services,Children's Services,Childrens Homes Outside Local Authority Fees,,22/10/2019,"21,407.14",321100,Social Community Care Supplies & Services - Children
5358006,HALLIWELL HOMES,Childrens Services,Children's Services,Childrens Homes Outside Local Authority Fees,,22/10/2019,"20,550.00",321100,Social Community Care Supplies & Services - Children
5355488,FOSTER CARE ASSOCIATES LTD (FCA),Childrens Services,Children's Services,Foster Carer Agency Fees,,22/10/2019,"4,411.30",321000,Social Community Care Supplies & Services - Adult
5356663,FOSTER CARE ASSOCIATES LTD (FCA),Childrens Services,Children's Services,Foster Carer Agency Fees,,22/10/2019,"3,450.90",321000,Social Community Care Supplies & Services - Adult
5358320,TRAFFORD MBC,Finance,Finance & IT,Professional Consultancy Services,,22/10/2019,"108,750.00",UNCLASS,Unclassifiable
5359040,Barnshaws Metal Bending Centre,Place,Growth,Contributions,,22/10/2019,"2,878.20",-999999,Unclassifiable
5359429,INSPIREDSPACES TAMESIDE LTD,Place,Growth,Building Maintenance,,22/10/2019,"101,294.73",390000,"Works - Construction, Repair & Maintenance"
5359429,INSPIREDSPACES TAMESIDE LTD,Place,Growth,Fees,,22/10/2019,"7,819.40",390000,"Works - Construction, Repair & Maintenance"
5359429,INSPIREDSPACES TAMESIDE LTD,Place,Growth,Repairs & Maintenance Heavy Catering Equipment,,22/10/2019,"5,787.99",390000,"Works - Construction, Repair & Maintenance"
5359322,ISW CSC Limited,Childrens Services,Children's Services,Living With Formal Support,,22/10/2019,800,260000,Human Resources
5358111,FRIENDS HOUSE (LONDON) HOSPITALITY LIMITED,Hosted Services,Hosted Services,Conference/Seminar Expenses For Staff,,22/10/2019,"2,498.09",290000,Arts & Leisure Services
5359020,FRIENDS HOUSE (LONDON) HOSPITALITY LIMITED,Hosted Services,Hosted Services,Conference/Seminar Expenses For Staff,,22/10/2019,"2,634.01",290000,Arts & Leisure Services
5358235,INSPIREDSPACES TAMESIDE LTD,Asset & Investment Partnership Management,Growth,PFI FM Fees and Insurance Costs,,22/10/2019,"3,336.84",390000,"Works - Construction, Repair & Maintenance"
5354576,HORIZON SEMI-INDEPENDENT SUPPORT,Childrens Services,Children's Services,Living With Formal Support,,22/10/2019,"4,400.00",321000,Social Community Care Supplies & Services - Adult
5355678,Barnshaws Metal Bending Centre,Place,Growth,Contributions,,22/10/2019,"2,878.20",-999999,Unclassifiable
5358814,Sanctuary Personnel Trading as Skylakes,Childrens Services,Children's Services,Professional Services,,22/10/2019,"17,723.72",321100,Social Community Care Supplies & Services - Children
5359315,Safehands Liverpool LTD,Childrens Services,Children's Services,Living With Formal Support,,22/10/2019,"8,373.00",321100,Social Community Care Supplies & Services - Children
5357289,TAMESIDE LINK,Adult Social Care,Adults,Independent Sector Residential Care Fees,,22/10/2019,"23,702.09",321000,Social Community Care Supplies & Services - Adult
5356285,CRELLING HARNESSES LIMITED,Operations and Neighbourhoods,Operations and Neighbourhoods,General Equipment Purchase,,23/10/2019,670.5,310000,Healthcare
5356290,Exclusive Secure Care Services,Childrens Services,Children's Services,Living With Formal Support,,23/10/2019,"1,041.00",321100,Social Community Care Supplies & Services - Children
5356296,S & M Builders,Operations and Neighbourhoods,Operations and Neighbourhoods,Professional Services,,23/10/2019,625,390000,"Works - Construction, Repair & Maintenance"
5356298,S & M Builders,Operations and Neighbourhoods,Operations and Neighbourhoods,Engineers Works,,23/10/2019,760,390000,"Works - Construction, Repair & Maintenance"
5354677,CARELINE HOMECARE LTD,Adult Social Care,Adults,Homecare Fees,,23/10/2019,"10,761.80",321000,Social Community Care Supplies & Services - Adult
5356307,DELTA STEEPLEJACKS LTD,Operations and Neighbourhoods,Operations and Neighbourhoods,Engineers Works,,23/10/2019,650,180000,Environmental Services
5355207,CARELINE HOMECARE LTD,Adult Social Care,Adults,Homecare Fees,,23/10/2019,"10,358.58",321000,Social Community Care Supplies & Services - Adult
5352527,CARELINE HOMECARE LTD,Adult Social Care,Adults,Homecare Fees,,23/10/2019,"12,020.20",321000,Social Community Care Supplies & Services - Adult
5358494,HMCTS TRAFFIC ENFORCEMENT CENTRE,Operations and Neighbourhoods,Operations and Neighbourhoods,Court Fees,,23/10/2019,"20,000.00",-999999,Unclassifiable
5357605,CREATIVE SUPPORT LTD,Adult Social Care,Adults,Homecare Fees,,23/10/2019,"40,409.03",321000,Social Community Care Supplies & Services - Adult
5356335,BLOOMSBURY PROFESSIONAL,Governance,Governance,Subscriptions,,23/10/2019,515,200000,Financial Services
5356283,THE TOGETHER TRUST,Education,Children's Services,Voluntary Organisations Fees,Redacted Supplier,23/10/2019,"3,325.00",321100,Social Community Care Supplies & Services - Children
5357604,CREATIVE SUPPORT LTD,Adult Social Care,Adults,Homecare Fees,,23/10/2019,"17,620.75",321000,Social Community Care Supplies & Services - Adult
5356278,RIGBY TAYLOR LTD,Operations and Neighbourhoods,Operations and Neighbourhoods,General Materials,,23/10/2019,"2,025.00",240000,Horticultural
5356280,RIGBY TAYLOR LTD,Operations and Neighbourhoods,Operations and Neighbourhoods,General Equipment Purchase,,23/10/2019,"3,427.50",240000,Horticultural
